Department Family,Entity,Date,Expense Type,Expense area,Supplier,Transaction Number,Amount,VAT registration Number
Department of Health,Salisbury NHS Foundation Trust,15-Dec-17,FOODSTUFFS,Facilities,PELICAN PROCUREMENT SERVICES LTD,NOV-2017-NHS1634,9093.75,
Department of Health,Salisbury NHS Foundation Trust,15-Dec-17,FOODSTUFFS,Facilities,PELICAN PROCUREMENT SERVICES LTD,NOV-2017-NHS1634,55982.39,
Department of Health,Salisbury NHS Foundation Trust,15-Dec-17,RATES,Corporate - ETS,WILTSHIRE COUNCIL,NDR - DEC 2017,114356,
Department of Health,Salisbury NHS Foundation Trust,15-Dec-17,DRUGS,Clinical Support,LLOYDSPHARMACY CLINICAL HOMECARE,SINV2599805,31338.83,
Department of Health,Salisbury NHS Foundation Trust,14-Dec-17,MISCELLANEOUS CAPITAL,Capital Projects,CACI LIMITED,JC20033829,91177.61,
Department of Health,Salisbury NHS Foundation Trust,14-Dec-17,MISCELLANEOUS CAPITAL,Capital Projects,CACI LIMITED,JC20033829,18235.52,
Department of Health,Salisbury NHS Foundation Trust,08-Dec-17,DRUGS,Clinical Support,LLOYDSPHARMACY CLINICAL HOMECARE,SINV2621452,31323.83,
Department of Health,Salisbury NHS Foundation Trust,01-Dec-17,OTH ENGINEERING PLANT&EQUIP,Capital Projects,L A MOORE LTD,14639,12461.1,
Department of Health,Salisbury NHS Foundation Trust,01-Dec-17,OTH ENGINEERING PLANT&EQUIP,Capital Projects,L A MOORE LTD,14639,5871,
Department of Health,Salisbury NHS Foundation Trust,01-Dec-17,OTH ENGINEERING PLANT&EQUIP,Capital Projects,L A MOORE LTD,14639,15111.9,
Department of Health,Salisbury NHS Foundation Trust,01-Dec-17,OTH ENGINEERING PLANT&EQUIP,Capital Projects,L A MOORE LTD,14639,12677.96,
Department of Health,Salisbury NHS Foundation Trust,01-Dec-17,OTH ENGINEERING PLANT&EQUIP,Capital Projects,L A MOORE LTD,14639,15111.9,
Department of Health,Salisbury NHS Foundation Trust,21-Dec-17,DRUGS,Clinical Support,NOVARTIS PHARMACEUTICALS UK LTD,91879256,26712,
Department of Health,Salisbury NHS Foundation Trust,21-Dec-17,DRUGS,Clinical Support,NOVARTIS PHARMACEUTICALS UK LTD,91879256,5342.4,
Department of Health,Salisbury NHS Foundation Trust,21-Dec-17,DRUGS,Clinical Support,BAYER PLC,187499504,26220,
Department of Health,Salisbury NHS Foundation Trust,21-Dec-17,DRUGS,Clinical Support,BAYER PLC,187499504,5244,
Department of Health,Salisbury NHS Foundation Trust,21-Dec-17,MEDICAL EQUIPMENT 5 YEARS,Capital Projects,MINDRAY (UK) LTD,610042858,60456,
Department of Health,Salisbury NHS Foundation Trust,21-Dec-17,MEDICAL EQUIPMENT 5 YEARS,Capital Projects,MINDRAY (UK) LTD,610042858,12091.2,
Department of Health,Salisbury NHS Foundation Trust,21-Dec-17,DRUGS,Clinical Support,ROCHE PRODUCTS LTD,1321992099,28007,
Department of Health,Salisbury NHS Foundation Trust,21-Dec-17,DRUGS,Clinical Support,ROCHE PRODUCTS LTD,1321992099,5601.4,
Department of Health,Salisbury NHS Foundation Trust,15-Dec-17,DRUGS,Clinical Support,ROCHE PRODUCTS LTD,1321983787,26518.39,
Department of Health,Salisbury NHS Foundation Trust,15-Dec-17,DRUGS,Clinical Support,ROCHE PRODUCTS LTD,1321983787,5303.68,
Department of Health,Salisbury NHS Foundation Trust,15-Dec-17,DRUGS,Clinical Support,BAYER PLC,187497144,26220,
Department of Health,Salisbury NHS Foundation Trust,15-Dec-17,DRUGS,Clinical Support,BAYER PLC,187497144,5244,
Department of Health,Salisbury NHS Foundation Trust,15-Dec-17,ENERGY WATER - ELECTRICITY,Corporate - ETS,CENTRICA BUSINESS SOLUTIONS,17503017,23000,
Department of Health,Salisbury NHS Foundation Trust,01-Dec-17,DRUGS,Clinical Support,BAYER PLC,187496203,21850,
Department of Health,Salisbury NHS Foundation Trust,01-Dec-17,DRUGS,Clinical Support,BAYER PLC,187496203,4370,
Department of Health,Salisbury NHS Foundation Trust,01-Dec-17,ELECTRICAL ENGINEERS,Capital Projects,TYNETEC,156075,68945.09,
Department of Health,Salisbury NHS Foundation Trust,01-Dec-17,ELECTRICAL ENGINEERS,Capital Projects,TYNETEC,156075,13789.02,
Department of Health,Salisbury NHS Foundation Trust,01-Dec-17,MED SURG EQUIP REP MAINT CLEANING,Medicine,SIEMENS HEALTHCARE LIMITED,1051033537,28600,
Department of Health,Salisbury NHS Foundation Trust,21-Dec-17,DRUGS,Clinical Support,ROCHE PRODUCTS LTD,132199201,21834.28,
Department of Health,Salisbury NHS Foundation Trust,21-Dec-17,DRUGS,Clinical Support,ROCHE PRODUCTS LTD,132199201,4366.86,
Department of Health,Salisbury NHS Foundation Trust,21-Dec-17,DRUGS,Clinical Support,NOVARTIS PHARMACEUTICALS UK LTD,9870058,23969.4,
Department of Health,Salisbury NHS Foundation Trust,21-Dec-17,DRUGS,Clinical Support,NOVARTIS PHARMACEUTICALS UK LTD,9870058,4793.88,
Department of Health,Salisbury NHS Foundation Trust,21-Dec-17,LAB REAGENTS-BUFFERS COMPUND SOLNS,Clinical Support,OXFORD GENE TECHNOLOGY,SIN005445,51216,
Department of Health,Salisbury NHS Foundation Trust,21-Dec-17,LAB REAGENTS-BUFFERS COMPUND SOLNS,Clinical Support,OXFORD GENE TECHNOLOGY,SIN005445,10243.2,
Department of Health,Salisbury NHS Foundation Trust,15-Dec-17,HARD/SOFTWARE-COMPUTER SOFTWARE  SPECIALISED BESPOKE,Facilities,TELE-TRACKING EU LTD,CI-11870,27265.14,
Department of Health,Salisbury NHS Foundation Trust,15-Dec-17,HARD/SOFTWARE-COMPUTER SOFTWARE  SPECIALISED BESPOKE,Facilities,TELE-TRACKING EU LTD,CI-11870,5453.03,
Department of Health,Salisbury NHS Foundation Trust,01-Dec-17,BLDG STRUCTURES MAIN CONTR,Capital Projects,SOUTH WEST HIGHWAYS LIMITED,C20260B,165306.03,
Department of Health,Salisbury NHS Foundation Trust,01-Dec-17,BLDG STRUCTURES MAIN CONTR,Capital Projects,SOUTH WEST HIGHWAYS LIMITED,C20260B,18233.26,
Department of Health,Salisbury NHS Foundation Trust,01-Dec-17,MED SURG EQUIP REP MAINT CLEANING,Surgery,NHS SUPPLY CHAIN,2018003166,259.47,
Department of Health,Salisbury NHS Foundation Trust,01-Dec-17,MED SURG EQUIP REP MAINT CLEANING,Surgery,NHS SUPPLY CHAIN,2018003166,3805.56,
Department of Health,Salisbury NHS Foundation Trust,01-Dec-17,MED SURG EQUIP REP MAINT CLEANING,Surgery,NHS SUPPLY CHAIN,2018003166,2767.68,
Department of Health,Salisbury NHS Foundation Trust,01-Dec-17,MED SURG EQUIP REP MAINT CLEANING,Surgery,NHS SUPPLY CHAIN,2018003166,3805.56,
Department of Health,Salisbury NHS Foundation Trust,01-Dec-17,MED SURG EQUIP REP MAINT CLEANING,Surgery,NHS SUPPLY CHAIN,2018003166,3805.56,
Department of Health,Salisbury NHS Foundation Trust,01-Dec-17,MED SURG EQUIP REP MAINT CLEANING,Clinical Support,NHS SUPPLY CHAIN,2018003166,3805.56,
Department of Health,Salisbury NHS Foundation Trust,01-Dec-17,MED SURG EQUIP REP MAINT CLEANING,Medicine,NHS SUPPLY CHAIN,2018003166,3805.56,
Department of Health,Salisbury NHS Foundation Trust,01-Dec-17,MED SURG EQUIP REP MAINT CLEANING,Medicine,NHS SUPPLY CHAIN,2018003166,3805.56,
Department of Health,Salisbury NHS Foundation Trust,01-Dec-17,MED SURG EQUIP REP MAINT CLEANING,Surgery,NHS SUPPLY CHAIN,2018003166,1729.8,
Department of Health,Salisbury NHS Foundation Trust,01-Dec-17,MED SURG EQUIP REP MAINT CLEANING,Clinical Support,NHS SUPPLY CHAIN,2018003166,4324.5,
Department of Health,Salisbury NHS Foundation Trust,01-Dec-17,MED SURG EQUIP REP MAINT CLEANING,Clinical Support,NHS SUPPLY CHAIN,2018003166,4238.01,
Department of Health,Salisbury NHS Foundation Trust,01-Dec-17,MED SURG EQUIP REP MAINT CLEANING,Clinical Support,NHS SUPPLY CHAIN,2018003166,259.47,
Department of Health,Salisbury NHS Foundation Trust,01-Dec-17,LAB EQUIP-LABORATORY APPARATUS,Clinical Support,LEICA MICROSYSTEMS (UK) LTD,96962255,25076,
Department of Health,Salisbury NHS Foundation Trust,01-Dec-17,LAB EQUIP-LABORATORY APPARATUS,Clinical Support,BECKMAN COULTER,1392855,50180.5,
Department of Health,Salisbury NHS Foundation Trust,01-Dec-17,DI & RADIO - RADIOLOGY EQUIPMENT,Clinical Support,NHS SUPPLY CHAIN,2018002922,71645,
Department of Health,Salisbury NHS Foundation Trust,01-Dec-17,MED SURG EQUIP REP MAINT CLEANING,Surgery,KARL STORZ ENDOSCOPY (UK) LTD,321224,14478.1,
Department of Health,Salisbury NHS Foundation Trust,01-Dec-17,MED SURG EQUIP REP MAINT CLEANING,Surgery,KARL STORZ ENDOSCOPY (UK) LTD,321224,14478.1,
Department of Health,Salisbury NHS Foundation Trust,01-Dec-17,MED SURG EQUIP REP MAINT CLEANING,Surgery,KARL STORZ ENDOSCOPY (UK) LTD,321224,6310,
Department of Health,Salisbury NHS Foundation Trust,21-Dec-17,HEALTHCARE - NHS TRUSTS,Clinical Support,ROYAL UNITED HOSPITAL BATH NHS TRUST,10347558,79034.73,
Department of Health,Salisbury NHS Foundation Trust,15-Dec-17,ENERGY WATER - WATER MAINS,Corporate - ETS,BWBSL,8049619672,26828.23,
Department of Health,Salisbury NHS Foundation Trust,15-Dec-17,ENERGY WATER - SEWERAGE CHARGES,Corporate - ETS,BWBSL,8049619672,12098.22,
Department of Health,Salisbury NHS Foundation Trust,15-Dec-17,ENERGY WATER - ELECTRICITY,Corporate - ETS,SCOTTISH POWER,105258284,6771.32,
Department of Health,Salisbury NHS Foundation Trust,15-Dec-17,ENERGY WATER - ELECTRICITY,Corporate - ETS,SCOTTISH POWER,105258284,57723,
Department of Health,Salisbury NHS Foundation Trust,15-Dec-17,ENERGY WATER - ELECTRICITY,Corporate - ETS,SCOTTISH POWER,105258284,338.57,
Department of Health,Salisbury NHS Foundation Trust,15-Dec-17,ENERGY WATER - ELECTRICITY,Corporate - ETS,SCOTTISH POWER,105258284,11544.6,
Department of Health,Salisbury NHS Foundation Trust,08-Dec-17,ENERGY WATER - GAS MAINS,Corporate - ETS,CORONA ENERGY,12568963,7157.07,
Department of Health,Salisbury NHS Foundation Trust,08-Dec-17,ENERGY WATER - GAS MAINS,Corporate - ETS,CORONA ENERGY,12568963,62452.03,
Department of Health,Salisbury NHS Foundation Trust,08-Dec-17,ENERGY WATER - GAS MAINS,Corporate - ETS,CORONA ENERGY,12568963,357.85,
Department of Health,Salisbury NHS Foundation Trust,08-Dec-17,ENERGY WATER - GAS MAINS,Corporate - ETS,CORONA ENERGY,12568963,12490.41,
Department of Health,Salisbury NHS Foundation Trust,08-Dec-17,ETS UNITARY CHARGE,Corporate,SALISBURY HEALTHCARE FACILITIES LTD,389,309038.25,
Department of Health,Salisbury NHS Foundation Trust,21-Dec-17,M & S EQUIPELECTEQUIPINST - OTHER,Clinical Support,NHS LOGISTICS,1018185175,58.28,
Department of Health,Salisbury NHS Foundation Trust,21-Dec-17,SURGICAL INSTRUMENTS: GENERAL,Medicine,NHS LOGISTICS,1018185175,99.99,
Department of Health,Salisbury NHS Foundation Trust,21-Dec-17,DRESSINGS - PRE STERILE,Musculo-Skeletal,NHS LOGISTICS,1018185175,79.13,
Department of Health,Salisbury NHS Foundation Trust,21-Dec-17,BAGS SACKS - OTHER,Clinical Support,NHS LOGISTICS,1018185175,9.23,
Department of Health,Salisbury NHS Foundation Trust,21-Dec-17,BAGS SACKS - OTHER,Clinical Support,NHS LOGISTICS,1018185175,13.35,
Department of Health,Salisbury NHS Foundation Trust,21-Dec-17,ELECTRICAL EQUIPMENT x,Clinical Support,NHS LOGISTICS,1018185175,19.33,
Department of Health,Salisbury NHS Foundation Trust,21-Dec-17,LAB EQUIP-LABORATORY APPARATUS,Clinical Support,NHS LOGISTICS,1018185175,43.28,
Department of Health,Salisbury NHS Foundation Trust,21-Dec-17,TISSUES HAND TOWELS & TOILET PAPER,Clinical Support,NHS LOGISTICS,1018185175,21.3,
Department of Health,Salisbury NHS Foundation Trust,21-Dec-17,DRESSINGS - PRE STERILE,Musculo-Skeletal,NHS LOGISTICS,1018185175,47.6,
Department of Health,Salisbury NHS Foundation Trust,21-Dec-17,DRESSINGS - PRE STERILE,Musculo-Skeletal,NHS LOGISTICS,1018185175,50.3,
Department of Health,Salisbury NHS Foundation Trust,21-Dec-17,DRESSINGS - PRE STERILE,Musculo-Skeletal,NHS LOGISTICS,1018185175,67.07,
Department of Health,Salisbury NHS Foundation Trust,21-Dec-17,DRESSINGS - PRE STERILE,Musculo-Skeletal,NHS LOGISTICS,1018185175,26.65,
Department of Health,Salisbury NHS Foundation Trust,21-Dec-17,DRESSINGS - PRE STERILE,Musculo-Skeletal,NHS LOGISTICS,1018185175,29.07,
Department of Health,Salisbury NHS Foundation Trust,21-Dec-17,SURGICAL INSTRUMENTS: GENERAL,Surgery,NHS LOGISTICS,1018185175,110.91,
Department of Health,Salisbury NHS Foundation Trust,21-Dec-17,SURGICAL INSTRUMENTS: GENERAL,Surgery,NHS LOGISTICS,1018185175,115.98,
Department of Health,Salisbury NHS Foundation Trust,21-Dec-17,M & S EQUIPELECTEQUIPINST - OTHER,Surgery,NHS LOGISTICS,1018185175,114.58,
Department of Health,Salisbury NHS Foundation Trust,21-Dec-17,ADULTS HEARING AIDS,Surgery,NHS LOGISTICS,1018185175,707.5,
Department of Health,Salisbury NHS Foundation Trust,21-Dec-17,BAGS SACKS - OTHER,Clinical Support,NHS LOGISTICS,1018185175,2.85,
Department of Health,Salisbury NHS Foundation Trust,21-Dec-17,BAGS SACKS - OTHER,Clinical Support,NHS LOGISTICS,1018185175,11,
Department of Health,Salisbury NHS Foundation Trust,21-Dec-17,M & S EQUIPELECTEQUIPINST - OTHER,Clinical Support,NHS LOGISTICS,1018185175,371.13,
Department of Health,Salisbury NHS Foundation Trust,21-Dec-17,M & S EQUIPELECTEQUIPINST - OTHER,Surgery,NHS LOGISTICS,1018185175,26.88,
Department of Health,Salisbury NHS Foundation Trust,21-Dec-17,DRESSINGS - PRE STERILE,Musculo-Skeletal,NHS LOGISTICS,1018185175,158.27,
Department of Health,Salisbury NHS Foundation Trust,21-Dec-17,DISPOSABLE THEATRE DRAPES WIPES,Clinical Support,NHS LOGISTICS,1018185175,18,
Department of Health,Salisbury NHS Foundation Trust,21-Dec-17,DISPOSABLE THEATRE DRAPES WIPES,Clinical Support,NHS LOGISTICS,1018185175,70.8,
Department of Health,Salisbury NHS Foundation Trust,21-Dec-17,MEDSURGCONS - OTHER,Surgery,NHS LOGISTICS,1018185175,2.4,
Department of Health,Salisbury NHS Foundation Trust,21-Dec-17,CONTOUTSERVICES - WASTE DISPOSAL,Corporate - ETS,NHS LOGISTICS,1018185175,368.05,
Department of Health,Salisbury NHS Foundation Trust,21-Dec-17,COOKING & KITCHEN UTENSILS,Surgery,NHS LOGISTICS,1018185175,9.58,
Department of Health,Salisbury NHS Foundation Trust,21-Dec-17,M & S EQUIPELECTEQUIPINST - OTHER,Medicine,NHS LOGISTICS,1018185175,23.08,
Department of Health,Salisbury NHS Foundation Trust,21-Dec-17,PATIENT APPLIANCES,Clinical Support,NHS LOGISTICS,1018185175,283.37,
Department of Health,Salisbury NHS Foundation Trust,21-Dec-17,OTHER MEDICAL SUPPLIES,Corporate - Finance & Procurement,NHS LOGISTICS,1018185175,11.87,
Department of Health,Salisbury NHS Foundation Trust,21-Dec-17,DRESSINGS - PRE STERILE,Corporate - Finance & Procurement,NHS LOGISTICS,1018185175,58.2,
Department of Health,Salisbury NHS Foundation Trust,21-Dec-17,MEDSURGCONS - OTHER,Musculo-Skeletal,NHS LOGISTICS,1018185175,155.23,
Department of Health,Salisbury NHS Foundation Trust,21-Dec-17,MEDSURGCONS - OTHER,Musculo-Skeletal,NHS LOGISTICS,1018185175,155.23,
Department of Health,Salisbury NHS Foundation Trust,21-Dec-17,MEDSURGCONS - OTHER,Surgery,NHS LOGISTICS,1018185175,10.73,
Department of Health,Salisbury NHS Foundation Trust,21-Dec-17,MEDSURGCONS - OTHER,Surgery,NHS LOGISTICS,1018185175,4.88,
Department of Health,Salisbury NHS Foundation Trust,21-Dec-17,OTHER MEDICAL SUPPLIES,Surgery,NHS LOGISTICS,1018185175,10.72,
Department of Health,Salisbury NHS Foundation Trust,21-Dec-17,LAB REAGENTS - ANALYTICAL KITS,Clinical Support,NHS LOGISTICS,1018185175,318.3,
Department of Health,Salisbury NHS Foundation Trust,21-Dec-17,MEDSURGCONS - OTHER,Clinical Support,NHS LOGISTICS,1018185175,45.82,
Department of Health,Salisbury NHS Foundation Trust,21-Dec-17,DRESSINGS - PRE STERILE,Musculo-Skeletal,NHS LOGISTICS,1018185175,158.27,
Department of Health,Salisbury NHS Foundation Trust,21-Dec-17,MEDSURGCONS - OTHER,Surgery,NHS LOGISTICS,1018185175,38.62,
Department of Health,Salisbury NHS Foundation Trust,21-Dec-17,DRESSINGS - PRE STERILE,surgery,NHS LOGISTICS,1018185175,0.81,
Department of Health,Salisbury NHS Foundation Trust,21-Dec-17,MEDSURGCONS - OTHER,Surgery,NHS LOGISTICS,1018185175,72,
Department of Health,Salisbury NHS Foundation Trust,21-Dec-17,TOILETRIES PERSONAL HYGIENE PRODUCTS,Musculo-Skeletal,NHS LOGISTICS,1018185175,12.33,
Department of Health,Salisbury NHS Foundation Trust,21-Dec-17,DISPOSABLE THEATRE DRAPES WIPES,Musculo-Skeletal,NHS LOGISTICS,1018185175,3.55,
Department of Health,Salisbury NHS Foundation Trust,21-Dec-17,DISPOSABLE THEATRE DRAPES WIPES,Musculo-Skeletal,NHS LOGISTICS,1018185175,23.1,
Department of Health,Salisbury NHS Foundation Trust,21-Dec-17,MED SURG EQUIP REP MAINT CLEANING,Clinical Support,NHS LOGISTICS,1018185175,81.53,
Department of Health,Salisbury NHS Foundation Trust,21-Dec-17,MED SURG EQUIP REP MAINT CLEANING,Clinical Support,NHS LOGISTICS,1018185175,108.69,
Department of Health,Salisbury NHS Foundation Trust,21-Dec-17,MED SURG EQUIP REP MAINT CLEANING,Clinical Support,NHS LOGISTICS,1018185175,29.88,
Department of Health,Salisbury NHS Foundation Trust,21-Dec-17,TISSUES HAND TOWELS & TOILET PAPER,Clinical Support,NHS LOGISTICS,1018185175,3.92,
Department of Health,Salisbury NHS Foundation Trust,21-Dec-17,HEALTHCARE - WEAR,Clinical Support,NHS LOGISTICS,1018185175,23.75,
Department of Health,Salisbury NHS Foundation Trust,21-Dec-17,DRESSINGS - PRE STERILE,Musculo-Skeletal,NHS LOGISTICS,1018185175,41.51,
Department of Health,Salisbury NHS Foundation Trust,21-Dec-17,CLEANING MATERIALS PRODUCTS SUNDRIES,Facilities,NHS LOGISTICS,1018185175,15.9,
Department of Health,Salisbury NHS Foundation Trust,21-Dec-17,CLEANING MATERIALS PRODUCTS SUNDRIES,Facilities,NHS LOGISTICS,1018185175,10.28,
Department of Health,Salisbury NHS Foundation Trust,21-Dec-17,MEDSURGCONS - OTHER,Medical,NHS LOGISTICS,1018185175,175,
Department of Health,Salisbury NHS Foundation Trust,21-Dec-17,DRUGS,Medical,NHS LOGISTICS,1018185175,23.15,
Department of Health,Salisbury NHS Foundation Trust,21-Dec-17,PATIENT APPLIANCES,Medical,NHS LOGISTICS,1018185175,67,
Department of Health,Salisbury NHS Foundation Trust,21-Dec-17,DISPOSABLE THEATRE DRAPES WIPES,Medical,NHS LOGISTICS,1018185175,7.1,
Department of Health,Salisbury NHS Foundation Trust,21-Dec-17,TISSUES HAND TOWELS & TOILET PAPER,Medicine,NHS LOGISTICS,1018185175,2.48,
Department of Health,Salisbury NHS Foundation Trust,21-Dec-17,MEDSURGCONS - OTHER,Medicine,NHS LOGISTICS,1018185175,42.92,
Department of Health,Salisbury NHS Foundation Trust,21-Dec-17,OTHER MEDICAL SUPPLIES,Medicine,NHS LOGISTICS,1018185175,1.88,
Department of Health,Salisbury NHS Foundation Trust,21-Dec-17,PATIENT APPLIANCES,Medicine,NHS LOGISTICS,1018185175,3.35,
Department of Health,Salisbury NHS Foundation Trust,21-Dec-17,PATIENT APPLIANCES,Medicine,NHS LOGISTICS,1018185175,3.35,
Department of Health,Salisbury NHS Foundation Trust,21-Dec-17,TISSUES HAND TOWELS & TOILET PAPER,Medicine,NHS LOGISTICS,1018185175,0.7,
Department of Health,Salisbury NHS Foundation Trust,21-Dec-17,DISPOSABLE THEATRE DRAPES WIPES,Medicine,NHS LOGISTICS,1018185175,3.55,
Department of Health,Salisbury NHS Foundation Trust,21-Dec-17,BEVERAGES & AMBIENT FOOD,Medicine,NHS LOGISTICS,1018185175,9.44,
Department of Health,Salisbury NHS Foundation Trust,21-Dec-17,BAGS SACKS - OTHER,Facilities,NHS LOGISTICS,1018185175,7.58,
Department of Health,Salisbury NHS Foundation Trust,21-Dec-17,BAGS SACKS - OTHER,Facilities,NHS LOGISTICS,1018185175,100.33,
Department of Health,Salisbury NHS Foundation Trust,21-Dec-17,LIQUID REFRESHMENTS,Facilities,NHS LOGISTICS,1018185175,7.82,
Department of Health,Salisbury NHS Foundation Trust,21-Dec-17,CLEANING MATERIALS PRODUCTS SUNDRIES,Facilities,NHS LOGISTICS,1018185175,49.6,
Department of Health,Salisbury NHS Foundation Trust,21-Dec-17,CLEANING MATERIALS PRODUCTS SUNDRIES,Facilities,NHS LOGISTICS,1018185175,13.75,
Department of Health,Salisbury NHS Foundation Trust,21-Dec-17,DISPOSABLE THEATRE DRAPES WIPES,Facilities,NHS LOGISTICS,1018185175,283.2,
Department of Health,Salisbury NHS Foundation Trust,21-Dec-17,CLEANING MATERIALS PRODUCTS SUNDRIES,Facilities,NHS LOGISTICS,1018185175,25.5,
Department of Health,Salisbury NHS Foundation Trust,21-Dec-17,BAGS SACKS - OTHER,Facilities,NHS LOGISTICS,1018185175,59.07,
Department of Health,Salisbury NHS Foundation Trust,21-Dec-17,CLEANING MATERIALS PRODUCTS SUNDRIES,Facilities,NHS LOGISTICS,1018185175,56.8,
Department of Health,Salisbury NHS Foundation Trust,21-Dec-17,DISPOSABLE THEATRE DRAPES WIPES,Facilities,NHS LOGISTICS,1018185175,91.2,
Department of Health,Salisbury NHS Foundation Trust,21-Dec-17,TISSUES HAND TOWELS & TOILET PAPER,Medicine,NHS LOGISTICS,1018185175,1.24,
Department of Health,Salisbury NHS Foundation Trust,21-Dec-17,CLEANING MATERIALS PRODUCTS SUNDRIES,Medicine,NHS LOGISTICS,1018185175,5.45,
Department of Health,Salisbury NHS Foundation Trust,21-Dec-17,CLEANING MATERIALS PRODUCTS SUNDRIES,Medicine,NHS LOGISTICS,1018185175,5.53,
Department of Health,Salisbury NHS Foundation Trust,21-Dec-17,MEDSURGCONS - OTHER,Medicine,NHS LOGISTICS,1018185175,42.92,
Department of Health,Salisbury NHS Foundation Trust,21-Dec-17,OTHER MEDICAL SUPPLIES,Medicine,NHS LOGISTICS,1018185175,1.88,
Department of Health,Salisbury NHS Foundation Trust,21-Dec-17,PATIENT APPLIANCES,Medicine,NHS LOGISTICS,1018185175,3.35,
Department of Health,Salisbury NHS Foundation Trust,21-Dec-17,TISSUES HAND TOWELS & TOILET PAPER,Medicine,NHS LOGISTICS,1018185175,0.35,
Department of Health,Salisbury NHS Foundation Trust,21-Dec-17,TOILETRIES PERSONAL HYGIENE PRODUCTS,Medicine,NHS LOGISTICS,1018185175,4.13,
Department of Health,Salisbury NHS Foundation Trust,21-Dec-17,DRESSINGS - PRE STERILE,Musculo-Skeletal,NHS LOGISTICS,1018185175,22.5,
Department of Health,Salisbury NHS Foundation Trust,21-Dec-17,TISSUES HAND TOWELS & TOILET PAPER,Musculo-Skeletal,NHS LOGISTICS,1018185175,2.48,
Department of Health,Salisbury NHS Foundation Trust,21-Dec-17,MEDSURGCONS - OTHER,Musculo-Skeletal,NHS LOGISTICS,1018185175,9.77,
Department of Health,Salisbury NHS Foundation Trust,21-Dec-17,PATIENT APPLIANCES,Clinical Support,NHS LOGISTICS,1018185175,30,
Department of Health,Salisbury NHS Foundation Trust,21-Dec-17,LAB EQUIP-LABORATORY APPARATUS,Clinical Support,NHS LOGISTICS,1018185175,12.62,
Department of Health,Salisbury NHS Foundation Trust,21-Dec-17,LAB EQUIP-LABORATORY APPARATUS,Clinical Support,NHS LOGISTICS,1018185175,356,
Department of Health,Salisbury NHS Foundation Trust,21-Dec-17,LAB EQUIP-ANALYSERS,Clinical Support,NHS LOGISTICS,1018185175,38.1,
Department of Health,Salisbury NHS Foundation Trust,21-Dec-17,LAB EQUIP-LABORATORY APPARATUS,Clinical Support,NHS LOGISTICS,1018185175,25.83,
Department of Health,Salisbury NHS Foundation Trust,21-Dec-17,LAB EQUIP-LABORATORY APPARATUS,Clinical Support,NHS LOGISTICS,1018185175,748.67,
Department of Health,Salisbury NHS Foundation Trust,21-Dec-17,LAB EQUIP-LABORATORY APPARATUS,Clinical Support,NHS LOGISTICS,1018185175,12.83,
Department of Health,Salisbury NHS Foundation Trust,21-Dec-17,LAB EQUIP-LABORATORY APPARATUS,Clinical Support,NHS LOGISTICS,1018185175,62.08,
Department of Health,Salisbury NHS Foundation Trust,21-Dec-17,COOKING & KITCHEN UTENSILS,Clinical Support,NHS LOGISTICS,1018185175,2.53,
Department of Health,Salisbury NHS Foundation Trust,21-Dec-17,LAB EQUIP-LABORATORY APPARATUS,Clinical Support,NHS LOGISTICS,1018185175,3.15,
Department of Health,Salisbury NHS Foundation Trust,21-Dec-17,LAB EQUIP-LABORATORY APPARATUS,Clinical Support,NHS LOGISTICS,1018185175,73.2,
Department of Health,Salisbury NHS Foundation Trust,21-Dec-17,OTHER MEDICAL SUPPLIES,Clinical Support,NHS LOGISTICS,1018185175,455,
Department of Health,Salisbury NHS Foundation Trust,21-Dec-17,MEDSURGCONS - OTHER,Medicine,NHS LOGISTICS,1018185175,276.83,
Department of Health,Salisbury NHS Foundation Trust,21-Dec-17,BEVERAGES & AMBIENT FOOD,Surgery,NHS LOGISTICS,1018185175,57.36,
Department of Health,Salisbury NHS Foundation Trust,21-Dec-17,BEVERAGES & AMBIENT FOOD,Surgery,NHS LOGISTICS,1018185175,3.48,
Department of Health,Salisbury NHS Foundation Trust,21-Dec-17,PATIENT APPLIANCES,Medicine,NHS LOGISTICS,1018185175,31.57,
Department of Health,Salisbury NHS Foundation Trust,21-Dec-17,LAB REAGENTS-BUFFERS COMPUND SOLNS,Clinical Support,NHS LOGISTICS,1018185175,1213.33,
Department of Health,Salisbury NHS Foundation Trust,21-Dec-17,SURGICAL INSTRUMENTS: GENERAL,Medicine,NHS LOGISTICS,1018185175,99.99,
Department of Health,Salisbury NHS Foundation Trust,21-Dec-17,TISSUES HAND TOWELS & TOILET PAPER,Medicine,NHS LOGISTICS,1018185175,1.24,
Department of Health,Salisbury NHS Foundation Trust,21-Dec-17,MEDSURGCONS - OTHER,Medicine,NHS LOGISTICS,1018185175,9.77,
Department of Health,Salisbury NHS Foundation Trust,21-Dec-17,DISPOSABLE THEATRE DRAPES WIPES,Medicine,NHS LOGISTICS,1018185175,3.55,
Department of Health,Salisbury NHS Foundation Trust,21-Dec-17,SURGICAL INSTRUMENTS: DISPOSABLE,Medicine,NHS LOGISTICS,1018185175,25.53,
Department of Health,Salisbury NHS Foundation Trust,21-Dec-17,DRESSINGS - PRE STERILE,Medicine,NHS LOGISTICS,1018185175,2.3,
Department of Health,Salisbury NHS Foundation Trust,21-Dec-17,DRESSINGS - PRE STERILE,Medicine,NHS LOGISTICS,1018185175,5.77,
Department of Health,Salisbury NHS Foundation Trust,21-Dec-17,DRESSINGS - PRE STERILE,Medicine,NHS LOGISTICS,1018185175,14.12,
Department of Health,Salisbury NHS Foundation Trust,21-Dec-17,SURGICAL INSTRUMENTS: DISPOSABLE,Medicine,NHS LOGISTICS,1018185175,12,
Department of Health,Salisbury NHS Foundation Trust,21-Dec-17,DRESSINGS - PRE STERILE,Surgery,NHS LOGISTICS,1018185175,588.87,
Department of Health,Salisbury NHS Foundation Trust,21-Dec-17,COOKING & KITCHEN UTENSILS,Surgery,NHS LOGISTICS,1018185175,20.38,
Department of Health,Salisbury NHS Foundation Trust,21-Dec-17,DRESSINGS - PRE STERILE,Surgery,NHS LOGISTICS,1018185175,9.39,
Department of Health,Salisbury NHS Foundation Trust,21-Dec-17,DRESSINGS - PRE STERILE,Surgery,NHS LOGISTICS,1018185175,4.98,
Department of Health,Salisbury NHS Foundation Trust,21-Dec-17,MEDSURGCONS - OTHER,Surgery,NHS LOGISTICS,1018185175,24.42,
Department of Health,Salisbury NHS Foundation Trust,21-Dec-17,MEDSURGCONS - OTHER,Surgery,NHS LOGISTICS,1018185175,24.42,
Department of Health,Salisbury NHS Foundation Trust,21-Dec-17,OTHER MEDICAL SUPPLIES,Surgery,NHS LOGISTICS,1018185175,43.69,
Department of Health,Salisbury NHS Foundation Trust,21-Dec-17,OTHER MEDICAL SUPPLIES,Surgery,NHS LOGISTICS,1018185175,49.78,
Department of Health,Salisbury NHS Foundation Trust,21-Dec-17,OTHER MEDICAL SUPPLIES,Surgery,NHS LOGISTICS,1018185175,43.69,
Department of Health,Salisbury NHS Foundation Trust,21-Dec-17,M & S EQUIPELECTEQUIPINST - OTHER,Surgery,NHS LOGISTICS,1018185175,14.08,
Department of Health,Salisbury NHS Foundation Trust,21-Dec-17,TISSUES HAND TOWELS & TOILET PAPER,Clinical Support,NHS LOGISTICS,1018185175,42.6,
Department of Health,Salisbury NHS Foundation Trust,21-Dec-17,MEDSURGCONS - OTHER,Clinical Support,NHS LOGISTICS,1018185175,84.84,
Department of Health,Salisbury NHS Foundation Trust,21-Dec-17,MEDSURGCONS-LAPAROSCOPIC EQUIPMENT,Surgery,NHS LOGISTICS,1018185175,167.01,
Department of Health,Salisbury NHS Foundation Trust,21-Dec-17,OTHER MEDICAL SUPPLIES,Medicine,NHS LOGISTICS,1018185175,602.5,
Department of Health,Salisbury NHS Foundation Trust,21-Dec-17,DRESSINGS - PRE STERILE,Medicine,NHS LOGISTICS,1018185175,4.98,
Department of Health,Salisbury NHS Foundation Trust,21-Dec-17,MEDSURGCONS - OTHER,Medicine,NHS LOGISTICS,1018185175,24.42,
Department of Health,Salisbury NHS Foundation Trust,21-Dec-17,TISSUES HAND TOWELS & TOILET PAPER,Medicine,NHS LOGISTICS,1018185175,1.17,
Department of Health,Salisbury NHS Foundation Trust,21-Dec-17,TISSUES HAND TOWELS & TOILET PAPER,Medicine,NHS LOGISTICS,1018185175,0.35,
Department of Health,Salisbury NHS Foundation Trust,21-Dec-17,DISPOSABLE THEATRE DRAPES WIPES,Medicine,NHS LOGISTICS,1018185175,10.65,
Department of Health,Salisbury NHS Foundation Trust,21-Dec-17,DISPOSABLE THEATRE DRAPES WIPES,Medicine,NHS LOGISTICS,1018185175,3.29,
Department of Health,Salisbury NHS Foundation Trust,21-Dec-17,M & S EQUIPELECTEQUIPINST - OTHER,Clinical Support,NHS LOGISTICS,1018185175,41.23,
Department of Health,Salisbury NHS Foundation Trust,21-Dec-17,DRESSINGS - PRE STERILE,Medicine,NHS LOGISTICS,1018185175,242.27,
Department of Health,Salisbury NHS Foundation Trust,21-Dec-17,PATIENTS BABY WEAR,Medicine,NHS LOGISTICS,1018185175,32.13,
Department of Health,Salisbury NHS Foundation Trust,21-Dec-17,PATIENTS BABY WEAR,Medicine,NHS LOGISTICS,1018185175,14.33,
Department of Health,Salisbury NHS Foundation Trust,21-Dec-17,TISSUES HAND TOWELS & TOILET PAPER,Medicine,NHS LOGISTICS,1018185175,1.24,
Department of Health,Salisbury NHS Foundation Trust,21-Dec-17,DRESSINGS - PRE STERILE,Medicine,NHS LOGISTICS,1018185175,4.98,
Department of Health,Salisbury NHS Foundation Trust,21-Dec-17,MEDSURGCONS - OTHER,Medicine,NHS LOGISTICS,1018185175,4.88,
Department of Health,Salisbury NHS Foundation Trust,21-Dec-17,MEDSURGCONS - OTHER,Medicine,NHS LOGISTICS,1018185175,85.83,
Department of Health,Salisbury NHS Foundation Trust,21-Dec-17,TUBES,Medicine,NHS LOGISTICS,1018185175,6.85,
Department of Health,Salisbury NHS Foundation Trust,21-Dec-17,ANAESTHETIC EQUIPMENT ACCESSORIES,Medicine,NHS LOGISTICS,1018185175,3.75,
Department of Health,Salisbury NHS Foundation Trust,21-Dec-17,OTHER MEDICAL SUPPLIES,Medicine,NHS LOGISTICS,1018185175,3.77,
Department of Health,Salisbury NHS Foundation Trust,21-Dec-17,PATIENT APPLIANCES,Medicine,NHS LOGISTICS,1018185175,3.35,
Department of Health,Salisbury NHS Foundation Trust,21-Dec-17,PATIENT APPLIANCES,Medicine,NHS LOGISTICS,1018185175,6.7,
Department of Health,Salisbury NHS Foundation Trust,21-Dec-17,MEDSURGCONS - OTHER,Medicine,NHS LOGISTICS,1018185175,6.82,
Department of Health,Salisbury NHS Foundation Trust,21-Dec-17,DISPOSABLE THEATRE DRAPES WIPES,Medicine,NHS LOGISTICS,1018185175,3.55,
Department of Health,Salisbury NHS Foundation Trust,21-Dec-17,LAB EQUIP-ANALYSERS,Corporate - Finance & Procurement,NHS LOGISTICS,1018185175,120,
Department of Health,Salisbury NHS Foundation Trust,21-Dec-17,COOKING & KITCHEN UTENSILS,Corporate - Finance & Procurement,NHS LOGISTICS,1018185175,185,
Department of Health,Salisbury NHS Foundation Trust,21-Dec-17,COOKING & KITCHEN UTENSILS,Corporate - Finance & Procurement,NHS LOGISTICS,1018185175,44.29,
Department of Health,Salisbury NHS Foundation Trust,21-Dec-17,TUBES,Corporate - Finance & Procurement,NHS LOGISTICS,1018185175,71.67,
Department of Health,Salisbury NHS Foundation Trust,21-Dec-17,PATIENTS FOOTWEAR,Corporate - Finance & Procurement,NHS LOGISTICS,1018185175,51.92,
Department of Health,Salisbury NHS Foundation Trust,21-Dec-17,PATIENTS FOOTWEAR,Corporate - Finance & Procurement,NHS LOGISTICS,1018185175,64.98,
Department of Health,Salisbury NHS Foundation Trust,21-Dec-17,MEDSURGCONS - OTHER,Surgery,NHS LOGISTICS,1018185175,24.42,
Department of Health,Salisbury NHS Foundation Trust,21-Dec-17,DRESSINGS - PRE STERILE,Surgery,NHS LOGISTICS,1018185175,49.27,
Department of Health,Salisbury NHS Foundation Trust,21-Dec-17,MED SURG EQUIP REP MAINT CLEANING,Clinical Support,NHS LOGISTICS,1018185175,218.55,
Department of Health,Salisbury NHS Foundation Trust,21-Dec-17,M & S EQUIPELECTEQUIPINST - OTHER,Clinical Support,NHS LOGISTICS,1018185175,128.87,
Department of Health,Salisbury NHS Foundation Trust,21-Dec-17,M & S EQUIPELECTEQUIPINST - OTHER,Clinical Support,NHS LOGISTICS,1018185175,169.79,
Department of Health,Salisbury NHS Foundation Trust,21-Dec-17,M & S EQUIPELECTEQUIPINST - OTHER,Clinical Support,NHS LOGISTICS,1018185175,434.02,
Department of Health,Salisbury NHS Foundation Trust,21-Dec-17,TISSUES HAND TOWELS & TOILET PAPER,Clinical Support,NHS LOGISTICS,1018185175,1.24,
Department of Health,Salisbury NHS Foundation Trust,21-Dec-17,DRESSINGS - PRE STERILE,Clinical Support,NHS LOGISTICS,1018185175,14,
Department of Health,Salisbury NHS Foundation Trust,21-Dec-17,MEDSURGCONS - OTHER,Clinical Support,NHS LOGISTICS,1018185175,14.65,
Department of Health,Salisbury NHS Foundation Trust,21-Dec-17,TISSUES HAND TOWELS & TOILET PAPER,Clinical Support,NHS LOGISTICS,1018185175,0.78,
Department of Health,Salisbury NHS Foundation Trust,21-Dec-17,OTHER MEDICAL SUPPLIES,Clinical Support,NHS LOGISTICS,1018185175,6.84,
Department of Health,Salisbury NHS Foundation Trust,21-Dec-17,OTHER MEDICAL SUPPLIES,Clinical Support,NHS LOGISTICS,1018185175,1.88,
Department of Health,Salisbury NHS Foundation Trust,21-Dec-17,DRESSINGS - PRE STERILE,Clinical Support,NHS LOGISTICS,1018185175,11.08,
Department of Health,Salisbury NHS Foundation Trust,21-Dec-17,OTHER MEDICAL SUPPLIES,Clinical Support,NHS LOGISTICS,1018185175,149.93,
Department of Health,Salisbury NHS Foundation Trust,21-Dec-17,MEDSURGCONS - OTHER,Clinical Support,NHS LOGISTICS,1018185175,34.79,
Department of Health,Salisbury NHS Foundation Trust,21-Dec-17,TISSUES HAND TOWELS & TOILET PAPER,Clinical Support,NHS LOGISTICS,1018185175,31.95,
Department of Health,Salisbury NHS Foundation Trust,21-Dec-17,TUBES,Clinical Support,NHS LOGISTICS,1018185175,6.85,
Department of Health,Salisbury NHS Foundation Trust,21-Dec-17,DRESSINGS - PRE STERILE,Clinical Support,NHS LOGISTICS,1018185175,6.65,
Department of Health,Salisbury NHS Foundation Trust,21-Dec-17,NON DISPOSABLE BED LINEN,Clinical Support,NHS LOGISTICS,1018185175,5.92,
Department of Health,Salisbury NHS Foundation Trust,21-Dec-17,CLEANING MATERIALS PRODUCTS SUNDRIES,Medicine,NHS LOGISTICS,1018185175,5.53,
Department of Health,Salisbury NHS Foundation Trust,21-Dec-17,MEDSURGCONS - OTHER,Clinical Support,NHS LOGISTICS,1018185175,349.75,
Department of Health,Salisbury NHS Foundation Trust,21-Dec-17,PATIENT APPLIANCES,Medicine,NHS LOGISTICS,1018185175,63.13,
Department of Health,Salisbury NHS Foundation Trust,21-Dec-17,OTHER MEDICAL SUPPLIES,Medicine,NHS LOGISTICS,1018185175,157.89,
Department of Health,Salisbury NHS Foundation Trust,21-Dec-17,DRESSINGS - PRE STERILE,Medicine,NHS LOGISTICS,1018185175,69.28,
Department of Health,Salisbury NHS Foundation Trust,21-Dec-17,DRESSINGS - PRE STERILE,Medicine,NHS LOGISTICS,1018185175,3.29,
Department of Health,Salisbury NHS Foundation Trust,21-Dec-17,DRESSINGS - PRE STERILE,Medicine,NHS LOGISTICS,1018185175,5.96,
Department of Health,Salisbury NHS Foundation Trust,21-Dec-17,PATIENT APPLIANCES,Medicine,NHS LOGISTICS,1018185175,10.68,
Department of Health,Salisbury NHS Foundation Trust,21-Dec-17,PATIENT APPLIANCES,Medicine,NHS LOGISTICS,1018185175,5.34,
Department of Health,Salisbury NHS Foundation Trust,21-Dec-17,CLEANING MATERIALS PRODUCTS SUNDRIES,Medicine,NHS LOGISTICS,1018185175,5.45,
Department of Health,Salisbury NHS Foundation Trust,21-Dec-17,DRESSINGS - PRE STERILE,Medicine,NHS LOGISTICS,1018185175,42,
Department of Health,Salisbury NHS Foundation Trust,21-Dec-17,MEDSURGCONS - OTHER,Medicine,NHS LOGISTICS,1018185175,19.53,
Department of Health,Salisbury NHS Foundation Trust,21-Dec-17,MEDSURGCONS - OTHER,Medicine,NHS LOGISTICS,1018185175,42.92,
Department of Health,Salisbury NHS Foundation Trust,21-Dec-17,ANAESTHETIC EQUIPMENT ACCESSORIES,Medicine,NHS LOGISTICS,1018185175,3.45,
Department of Health,Salisbury NHS Foundation Trust,21-Dec-17,TUBES,Medicine,NHS LOGISTICS,1018185175,13.7,
Department of Health,Salisbury NHS Foundation Trust,21-Dec-17,OTHER MEDICAL SUPPLIES,Medicine,NHS LOGISTICS,1018185175,7.63,
Department of Health,Salisbury NHS Foundation Trust,21-Dec-17,MEDSURGCONS - OTHER,Medicine,NHS LOGISTICS,1018185175,2.14,
Department of Health,Salisbury NHS Foundation Trust,21-Dec-17,PATIENT APPLIANCES,Medicine,NHS LOGISTICS,1018185175,20.13,
Department of Health,Salisbury NHS Foundation Trust,21-Dec-17,PATIENT APPLIANCES,Medicine,NHS LOGISTICS,1018185175,16.1,
Department of Health,Salisbury NHS Foundation Trust,21-Dec-17,PATIENT APPLIANCES,Medicine,NHS LOGISTICS,1018185175,12.08,
Department of Health,Salisbury NHS Foundation Trust,21-Dec-17,PATIENT APPLIANCES,Medicine,NHS LOGISTICS,1018185175,4.03,
Department of Health,Salisbury NHS Foundation Trust,21-Dec-17,PATIENT APPLIANCES,Medicine,NHS LOGISTICS,1018185175,8.05,
Department of Health,Salisbury NHS Foundation Trust,21-Dec-17,PATIENT APPLIANCES,Medicine,NHS LOGISTICS,1018185175,8.05,
Department of Health,Salisbury NHS Foundation Trust,21-Dec-17,ANAESTHETIC EQUIPMENT ACCESSORIES,Medicine,NHS LOGISTICS,1018185175,6.25,
Department of Health,Salisbury NHS Foundation Trust,21-Dec-17,OTHER MEDICAL SUPPLIES,Medicine,NHS LOGISTICS,1018185175,5.65,
Department of Health,Salisbury NHS Foundation Trust,21-Dec-17,SERVICES FROM NHS BODIES,Medicine,NHS LOGISTICS,1018185175,4.44,
Department of Health,Salisbury NHS Foundation Trust,21-Dec-17,MEDSURGCONS - OTHER,Medicine,NHS LOGISTICS,1018185175,13.29,
Department of Health,Salisbury NHS Foundation Trust,21-Dec-17,DISPOSABLE THEATRE DRAPES WIPES,Medicine,NHS LOGISTICS,1018185175,10.65,
Department of Health,Salisbury NHS Foundation Trust,21-Dec-17,MEDSURGCONS - OTHER,Medicine,NHS LOGISTICS,1018185175,1.57,
Department of Health,Salisbury NHS Foundation Trust,21-Dec-17,MEDSURGCONS - OTHER,Clinical Support,NHS LOGISTICS,1018185175,4.88,
Department of Health,Salisbury NHS Foundation Trust,21-Dec-17,DRESSINGS - PRE STERILE,Clinical Support,NHS LOGISTICS,1018185175,25.49,
Department of Health,Salisbury NHS Foundation Trust,21-Dec-17,PATIENT APPLIANCES,Clinical Support,NHS LOGISTICS,1018185175,4.32,
Department of Health,Salisbury NHS Foundation Trust,21-Dec-17,DRESSINGS - PRE STERILE,Surgery,NHS LOGISTICS,1018185175,17.42,
Department of Health,Salisbury NHS Foundation Trust,21-Dec-17,DISPOSABLE THEATRE DRAPES WIPES,Surgery,NHS LOGISTICS,1018185175,35.4,
Department of Health,Salisbury NHS Foundation Trust,21-Dec-17,DISPOSABLE THEATRE DRAPES WIPES,Surgery,NHS LOGISTICS,1018185175,7.1,
Department of Health,Salisbury NHS Foundation Trust,21-Dec-17,MEDSURGCONS - OTHER,Surgery,NHS LOGISTICS,1018185175,4.8,
Department of Health,Salisbury NHS Foundation Trust,21-Dec-17,DISPOSABLE THEATRE DRAPES WIPES,Surgery,NHS LOGISTICS,1018185175,1.87,
Department of Health,Salisbury NHS Foundation Trust,21-Dec-17,DRESSINGS - PRE STERILE,Surgery,NHS LOGISTICS,1018185175,14,
Department of Health,Salisbury NHS Foundation Trust,21-Dec-17,DISPOSABLE THEATRE DRAPES WIPES,Surgery,NHS LOGISTICS,1018185175,6,
Department of Health,Salisbury NHS Foundation Trust,21-Dec-17,MEDSURGCONS - OTHER,Surgery,NHS LOGISTICS,1018185175,43.95,
Department of Health,Salisbury NHS Foundation Trust,21-Dec-17,MEDSURGCONS - OTHER,Surgery,NHS LOGISTICS,1018185175,6.82,
Department of Health,Salisbury NHS Foundation Trust,21-Dec-17,SURGICAL INSTRUMENTS: GENERAL,Surgery,NHS LOGISTICS,1018185175,7.5,
Department of Health,Salisbury NHS Foundation Trust,21-Dec-17,DRUGS,Surgery,NHS LOGISTICS,1018185175,9.35,
Department of Health,Salisbury NHS Foundation Trust,21-Dec-17,OTHER MEDICAL SUPPLIES,Surgery,NHS LOGISTICS,1018185175,3.77,
Department of Health,Salisbury NHS Foundation Trust,21-Dec-17,DRUGS,Surgery,NHS LOGISTICS,1018185175,7.03,
Department of Health,Salisbury NHS Foundation Trust,21-Dec-17,BEVERAGES & AMBIENT FOOD,Surgery,NHS LOGISTICS,1018185175,14.34,
Department of Health,Salisbury NHS Foundation Trust,21-Dec-17,OTHER MEDICAL SUPPLIES,Surgery,NHS LOGISTICS,1018185175,5.71,
Department of Health,Salisbury NHS Foundation Trust,21-Dec-17,OTHER MEDICAL SUPPLIES,Surgery,NHS LOGISTICS,1018185175,5.71,
Department of Health,Salisbury NHS Foundation Trust,21-Dec-17,SERVICES FROM NHS BODIES,Surgery,NHS LOGISTICS,1018185175,4.44,
Department of Health,Salisbury NHS Foundation Trust,21-Dec-17,PATIENT APPLIANCES,Surgery,NHS LOGISTICS,1018185175,3.24,
Department of Health,Salisbury NHS Foundation Trust,21-Dec-17,TOILETRIES PERSONAL HYGIENE PRODUCTS,Medicine,NHS LOGISTICS,1018185175,18,
Department of Health,Salisbury NHS Foundation Trust,21-Dec-17,ANAESTHETIC EQUIPMENT ACCESSORIES,Musculo-Skeletal,NHS LOGISTICS,1018185175,34.09,
Department of Health,Salisbury NHS Foundation Trust,21-Dec-17,ANAESTHETIC EQUIPMENT ACCESSORIES,Musculo-Skeletal,NHS LOGISTICS,1018185175,34.38,
Department of Health,Salisbury NHS Foundation Trust,21-Dec-17,OTHER MEDICAL SUPPLIES,Musculo-Skeletal,NHS LOGISTICS,1018185175,94.45,
Department of Health,Salisbury NHS Foundation Trust,21-Dec-17,OTHER MEDICAL SUPPLIES,Musculo-Skeletal,NHS LOGISTICS,1018185175,58.33,
Department of Health,Salisbury NHS Foundation Trust,21-Dec-17,OTHER MEDICAL SUPPLIES,Musculo-Skeletal,NHS LOGISTICS,1018185175,58.33,
Department of Health,Salisbury NHS Foundation Trust,21-Dec-17,OTHER MEDICAL SUPPLIES,Musculo-Skeletal,NHS LOGISTICS,1018185175,53.33,
Department of Health,Salisbury NHS Foundation Trust,21-Dec-17,OTHER MEDICAL SUPPLIES,Musculo-Skeletal,NHS LOGISTICS,1018185175,53.33,
Department of Health,Salisbury NHS Foundation Trust,21-Dec-17,OTHER MEDICAL SUPPLIES,Musculo-Skeletal,NHS LOGISTICS,1018185175,78.65,
Department of Health,Salisbury NHS Foundation Trust,21-Dec-17,M & S EQUIPELECTEQUIPINST - OTHER,Surgery,NHS LOGISTICS,1018185175,51.28,
Department of Health,Salisbury NHS Foundation Trust,21-Dec-17,ANAESTHETIC EQUIPMENT ACCESSORIES,Medicine,NHS LOGISTICS,1018185175,56.83,
Department of Health,Salisbury NHS Foundation Trust,21-Dec-17,ADULTS HEARING AIDS,Surgery,NHS LOGISTICS,1018185175,1067.83,
Department of Health,Salisbury NHS Foundation Trust,21-Dec-17,ADULTS HEARING AIDS,Surgery,NHS LOGISTICS,1018185175,2135.67,
Department of Health,Salisbury NHS Foundation Trust,21-Dec-17,ADULTS HEARING AIDS,Surgery,NHS LOGISTICS,1018185175,3203.5,
Department of Health,Salisbury NHS Foundation Trust,21-Dec-17,ADULTS HEARING AIDS,Surgery,NHS LOGISTICS,1018185175,872.67,
Department of Health,Salisbury NHS Foundation Trust,21-Dec-17,ADULTS HEARING AIDS,Surgery,NHS LOGISTICS,1018185175,88.5,
Department of Health,Salisbury NHS Foundation Trust,21-Dec-17,CLEANING MATERIALS PRODUCTS SUNDRIES,Facilities,NHS LOGISTICS,1018185175,22.93,
Department of Health,Salisbury NHS Foundation Trust,21-Dec-17,CLEANING MATERIALS PRODUCTS SUNDRIES,Facilities,NHS LOGISTICS,1018185175,49.93,
Department of Health,Salisbury NHS Foundation Trust,21-Dec-17,BAGS SACKS - OTHER,Facilities,NHS LOGISTICS,1018185175,17.9,
Department of Health,Salisbury NHS Foundation Trust,21-Dec-17,DRESSINGS - PRE STERILE,Medicine,NHS LOGISTICS,1018185175,14,
Department of Health,Salisbury NHS Foundation Trust,21-Dec-17,MEDSURGCONS - OTHER,Medicine,NHS LOGISTICS,1018185175,42.92,
Department of Health,Salisbury NHS Foundation Trust,21-Dec-17,SURGICAL INSTRUMENTS: GENERAL,Medicine,NHS LOGISTICS,1018185175,9.83,
Department of Health,Salisbury NHS Foundation Trust,21-Dec-17,OTHER MEDICAL SUPPLIES,Medicine,NHS LOGISTICS,1018185175,3.77,
Department of Health,Salisbury NHS Foundation Trust,21-Dec-17,TISSUES HAND TOWELS & TOILET PAPER,Medicine,NHS LOGISTICS,1018185175,1.75,
Department of Health,Salisbury NHS Foundation Trust,21-Dec-17,DISPOSABLE THEATRE DRAPES WIPES,Medicine,NHS LOGISTICS,1018185175,7.1,
Department of Health,Salisbury NHS Foundation Trust,21-Dec-17,TOILETRIES PERSONAL HYGIENE PRODUCTS,Medicine,NHS LOGISTICS,1018185175,3.08,
Department of Health,Salisbury NHS Foundation Trust,21-Dec-17,TISSUES HAND TOWELS & TOILET PAPER,Medicine,NHS LOGISTICS,1018185175,1.24,
Department of Health,Salisbury NHS Foundation Trust,21-Dec-17,DRESSINGS - PRE STERILE,Medicine,NHS LOGISTICS,1018185175,4.98,
Department of Health,Salisbury NHS Foundation Trust,21-Dec-17,MEDSURGCONS - OTHER,Medicine,NHS LOGISTICS,1018185175,39.07,
Department of Health,Salisbury NHS Foundation Trust,21-Dec-17,SURGICAL INSTRUMENTS: GENERAL,Medicine,NHS LOGISTICS,1018185175,9.83,
Department of Health,Salisbury NHS Foundation Trust,21-Dec-17,OTHER MEDICAL SUPPLIES,Medicine,NHS LOGISTICS,1018185175,3.77,
Department of Health,Salisbury NHS Foundation Trust,21-Dec-17,MEDSURGCONS - OTHER,Medicine,NHS LOGISTICS,1018185175,5.89,
Department of Health,Salisbury NHS Foundation Trust,21-Dec-17,TISSUES HAND TOWELS & TOILET PAPER,Medicine,NHS LOGISTICS,1018185175,0.7,
Department of Health,Salisbury NHS Foundation Trust,21-Dec-17,MED SURG EQUIP REP MAINT CLEANING,Medicine,NHS LOGISTICS,1018185175,10.97,
Department of Health,Salisbury NHS Foundation Trust,21-Dec-17,DISPOSABLE THEATRE DRAPES WIPES,Medicine,NHS LOGISTICS,1018185175,3.55,
Department of Health,Salisbury NHS Foundation Trust,21-Dec-17,TOILETRIES PERSONAL HYGIENE PRODUCTS,Medicine,NHS LOGISTICS,1018185175,3.08,
Department of Health,Salisbury NHS Foundation Trust,21-Dec-17,CLEANING MATERIALS PRODUCTS SUNDRIES,Medicine,NHS LOGISTICS,1018185175,5.53,
Department of Health,Salisbury NHS Foundation Trust,21-Dec-17,DRESSINGS - PRE STERILE,Medicine,NHS LOGISTICS,1018185175,4.98,
Department of Health,Salisbury NHS Foundation Trust,21-Dec-17,MEDSURGCONS - OTHER,Medicine,NHS LOGISTICS,1018185175,42.92,
Department of Health,Salisbury NHS Foundation Trust,21-Dec-17,TUBES,Medicine,NHS LOGISTICS,1018185175,6.85,
Department of Health,Salisbury NHS Foundation Trust,21-Dec-17,ANAESTHETIC EQUIPMENT ACCESSORIES,Medicine,NHS LOGISTICS,1018185175,1.25,
Department of Health,Salisbury NHS Foundation Trust,21-Dec-17,OTHER MEDICAL SUPPLIES,Medicine,NHS LOGISTICS,1018185175,3.77,
Department of Health,Salisbury NHS Foundation Trust,21-Dec-17,TISSUES HAND TOWELS & TOILET PAPER,Medicine,NHS LOGISTICS,1018185175,1.05,
Department of Health,Salisbury NHS Foundation Trust,21-Dec-17,M & S EQUIPELECTEQUIPINST - OTHER,Medicine,NHS LOGISTICS,1018185175,1.6,
Department of Health,Salisbury NHS Foundation Trust,21-Dec-17,DISPOSABLE THEATRE DRAPES WIPES,Medicine,NHS LOGISTICS,1018185175,7.1,
Department of Health,Salisbury NHS Foundation Trust,21-Dec-17,DISPOSABLE THEATRE DRAPES WIPES,Medicine,NHS LOGISTICS,1018185175,15.4,
Department of Health,Salisbury NHS Foundation Trust,21-Dec-17,TOILETRIES PERSONAL HYGIENE PRODUCTS,Medicine,NHS LOGISTICS,1018185175,4.63,
Department of Health,Salisbury NHS Foundation Trust,21-Dec-17,CLEANING MATERIALS PRODUCTS SUNDRIES,Medicine,NHS LOGISTICS,1018185175,5.53,
Department of Health,Salisbury NHS Foundation Trust,21-Dec-17,DRESSINGS - PRE STERILE,Medicine,NHS LOGISTICS,1018185175,28,
Department of Health,Salisbury NHS Foundation Trust,21-Dec-17,MEDSURGCONS - OTHER,Medicine,NHS LOGISTICS,1018185175,42.92,
Department of Health,Salisbury NHS Foundation Trust,21-Dec-17,TUBES,Medicine,NHS LOGISTICS,1018185175,6.85,
Department of Health,Salisbury NHS Foundation Trust,21-Dec-17,ANAESTHETIC EQUIPMENT ACCESSORIES,Medicine,NHS LOGISTICS,1018185175,5,
Department of Health,Salisbury NHS Foundation Trust,21-Dec-17,OTHER MEDICAL SUPPLIES,Medicine,NHS LOGISTICS,1018185175,6.84,
Department of Health,Salisbury NHS Foundation Trust,21-Dec-17,OTHER MEDICAL SUPPLIES,Medicine,NHS LOGISTICS,1018185175,5.65,
Department of Health,Salisbury NHS Foundation Trust,21-Dec-17,PATIENT APPLIANCES,Medicine,NHS LOGISTICS,1018185175,3.35,
Department of Health,Salisbury NHS Foundation Trust,21-Dec-17,PATIENT APPLIANCES,Medicine,NHS LOGISTICS,1018185175,4.39,
Department of Health,Salisbury NHS Foundation Trust,21-Dec-17,MEDSURGCONS - OTHER,Medicine,NHS LOGISTICS,1018185175,59.78,
Department of Health,Salisbury NHS Foundation Trust,21-Dec-17,TISSUES HAND TOWELS & TOILET PAPER,Medicine,NHS LOGISTICS,1018185175,1.4,
Department of Health,Salisbury NHS Foundation Trust,21-Dec-17,DISPOSABLE THEATRE DRAPES WIPES,Medicine,NHS LOGISTICS,1018185175,14.2,
Department of Health,Salisbury NHS Foundation Trust,21-Dec-17,TOILETRIES PERSONAL HYGIENE PRODUCTS,Musculo-Skeletal,NHS LOGISTICS,1018185175,3.08,
Department of Health,Salisbury NHS Foundation Trust,21-Dec-17,MEDSURGCONS - OTHER,Musculo-Skeletal,NHS LOGISTICS,1018185175,42.92,
Department of Health,Salisbury NHS Foundation Trust,21-Dec-17,TUBES,Musculo-Skeletal,NHS LOGISTICS,1018185175,6.85,
Department of Health,Salisbury NHS Foundation Trust,21-Dec-17,OTHER MEDICAL SUPPLIES,Musculo-Skeletal,NHS LOGISTICS,1018185175,3.77,
Department of Health,Salisbury NHS Foundation Trust,21-Dec-17,DRESSINGS - PRE STERILE,Musculo-Skeletal,NHS LOGISTICS,1018185175,54.55,
Department of Health,Salisbury NHS Foundation Trust,21-Dec-17,DRESSINGS - PRE STERILE,Musculo-Skeletal,NHS LOGISTICS,1018185175,135,
Department of Health,Salisbury NHS Foundation Trust,21-Dec-17,DRESSINGS - PRE STERILE,Musculo-Skeletal,NHS LOGISTICS,1018185175,151.82,
Department of Health,Salisbury NHS Foundation Trust,21-Dec-17,DRESSINGS - PRE STERILE,Musculo-Skeletal,NHS LOGISTICS,1018185175,119.78,
Department of Health,Salisbury NHS Foundation Trust,21-Dec-17,PATIENT APPLIANCES,Musculo-Skeletal,NHS LOGISTICS,1018185175,7.8,
Department of Health,Salisbury NHS Foundation Trust,21-Dec-17,DISPOSABLE THEATRE DRAPES WIPES,Musculo-Skeletal,NHS LOGISTICS,1018185175,3.55,
Department of Health,Salisbury NHS Foundation Trust,21-Dec-17,MEDSURGCONS - OTHER,Clinical Support,NHS LOGISTICS,1018185175,353.58,
Department of Health,Salisbury NHS Foundation Trust,21-Dec-17,MEDSURGCONS - OTHER,Clinical Support,NHS LOGISTICS,1018185175,45.36,
Department of Health,Salisbury NHS Foundation Trust,21-Dec-17,TISSUES HAND TOWELS & TOILET PAPER,Clinical Support,NHS LOGISTICS,1018185175,3.72,
Department of Health,Salisbury NHS Foundation Trust,21-Dec-17,MEDSURGCONS - OTHER,Clinical Support,NHS LOGISTICS,1018185175,24.42,
Department of Health,Salisbury NHS Foundation Trust,21-Dec-17,MED SURG EQUIP REP MAINT CLEANING,Clinical Support,NHS LOGISTICS,1018185175,16.08,
Department of Health,Salisbury NHS Foundation Trust,21-Dec-17,MED SURG EQUIP REP MAINT CLEANING,Clinical Support,NHS LOGISTICS,1018185175,29.88,
Department of Health,Salisbury NHS Foundation Trust,21-Dec-17,MED SURG EQUIP REP MAINT CLEANING,Clinical Support,NHS LOGISTICS,1018185175,29.88,
Department of Health,Salisbury NHS Foundation Trust,21-Dec-17,MEDSURGCONS - OTHER,Clinical Support,NHS LOGISTICS,1018185175,8.57,
Department of Health,Salisbury NHS Foundation Trust,21-Dec-17,OTHER MEDICAL SUPPLIES,Clinical Support,NHS LOGISTICS,1018185175,6.84,
Department of Health,Salisbury NHS Foundation Trust,21-Dec-17,OTHER MEDICAL SUPPLIES,Clinical Support,NHS LOGISTICS,1018185175,11.3,
Department of Health,Salisbury NHS Foundation Trust,21-Dec-17,MEDSURGCONS - OTHER,Clinical Support,NHS LOGISTICS,1018185175,16.61,
Department of Health,Salisbury NHS Foundation Trust,21-Dec-17,MEDSURGCONS - OTHER,Clinical Support,NHS LOGISTICS,1018185175,26.58,
Department of Health,Salisbury NHS Foundation Trust,21-Dec-17,MEDSURGCONS - OTHER,Clinical Support,NHS LOGISTICS,1018185175,4.85,
Department of Health,Salisbury NHS Foundation Trust,21-Dec-17,MEDSURGCONS - OTHER,Clinical Support,NHS LOGISTICS,1018185175,5.89,
Department of Health,Salisbury NHS Foundation Trust,21-Dec-17,MEDSURGCONS - OTHER,Clinical Support,NHS LOGISTICS,1018185175,15.63,
Department of Health,Salisbury NHS Foundation Trust,21-Dec-17,MEDSURGCONS - OTHER,Clinical Support,NHS LOGISTICS,1018185175,6.82,
Department of Health,Salisbury NHS Foundation Trust,21-Dec-17,BABY TEXTURE MODIFIED FOODS,Clinical Support,NHS LOGISTICS,1018185175,16.53,
Department of Health,Salisbury NHS Foundation Trust,21-Dec-17,DISPOSABLE THEATRE DRAPES WIPES,Clinical Support,NHS LOGISTICS,1018185175,3.55,
Department of Health,Salisbury NHS Foundation Trust,21-Dec-17,MEDSURGCONS - OTHER,Surgery,NHS LOGISTICS,1018185175,29.3,
Department of Health,Salisbury NHS Foundation Trust,21-Dec-17,ANAESTHETIC EQUIPMENT ACCESSORIES,Surgery,NHS LOGISTICS,1018185175,1.25,
Department of Health,Salisbury NHS Foundation Trust,21-Dec-17,OTHER MEDICAL SUPPLIES,Surgery,NHS LOGISTICS,1018185175,3.77,
Department of Health,Salisbury NHS Foundation Trust,21-Dec-17,PATIENT APPLIANCES,Surgery,NHS LOGISTICS,1018185175,23.4,
Department of Health,Salisbury NHS Foundation Trust,21-Dec-17,TOILETRIES PERSONAL HYGIENE PRODUCTS,Musculo-Skeletal,NHS LOGISTICS,1018185175,9.25,
Department of Health,Salisbury NHS Foundation Trust,21-Dec-17,TISSUES HAND TOWELS & TOILET PAPER,Musculo-Skeletal,NHS LOGISTICS,1018185175,3.72,
Department of Health,Salisbury NHS Foundation Trust,21-Dec-17,DRESSINGS - PRE STERILE,Musculo-Skeletal,NHS LOGISTICS,1018185175,14,
Department of Health,Salisbury NHS Foundation Trust,21-Dec-17,DRESSINGS - PRE STERILE,Musculo-Skeletal,NHS LOGISTICS,1018185175,5.87,
Department of Health,Salisbury NHS Foundation Trust,21-Dec-17,DRESSINGS - PRE STERILE,Musculo-Skeletal,NHS LOGISTICS,1018185175,7.49,
Department of Health,Salisbury NHS Foundation Trust,21-Dec-17,DRESSINGS - PRE STERILE,Musculo-Skeletal,NHS LOGISTICS,1018185175,11.63,
Department of Health,Salisbury NHS Foundation Trust,21-Dec-17,MEDSURGCONS - OTHER,Musculo-Skeletal,NHS LOGISTICS,1018185175,128.75,
Department of Health,Salisbury NHS Foundation Trust,21-Dec-17,TUBES,Musculo-Skeletal,NHS LOGISTICS,1018185175,6.85,
Department of Health,Salisbury NHS Foundation Trust,21-Dec-17,OTHER MEDICAL SUPPLIES,Musculo-Skeletal,NHS LOGISTICS,1018185175,5.65,
Department of Health,Salisbury NHS Foundation Trust,21-Dec-17,MEDSURGCONS - OTHER,Musculo-Skeletal,NHS LOGISTICS,1018185175,59.78,
Department of Health,Salisbury NHS Foundation Trust,21-Dec-17,DISPOSABLE THEATRE DRAPES WIPES,Musculo-Skeletal,NHS LOGISTICS,1018185175,7.1,
Department of Health,Salisbury NHS Foundation Trust,21-Dec-17,MED SURG EQUIP REP MAINT CLEANING,Medicine,NHS LOGISTICS,1018185175,61.83,
Department of Health,Salisbury NHS Foundation Trust,21-Dec-17,HEARING AIDS SPARES,Surgery,NHS LOGISTICS,1018185175,783.5,
Department of Health,Salisbury NHS Foundation Trust,21-Dec-17,DRESSINGS - PRE STERILE,Surgery,NHS LOGISTICS,1018185175,14,
Department of Health,Salisbury NHS Foundation Trust,21-Dec-17,DRESSINGS - PRE STERILE,Surgery,NHS LOGISTICS,1018185175,5.66,
Department of Health,Salisbury NHS Foundation Trust,21-Dec-17,DRESSINGS - PRE STERILE,Surgery,NHS LOGISTICS,1018185175,2.49,
Department of Health,Salisbury NHS Foundation Trust,21-Dec-17,MEDSURGCONS - OTHER,Surgery,NHS LOGISTICS,1018185175,42.92,
Department of Health,Salisbury NHS Foundation Trust,21-Dec-17,TISSUES HAND TOWELS & TOILET PAPER,Surgery,NHS LOGISTICS,1018185175,0.7,
Department of Health,Salisbury NHS Foundation Trust,21-Dec-17,DISPOSABLE THEATRE DRAPES WIPES,Medicine,NHS LOGISTICS,1018185175,113.5,
Department of Health,Salisbury NHS Foundation Trust,21-Dec-17,DRESSINGS - PRE STERILE,Medicine,NHS LOGISTICS,1018185175,14,
Department of Health,Salisbury NHS Foundation Trust,21-Dec-17,DRESSINGS - PRE STERILE,Medicine,NHS LOGISTICS,1018185175,4.59,
Department of Health,Salisbury NHS Foundation Trust,21-Dec-17,OTHER MEDICAL SUPPLIES,Medicine,NHS LOGISTICS,1018185175,1.88,
Department of Health,Salisbury NHS Foundation Trust,21-Dec-17,DRESSINGS - PRE STERILE,Medicine,NHS LOGISTICS,1018185175,24.76,
Department of Health,Salisbury NHS Foundation Trust,21-Dec-17,DISPOSABLE THEATRE DRAPES WIPES,Medicine,NHS LOGISTICS,1018185175,0.66,
Department of Health,Salisbury NHS Foundation Trust,21-Dec-17,DRUGS,Surgery,NHS LOGISTICS,1018185175,6.48,
Department of Health,Salisbury NHS Foundation Trust,21-Dec-17,MEDSURGCONS - OTHER,Surgery,NHS LOGISTICS,1018185175,4.88,
Department of Health,Salisbury NHS Foundation Trust,21-Dec-17,MEDSURGCONS - OTHER,Surgery,NHS LOGISTICS,1018185175,24.42,
Department of Health,Salisbury NHS Foundation Trust,21-Dec-17,MEDSURGCONS - OTHER,Surgery,NHS LOGISTICS,1018185175,42.92,
Department of Health,Salisbury NHS Foundation Trust,21-Dec-17,MEDSURGCONS - OTHER,Surgery,NHS LOGISTICS,1018185175,57.78,
Department of Health,Salisbury NHS Foundation Trust,21-Dec-17,OTHER MEDICAL SUPPLIES,Surgery,NHS LOGISTICS,1018185175,70,
Department of Health,Salisbury NHS Foundation Trust,21-Dec-17,MEDSURGCONS - OTHER,Surgery,NHS LOGISTICS,1018185175,21.42,
Department of Health,Salisbury NHS Foundation Trust,21-Dec-17,MEDSURGCONS - OTHER,Surgery,NHS LOGISTICS,1018185175,13.57,
Department of Health,Salisbury NHS Foundation Trust,21-Dec-17,MEDSURGCONS - OTHER,Surgery,NHS LOGISTICS,1018185175,191.3,
Department of Health,Salisbury NHS Foundation Trust,21-Dec-17,MEDSURGCONS - OTHER,Surgery,NHS LOGISTICS,1018185175,6.82,
Department of Health,Salisbury NHS Foundation Trust,21-Dec-17,TOILETRIES PERSONAL HYGIENE PRODUCTS,Surgery,NHS LOGISTICS,1018185175,0.93,
Department of Health,Salisbury NHS Foundation Trust,21-Dec-17,TOILETRIES PERSONAL HYGIENE PRODUCTS,Surgery,NHS LOGISTICS,1018185175,4.13,
Department of Health,Salisbury NHS Foundation Trust,21-Dec-17,M & S EQUIPELECTEQUIPINST - OTHER,Surgery,NHS LOGISTICS,1018185175,1.6,
Department of Health,Salisbury NHS Foundation Trust,21-Dec-17,PATIENT APPLIANCES,Surgery,NHS LOGISTICS,1018185175,23.4,
Department of Health,Salisbury NHS Foundation Trust,21-Dec-17,DISPOSABLE THEATRE DRAPES WIPES,Surgery,NHS LOGISTICS,1018185175,7.1,
Department of Health,Salisbury NHS Foundation Trust,21-Dec-17,DISPOSABLE THEATRE DRAPES WIPES,Surgery,NHS LOGISTICS,1018185175,6.58,
Department of Health,Salisbury NHS Foundation Trust,21-Dec-17,MEDSURGCONS - OTHER,Surgery,NHS LOGISTICS,1018185175,8.01,
Department of Health,Salisbury NHS Foundation Trust,21-Dec-17,DISPOSABLE THEATRE DRAPES WIPES,Surgery,NHS LOGISTICS,1018185175,4.48,
Department of Health,Salisbury NHS Foundation Trust,21-Dec-17,M & S EQUIPELECTEQUIPINST - OTHER,Surgery,NHS LOGISTICS,1018185175,12.13,
Department of Health,Salisbury NHS Foundation Trust,21-Dec-17,DRESSINGS - PRE STERILE,Surgery,NHS LOGISTICS,1018185175,194.85,
Department of Health,Salisbury NHS Foundation Trust,21-Dec-17,DRESSINGS - PRE STERILE,Surgery,NHS LOGISTICS,1018185175,588.87,
Department of Health,Salisbury NHS Foundation Trust,21-Dec-17,BAGS SACKS - OTHER,Surgery,NHS LOGISTICS,1018185175,8.71,
Department of Health,Salisbury NHS Foundation Trust,21-Dec-17,COOKING & KITCHEN UTENSILS,Surgery,NHS LOGISTICS,1018185175,20.38,
Department of Health,Salisbury NHS Foundation Trust,21-Dec-17,MEDSURGCONS - OTHER,Surgery,NHS LOGISTICS,1018185175,24.42,
Department of Health,Salisbury NHS Foundation Trust,21-Dec-17,DRUGS,Surgery,NHS LOGISTICS,1018185175,70.25,
Department of Health,Salisbury NHS Foundation Trust,21-Dec-17,CLEANING MATERIALS PRODUCTS SUNDRIES,Surgery,NHS LOGISTICS,1018185175,4.6,
Department of Health,Salisbury NHS Foundation Trust,21-Dec-17,DRESSINGS - PRE STERILE,Surgery,NHS LOGISTICS,1018185175,90,
Department of Health,Salisbury NHS Foundation Trust,21-Dec-17,ANAESTHETIC EQUIPMENT ACCESSORIES,Surgery,NHS LOGISTICS,1018185175,47.28,
Department of Health,Salisbury NHS Foundation Trust,21-Dec-17,ELECTRICAL EQUIPMENT x,Surgery,NHS LOGISTICS,1018185175,5,
Department of Health,Salisbury NHS Foundation Trust,21-Dec-17,ANAESTHETIC EQUIPMENT ACCESSORIES,Surgery,NHS LOGISTICS,1018185175,299.47,
Department of Health,Salisbury NHS Foundation Trust,21-Dec-17,ELECTRICAL EQUIPMENT x,Surgery,NHS LOGISTICS,1018185175,7.73,
Department of Health,Salisbury NHS Foundation Trust,21-Dec-17,MEDSURGCONS - OTHER,Surgery,NHS LOGISTICS,1018185175,20,
Department of Health,Salisbury NHS Foundation Trust,21-Dec-17,DRESSINGS - PRE STERILE,Surgery,NHS LOGISTICS,1018185175,28,
Department of Health,Salisbury NHS Foundation Trust,21-Dec-17,MEDSURGCONS - OTHER,Surgery,NHS LOGISTICS,1018185175,101.8,
Department of Health,Salisbury NHS Foundation Trust,21-Dec-17,OTHER MEDICAL SUPPLIES,Surgery,NHS LOGISTICS,1018185175,11.42,
Department of Health,Salisbury NHS Foundation Trust,21-Dec-17,OTHER MEDICAL SUPPLIES,Surgery,NHS LOGISTICS,1018185175,22.33,
Department of Health,Salisbury NHS Foundation Trust,21-Dec-17,M & S EQUIPELECTEQUIPINST - OTHER,Surgery,NHS LOGISTICS,1018185175,203.23,
Department of Health,Salisbury NHS Foundation Trust,21-Dec-17,TUBES,Surgery,NHS LOGISTICS,1018185175,6.85,
Department of Health,Salisbury NHS Foundation Trust,21-Dec-17,ANAESTHETIC EQUIPMENT ACCESSORIES,Surgery,NHS LOGISTICS,1018185175,5,
Department of Health,Salisbury NHS Foundation Trust,21-Dec-17,TISSUES HAND TOWELS & TOILET PAPER,Surgery,NHS LOGISTICS,1018185175,0.62,
Department of Health,Salisbury NHS Foundation Trust,21-Dec-17,TISSUES HAND TOWELS & TOILET PAPER,Surgery,NHS LOGISTICS,1018185175,4.97,
Department of Health,Salisbury NHS Foundation Trust,21-Dec-17,TISSUES HAND TOWELS & TOILET PAPER,Surgery,NHS LOGISTICS,1018185175,1.17,
Department of Health,Salisbury NHS Foundation Trust,21-Dec-17,DISPOSABLE THEATRE DRAPES WIPES,Surgery,NHS LOGISTICS,1018185175,2.24,
Department of Health,Salisbury NHS Foundation Trust,21-Dec-17,M & S EQUIPELECTEQUIPINST - OTHER,Clinical Support,NHS LOGISTICS,1018185175,169.79,
Department of Health,Salisbury NHS Foundation Trust,21-Dec-17,M & S EQUIPELECTEQUIPINST - OTHER,Clinical Support,NHS LOGISTICS,1018185175,128.87,
Department of Health,Salisbury NHS Foundation Trust,21-Dec-17,MEDSURGCONS - OTHER,Clinical Support,NHS LOGISTICS,1018185175,4.88,
Department of Health,Salisbury NHS Foundation Trust,21-Dec-17,TISSUES HAND TOWELS & TOILET PAPER,Clinical Support,NHS LOGISTICS,1018185175,0.78,
Department of Health,Salisbury NHS Foundation Trust,21-Dec-17,OTHER MEDICAL SUPPLIES,Clinical Support,NHS LOGISTICS,1018185175,149.93,
Department of Health,Salisbury NHS Foundation Trust,21-Dec-17,TISSUES HAND TOWELS & TOILET PAPER,Clinical Support,NHS LOGISTICS,1018185175,3.08,
Department of Health,Salisbury NHS Foundation Trust,21-Dec-17,TISSUES HAND TOWELS & TOILET PAPER,Clinical Support,NHS LOGISTICS,1018185175,8.69,
Department of Health,Salisbury NHS Foundation Trust,21-Dec-17,MEDSURGCONS - OTHER,Clinical Support,NHS LOGISTICS,1018185175,4.88,
Department of Health,Salisbury NHS Foundation Trust,21-Dec-17,MEDSURGCONS - OTHER,Clinical Support,NHS LOGISTICS,1018185175,14.65,
Department of Health,Salisbury NHS Foundation Trust,21-Dec-17,TISSUES HAND TOWELS & TOILET PAPER,Clinical Support,NHS LOGISTICS,1018185175,0.78,
Department of Health,Salisbury NHS Foundation Trust,21-Dec-17,TISSUES HAND TOWELS & TOILET PAPER,Musculo-Skeletal,NHS LOGISTICS,1018185175,4.97,
Department of Health,Salisbury NHS Foundation Trust,21-Dec-17,PATIENT APPLIANCES,Musculo-Skeletal,NHS LOGISTICS,1018185175,10.68,
Department of Health,Salisbury NHS Foundation Trust,21-Dec-17,PATIENT APPLIANCES,Musculo-Skeletal,NHS LOGISTICS,1018185175,10.68,
Department of Health,Salisbury NHS Foundation Trust,21-Dec-17,PATIENT APPLIANCES,Musculo-Skeletal,NHS LOGISTICS,1018185175,21.37,
Department of Health,Salisbury NHS Foundation Trust,21-Dec-17,PATIENT APPLIANCES,Musculo-Skeletal,NHS LOGISTICS,1018185175,10.68,
Department of Health,Salisbury NHS Foundation Trust,21-Dec-17,TISSUES HAND TOWELS & TOILET PAPER,Musculo-Skeletal,NHS LOGISTICS,1018185175,0.78,
Department of Health,Salisbury NHS Foundation Trust,21-Dec-17,OTHER MEDICAL SUPPLIES,Musculo-Skeletal,NHS LOGISTICS,1018185175,3.77,
Department of Health,Salisbury NHS Foundation Trust,21-Dec-17,TOILETRIES PERSONAL HYGIENE PRODUCTS,Clinical Support,NHS LOGISTICS,1018185175,3.08,
Department of Health,Salisbury NHS Foundation Trust,21-Dec-17,MEDSURGCONS - OTHER,Clinical Support,NHS LOGISTICS,1018185175,34.18,
Department of Health,Salisbury NHS Foundation Trust,21-Dec-17,OPTICAL  -  OTHER,Surgery,NHS LOGISTICS,1018185175,89.07,
Department of Health,Salisbury NHS Foundation Trust,21-Dec-17,DRESSINGS - PRE STERILE,Musculo-Skeletal,NHS LOGISTICS,1018185175,2.3,
Department of Health,Salisbury NHS Foundation Trust,21-Dec-17,M & S EQUIPELECTEQUIPINST - OTHER,Musculo-Skeletal,NHS LOGISTICS,1018185175,20.24,
Department of Health,Salisbury NHS Foundation Trust,21-Dec-17,TISSUES HAND TOWELS & TOILET PAPER,Musculo-Skeletal,NHS LOGISTICS,1018185175,10.65,
Department of Health,Salisbury NHS Foundation Trust,21-Dec-17,DRESSINGS - PRE STERILE,Musculo-Skeletal,NHS LOGISTICS,1018185175,9.39,
Department of Health,Salisbury NHS Foundation Trust,21-Dec-17,MEDSURGCONS - OTHER,Musculo-Skeletal,NHS LOGISTICS,1018185175,9.77,
Department of Health,Salisbury NHS Foundation Trust,21-Dec-17,DISPOSABLE THEATRE DRAPES WIPES,Musculo-Skeletal,NHS LOGISTICS,1018185175,3.55,
Department of Health,Salisbury NHS Foundation Trust,21-Dec-17,MEDSURGCONS - OTHER,Musculo-Skeletal,NHS LOGISTICS,1018185175,19.53,
Department of Health,Salisbury NHS Foundation Trust,21-Dec-17,TUBES,Musculo-Skeletal,NHS LOGISTICS,1018185175,20.55,
Department of Health,Salisbury NHS Foundation Trust,21-Dec-17,MEDSURGCONS - OTHER,Surgery,NHS LOGISTICS,1018185175,19.53,
Department of Health,Salisbury NHS Foundation Trust,21-Dec-17,OTHER MEDICAL SUPPLIES,Surgery,NHS LOGISTICS,1018185175,7.63,
Department of Health,Salisbury NHS Foundation Trust,21-Dec-17,DRESSINGS - PRE STERILE,Medicine,NHS LOGISTICS,1018185175,3.29,
Department of Health,Salisbury NHS Foundation Trust,21-Dec-17,DRESSINGS - PRE STERILE,Medicine,NHS LOGISTICS,1018185175,5.96,
Department of Health,Salisbury NHS Foundation Trust,21-Dec-17,PATIENT APPLIANCES,Medicine,NHS LOGISTICS,1018185175,10.68,
Department of Health,Salisbury NHS Foundation Trust,21-Dec-17,PATIENT APPLIANCES,Medicine,NHS LOGISTICS,1018185175,5.34,
Department of Health,Salisbury NHS Foundation Trust,21-Dec-17,PATIENT APPLIANCES,Medicine,NHS LOGISTICS,1018185175,5.34,
Department of Health,Salisbury NHS Foundation Trust,21-Dec-17,DRESSINGS - PRE STERILE,Medicine,NHS LOGISTICS,1018185175,42,
Department of Health,Salisbury NHS Foundation Trust,21-Dec-17,DRESSINGS - PRE STERILE,Medicine,NHS LOGISTICS,1018185175,2.49,
Department of Health,Salisbury NHS Foundation Trust,21-Dec-17,MEDSURGCONS - OTHER,Medicine,NHS LOGISTICS,1018185175,42.92,
Department of Health,Salisbury NHS Foundation Trust,21-Dec-17,MEDSURGCONS - OTHER,Medicine,NHS LOGISTICS,1018185175,1.57,
Department of Health,Salisbury NHS Foundation Trust,21-Dec-17,PATIENT APPLIANCES,Medicine,NHS LOGISTICS,1018185175,4.03,
Department of Health,Salisbury NHS Foundation Trust,21-Dec-17,PATIENT APPLIANCES,Medicine,NHS LOGISTICS,1018185175,4.03,
Department of Health,Salisbury NHS Foundation Trust,21-Dec-17,PATIENT APPLIANCES,Medicine,NHS LOGISTICS,1018185175,4.03,
Department of Health,Salisbury NHS Foundation Trust,21-Dec-17,ANAESTHETIC EQUIPMENT ACCESSORIES,Medicine,NHS LOGISTICS,1018185175,12.5,
Department of Health,Salisbury NHS Foundation Trust,21-Dec-17,OTHER MEDICAL SUPPLIES,Medicine,NHS LOGISTICS,1018185175,3.77,
Department of Health,Salisbury NHS Foundation Trust,21-Dec-17,MEDSURGCONS - OTHER,Medicine,NHS LOGISTICS,1018185175,59.78,
Department of Health,Salisbury NHS Foundation Trust,21-Dec-17,DISPOSABLE THEATRE DRAPES WIPES,Medicine,NHS LOGISTICS,1018185175,14.2,
Department of Health,Salisbury NHS Foundation Trust,21-Dec-17,DRESSINGS - PRE STERILE,Medicine,NHS LOGISTICS,1018185175,8.6,
Department of Health,Salisbury NHS Foundation Trust,21-Dec-17,TISSUES HAND TOWELS & TOILET PAPER,Clinical Support,NHS LOGISTICS,1018185175,3.72,
Department of Health,Salisbury NHS Foundation Trust,21-Dec-17,TISSUES HAND TOWELS & TOILET PAPER,Clinical Support,NHS LOGISTICS,1018185175,10.65,
Department of Health,Salisbury NHS Foundation Trust,21-Dec-17,DRESSINGS - PRE STERILE,Clinical Support,NHS LOGISTICS,1018185175,2.49,
Department of Health,Salisbury NHS Foundation Trust,21-Dec-17,DRESSINGS - PRE STERILE,Clinical Support,NHS LOGISTICS,1018185175,5.73,
Department of Health,Salisbury NHS Foundation Trust,21-Dec-17,MEDSURGCONS - OTHER,Clinical Support,NHS LOGISTICS,1018185175,4.88,
Department of Health,Salisbury NHS Foundation Trust,21-Dec-17,MEDSURGCONS - OTHER,Clinical Support,NHS LOGISTICS,1018185175,9.77,
Department of Health,Salisbury NHS Foundation Trust,21-Dec-17,NON DISPOSABLE BED LINEN,Clinical Support,NHS LOGISTICS,1018185175,17.75,
Department of Health,Salisbury NHS Foundation Trust,21-Dec-17,PATIENTS BABY WEAR,Medicine,NHS LOGISTICS,1018185175,32.13,
Department of Health,Salisbury NHS Foundation Trust,21-Dec-17,PATIENTS BABY WEAR,Medicine,NHS LOGISTICS,1018185175,29.8,
Department of Health,Salisbury NHS Foundation Trust,21-Dec-17,MEDSURGCONS - OTHER,Medicine,NHS LOGISTICS,1018185175,4.88,
Department of Health,Salisbury NHS Foundation Trust,21-Dec-17,MEDSURGCONS - OTHER,Medicine,NHS LOGISTICS,1018185175,29.3,
Department of Health,Salisbury NHS Foundation Trust,21-Dec-17,OTHER MEDICAL SUPPLIES,Medicine,NHS LOGISTICS,1018185175,1.88,
Department of Health,Salisbury NHS Foundation Trust,21-Dec-17,PATIENT APPLIANCES,Medicine,NHS LOGISTICS,1018185175,6.7,
Department of Health,Salisbury NHS Foundation Trust,21-Dec-17,PATIENT APPLIANCES,Medicine,NHS LOGISTICS,1018185175,4.39,
Department of Health,Salisbury NHS Foundation Trust,21-Dec-17,TISSUES HAND TOWELS & TOILET PAPER,Surgery,NHS LOGISTICS,1018185175,10.65,
Department of Health,Salisbury NHS Foundation Trust,21-Dec-17,SURGICAL INSTRUMENTS: DISPOSABLE,Surgery,NHS LOGISTICS,1018185175,56.47,
Department of Health,Salisbury NHS Foundation Trust,21-Dec-17,TISSUES HAND TOWELS & TOILET PAPER,Medicine,NHS LOGISTICS,1018185175,10.65,
Department of Health,Salisbury NHS Foundation Trust,21-Dec-17,DRESSINGS - PRE STERILE,Medicine,NHS LOGISTICS,1018185175,7.48,
Department of Health,Salisbury NHS Foundation Trust,21-Dec-17,DRESSINGS - PRE STERILE,Medicine,NHS LOGISTICS,1018185175,11.47,
Department of Health,Salisbury NHS Foundation Trust,21-Dec-17,OTHER MEDICAL SUPPLIES,Medicine,NHS LOGISTICS,1018185175,110.31,
Department of Health,Salisbury NHS Foundation Trust,21-Dec-17,TISSUES HAND TOWELS & TOILET PAPER,Medicine,NHS LOGISTICS,1018185175,1.24,
Department of Health,Salisbury NHS Foundation Trust,21-Dec-17,MEDSURGCONS - OTHER,Medicine,NHS LOGISTICS,1018185175,4.88,
Department of Health,Salisbury NHS Foundation Trust,21-Dec-17,TISSUES HAND TOWELS & TOILET PAPER,Medicine,NHS LOGISTICS,1018185175,0.78,
Department of Health,Salisbury NHS Foundation Trust,21-Dec-17,OTHER MEDICAL SUPPLIES,Medicine,NHS LOGISTICS,1018185175,7.53,
Department of Health,Salisbury NHS Foundation Trust,21-Dec-17,OTHER MEDICAL SUPPLIES,Medicine,NHS LOGISTICS,1018185175,1.48,
Department of Health,Salisbury NHS Foundation Trust,21-Dec-17,TISSUES HAND TOWELS & TOILET PAPER,Medicine,NHS LOGISTICS,1018185175,0.35,
Department of Health,Salisbury NHS Foundation Trust,21-Dec-17,DISPOSABLE THEATRE DRAPES WIPES,Medicine,NHS LOGISTICS,1018185175,1.32,
Department of Health,Salisbury NHS Foundation Trust,21-Dec-17,DRESSINGS - PRE STERILE,Musculo-Skeletal,NHS LOGISTICS,1018185175,7.02,
Department of Health,Salisbury NHS Foundation Trust,21-Dec-17,DRESSINGS - PRE STERILE,Musculo-Skeletal,NHS LOGISTICS,1018185175,3.29,
Department of Health,Salisbury NHS Foundation Trust,21-Dec-17,DRESSINGS - PRE STERILE,Musculo-Skeletal,NHS LOGISTICS,1018185175,11.92,
Department of Health,Salisbury NHS Foundation Trust,21-Dec-17,DRESSINGS - PRE STERILE,Musculo-Skeletal,NHS LOGISTICS,1018185175,9.39,
Department of Health,Salisbury NHS Foundation Trust,21-Dec-17,DRESSINGS - PRE STERILE,Musculo-Skeletal,NHS LOGISTICS,1018185175,53.76,
Department of Health,Salisbury NHS Foundation Trust,21-Dec-17,DRESSINGS - PRE STERILE,Musculo-Skeletal,NHS LOGISTICS,1018185175,27.86,
Department of Health,Salisbury NHS Foundation Trust,21-Dec-17,DRESSINGS - PRE STERILE,Musculo-Skeletal,NHS LOGISTICS,1018185175,20.25,
Department of Health,Salisbury NHS Foundation Trust,21-Dec-17,DRESSINGS - PRE STERILE,Musculo-Skeletal,NHS LOGISTICS,1018185175,43.75,
Department of Health,Salisbury NHS Foundation Trust,21-Dec-17,DRESSINGS - PRE STERILE,Musculo-Skeletal,NHS LOGISTICS,1018185175,20.25,
Department of Health,Salisbury NHS Foundation Trust,21-Dec-17,DRESSINGS - PRE STERILE,Musculo-Skeletal,NHS LOGISTICS,1018185175,23.28,
Department of Health,Salisbury NHS Foundation Trust,21-Dec-17,DRESSINGS - PRE STERILE,Musculo-Skeletal,NHS LOGISTICS,1018185175,46.57,
Department of Health,Salisbury NHS Foundation Trust,21-Dec-17,DRESSINGS - PRE STERILE,Musculo-Skeletal,NHS LOGISTICS,1018185175,46.57,
Department of Health,Salisbury NHS Foundation Trust,21-Dec-17,DRESSINGS - PRE STERILE,Musculo-Skeletal,NHS LOGISTICS,1018185175,50.05,
Department of Health,Salisbury NHS Foundation Trust,21-Dec-17,DRESSINGS - PRE STERILE,Musculo-Skeletal,NHS LOGISTICS,1018185175,50.05,
Department of Health,Salisbury NHS Foundation Trust,21-Dec-17,DRESSINGS - PRE STERILE,Musculo-Skeletal,NHS LOGISTICS,1018185175,25.03,
Department of Health,Salisbury NHS Foundation Trust,21-Dec-17,DRESSINGS - PRE STERILE,Musculo-Skeletal,NHS LOGISTICS,1018185175,12.6,
Department of Health,Salisbury NHS Foundation Trust,21-Dec-17,DRESSINGS - PRE STERILE,Musculo-Skeletal,NHS LOGISTICS,1018185175,6.85,
Department of Health,Salisbury NHS Foundation Trust,21-Dec-17,DRESSINGS - PRE STERILE,Musculo-Skeletal,NHS LOGISTICS,1018185175,7.63,
Department of Health,Salisbury NHS Foundation Trust,21-Dec-17,DRESSINGS - PRE STERILE,Musculo-Skeletal,NHS LOGISTICS,1018185175,15.27,
Department of Health,Salisbury NHS Foundation Trust,21-Dec-17,DRESSINGS - PRE STERILE,Surgery,NHS LOGISTICS,1018185175,14,
Department of Health,Salisbury NHS Foundation Trust,21-Dec-17,OTHER MEDICAL SUPPLIES,Surgery,NHS LOGISTICS,1018185175,6.84,
Department of Health,Salisbury NHS Foundation Trust,21-Dec-17,M & S EQUIPELECTEQUIPINST - OTHER,Surgery,NHS LOGISTICS,1018185175,56.25,
Department of Health,Salisbury NHS Foundation Trust,21-Dec-17,DRESSINGS - PRE STERILE,Surgery,NHS LOGISTICS,1018185175,4.75,
Department of Health,Salisbury NHS Foundation Trust,21-Dec-17,TOILETRIES PERSONAL HYGIENE PRODUCTS,Surgery,NHS LOGISTICS,1018185175,4.63,
Department of Health,Salisbury NHS Foundation Trust,21-Dec-17,SURGICAL INSTRUMENTS: GENERAL,Surgery,NHS LOGISTICS,1018185175,70.67,
Department of Health,Salisbury NHS Foundation Trust,21-Dec-17,DRESSINGS - PRE STERILE,Surgery,NHS LOGISTICS,1018185175,5.66,
Department of Health,Salisbury NHS Foundation Trust,21-Dec-17,DRESSINGS - PRE STERILE,Surgery,NHS LOGISTICS,1018185175,12.06,
Department of Health,Salisbury NHS Foundation Trust,21-Dec-17,DRESSINGS - PRE STERILE,Surgery,NHS LOGISTICS,1018185175,7.87,
Department of Health,Salisbury NHS Foundation Trust,21-Dec-17,MEDSURGCONS - OTHER,Surgery,NHS LOGISTICS,1018185175,24.42,
Department of Health,Salisbury NHS Foundation Trust,21-Dec-17,DRUGS,Surgery,NHS LOGISTICS,1018185175,54.9,
Department of Health,Salisbury NHS Foundation Trust,21-Dec-17,D IMAG & RADIO - X RAY FILM PROCESSING CHEMICALS,Surgery,NHS LOGISTICS,1018185175,112.58,
Department of Health,Salisbury NHS Foundation Trust,21-Dec-17,DRESSINGS - PRE STERILE,Surgery,NHS LOGISTICS,1018185175,8.6,
Department of Health,Salisbury NHS Foundation Trust,21-Dec-17,MEDSURGCONS-LAPAROSCOPIC EQUIPMENT,Surgery,NHS LOGISTICS,1018185175,2783.51,
Department of Health,Salisbury NHS Foundation Trust,21-Dec-17,MEDSURGCONS-LAPAROSCOPIC EQUIPMENT,Surgery,NHS LOGISTICS,1018185175,134.03,
Department of Health,Salisbury NHS Foundation Trust,21-Dec-17,DRESSINGS - PRE STERILE,Surgery,NHS LOGISTICS,1018185175,73.61,
Department of Health,Salisbury NHS Foundation Trust,21-Dec-17,DISPOSABLE THEATRE DRAPES WIPES,Surgery,NHS LOGISTICS,1018185175,1.87,
Department of Health,Salisbury NHS Foundation Trust,21-Dec-17,TISSUES HAND TOWELS & TOILET PAPER,Surgery,NHS LOGISTICS,1018185175,1.24,
Department of Health,Salisbury NHS Foundation Trust,21-Dec-17,BEVERAGES & AMBIENT FOOD,Surgery,NHS LOGISTICS,1018185175,10.81,
Department of Health,Salisbury NHS Foundation Trust,21-Dec-17,DRESSINGS - PRE STERILE,Surgery,NHS LOGISTICS,1018185175,14,
Department of Health,Salisbury NHS Foundation Trust,21-Dec-17,DISPOSABLE THEATRE DRAPES WIPES,Surgery,NHS LOGISTICS,1018185175,6,
Department of Health,Salisbury NHS Foundation Trust,21-Dec-17,MEDSURGCONS - OTHER,Surgery,NHS LOGISTICS,1018185175,9.77,
Department of Health,Salisbury NHS Foundation Trust,21-Dec-17,MEDSURGCONS - OTHER,Surgery,NHS LOGISTICS,1018185175,9.77,
Department of Health,Salisbury NHS Foundation Trust,21-Dec-17,OTHER MEDICAL SUPPLIES,Surgery,NHS LOGISTICS,1018185175,6.84,
Department of Health,Salisbury NHS Foundation Trust,21-Dec-17,OTHER MEDICAL SUPPLIES,Surgery,NHS LOGISTICS,1018185175,3.77,
Department of Health,Salisbury NHS Foundation Trust,21-Dec-17,BEVERAGES & AMBIENT FOOD,Surgery,NHS LOGISTICS,1018185175,14.34,
Department of Health,Salisbury NHS Foundation Trust,21-Dec-17,OTHER MEDICAL SUPPLIES,Surgery,NHS LOGISTICS,1018185175,5.71,
Department of Health,Salisbury NHS Foundation Trust,21-Dec-17,OTHER MEDICAL SUPPLIES,Surgery,NHS LOGISTICS,1018185175,3.43,
Department of Health,Salisbury NHS Foundation Trust,21-Dec-17,BEVERAGES & AMBIENT FOOD,Surgery,NHS LOGISTICS,1018185175,0.87,
Department of Health,Salisbury NHS Foundation Trust,21-Dec-17,PATIENT APPLIANCES,Surgery,NHS LOGISTICS,1018185175,4.32,
Department of Health,Salisbury NHS Foundation Trust,21-Dec-17,DRESSINGS - PRE STERILE,Clinical Support,NHS LOGISTICS,1018185175,205.4,
Department of Health,Salisbury NHS Foundation Trust,21-Dec-17,DRESSINGS - PRE STERILE,Clinical Support,NHS LOGISTICS,1018185175,266.45,
Department of Health,Salisbury NHS Foundation Trust,21-Dec-17,DRESSINGS - PRE STERILE,Clinical Support,NHS LOGISTICS,1018185175,84,
Department of Health,Salisbury NHS Foundation Trust,21-Dec-17,DRESSINGS - PRE STERILE,Clinical Support,NHS LOGISTICS,1018185175,43.98,
Department of Health,Salisbury NHS Foundation Trust,21-Dec-17,DRESSINGS - PRE STERILE,Clinical Support,NHS LOGISTICS,1018185175,11.73,
Department of Health,Salisbury NHS Foundation Trust,21-Dec-17,DRESSINGS - PRE STERILE,Clinical Support,NHS LOGISTICS,1018185175,101.25,
Department of Health,Salisbury NHS Foundation Trust,21-Dec-17,MED SURG EQUIP REP MAINT CLEANING,Clinical Support,NHS LOGISTICS,1018185175,585.5,
Department of Health,Salisbury NHS Foundation Trust,21-Dec-17,OTHER MEDICAL SUPPLIES,Surgery,NHS LOGISTICS,1018185175,58.78,
Department of Health,Salisbury NHS Foundation Trust,21-Dec-17,MEDSURGCONS - OTHER,Medicine,NHS LOGISTICS,1018185175,42.23,
Department of Health,Salisbury NHS Foundation Trust,21-Dec-17,TISSUES HAND TOWELS & TOILET PAPER,Surgery,NHS LOGISTICS,1018185175,1.24,
Department of Health,Salisbury NHS Foundation Trust,21-Dec-17,TUBES,Surgery,NHS LOGISTICS,1018185175,6.85,
Department of Health,Salisbury NHS Foundation Trust,21-Dec-17,OTHER MEDICAL SUPPLIES,Surgery,NHS LOGISTICS,1018185175,6.84,
Department of Health,Salisbury NHS Foundation Trust,21-Dec-17,OTHER MEDICAL SUPPLIES,Surgery,NHS LOGISTICS,1018185175,3.77,
Department of Health,Salisbury NHS Foundation Trust,21-Dec-17,MEDSURGCONS - OTHER,Surgery,NHS LOGISTICS,1018185175,3.91,
Department of Health,Salisbury NHS Foundation Trust,21-Dec-17,TISSUES HAND TOWELS & TOILET PAPER,Surgery,NHS LOGISTICS,1018185175,0.7,
Department of Health,Salisbury NHS Foundation Trust,21-Dec-17,DISPOSABLE THEATRE DRAPES WIPES,Surgery,NHS LOGISTICS,1018185175,3.55,
Department of Health,Salisbury NHS Foundation Trust,21-Dec-17,TISSUES HAND TOWELS & TOILET PAPER,Clinical Support,NHS LOGISTICS,1018185175,1.24,
Department of Health,Salisbury NHS Foundation Trust,21-Dec-17,TISSUES HAND TOWELS & TOILET PAPER,Clinical Support,NHS LOGISTICS,1018185175,10.65,
Department of Health,Salisbury NHS Foundation Trust,21-Dec-17,MEDSURGCONS - OTHER,Clinical Support,NHS LOGISTICS,1018185175,84.84,
Department of Health,Salisbury NHS Foundation Trust,21-Dec-17,MEDSURGCONS - OTHER,Clinical Support,NHS LOGISTICS,1018185175,84.84,
Department of Health,Salisbury NHS Foundation Trust,21-Dec-17,OTHER MEDICAL SUPPLIES,Surgery,NHS LOGISTICS,1018185175,21.33,
Department of Health,Salisbury NHS Foundation Trust,21-Dec-17,ELECTRICAL EQUIPMENT x,Surgery,NHS LOGISTICS,1018185175,2.5,
Department of Health,Salisbury NHS Foundation Trust,21-Dec-17,ELECTRICAL EQUIPMENT x,Surgery,NHS LOGISTICS,1018185175,5.8,
Department of Health,Salisbury NHS Foundation Trust,21-Dec-17,ANAESTHETIC EQUIPMENT ACCESSORIES,Surgery,NHS LOGISTICS,1018185175,18.75,
Department of Health,Salisbury NHS Foundation Trust,21-Dec-17,OTHER MEDICAL SUPPLIES,Surgery,NHS LOGISTICS,1018185175,18.83,
Department of Health,Salisbury NHS Foundation Trust,21-Dec-17,OTHER MEDICAL SUPPLIES,Surgery,NHS LOGISTICS,1018185175,11.42,
Department of Health,Salisbury NHS Foundation Trust,21-Dec-17,OTHER MEDICAL SUPPLIES,Surgery,NHS LOGISTICS,1018185175,11.42,
Department of Health,Salisbury NHS Foundation Trust,21-Dec-17,SURGICAL INSTRUMENTS: GENERAL,Surgery,NHS LOGISTICS,1018185175,76.47,
Department of Health,Salisbury NHS Foundation Trust,21-Dec-17,MEDSURGCONS - OTHER,Musculo-Skeletal,NHS LOGISTICS,1018185175,42.93,
Department of Health,Salisbury NHS Foundation Trust,21-Dec-17,TOILETRIES PERSONAL HYGIENE PRODUCTS,Musculo-Skeletal,NHS LOGISTICS,1018185175,4.63,
Department of Health,Salisbury NHS Foundation Trust,21-Dec-17,TISSUES HAND TOWELS & TOILET PAPER,Musculo-Skeletal,NHS LOGISTICS,1018185175,21,
Department of Health,Salisbury NHS Foundation Trust,21-Dec-17,MEDSURGCONS - OTHER,Musculo-Skeletal,NHS LOGISTICS,1018185175,85.83,
Department of Health,Salisbury NHS Foundation Trust,21-Dec-17,HEALTHCARE - WEAR,Musculo-Skeletal,NHS LOGISTICS,1018185175,63.9,
Department of Health,Salisbury NHS Foundation Trust,21-Dec-17,NON DISPOSABLE BED LINEN,Musculo-Skeletal,NHS LOGISTICS,1018185175,33.18,
Department of Health,Salisbury NHS Foundation Trust,21-Dec-17,MEDSURGCONS - OTHER,Musculo-Skeletal,NHS LOGISTICS,1018185175,11.95,
Department of Health,Salisbury NHS Foundation Trust,21-Dec-17,PATIENT APPLIANCES,Musculo-Skeletal,NHS LOGISTICS,1018185175,8.78,
Department of Health,Salisbury NHS Foundation Trust,21-Dec-17,PATIENT APPLIANCES,Musculo-Skeletal,NHS LOGISTICS,1018185175,17.57,
Department of Health,Salisbury NHS Foundation Trust,21-Dec-17,PATIENT APPLIANCES,Musculo-Skeletal,NHS LOGISTICS,1018185175,13.18,
Department of Health,Salisbury NHS Foundation Trust,21-Dec-17,PATIENT APPLIANCES,Musculo-Skeletal,NHS LOGISTICS,1018185175,6.7,
Department of Health,Salisbury NHS Foundation Trust,21-Dec-17,PATIENT APPLIANCES,Musculo-Skeletal,NHS LOGISTICS,1018185175,129.5,
Department of Health,Salisbury NHS Foundation Trust,21-Dec-17,PATIENT APPLIANCES,Musculo-Skeletal,NHS LOGISTICS,1018185175,15.6,
Department of Health,Salisbury NHS Foundation Trust,21-Dec-17,DISPOSABLE THEATRE DRAPES WIPES,Musculo-Skeletal,NHS LOGISTICS,1018185175,28.4,
Department of Health,Salisbury NHS Foundation Trust,21-Dec-17,DISPOSABLE THEATRE DRAPES WIPES,Musculo-Skeletal,NHS LOGISTICS,1018185175,3.29,
Department of Health,Salisbury NHS Foundation Trust,21-Dec-17,OTHER MEDICAL SUPPLIES,Musculo-Skeletal,NHS LOGISTICS,1018185175,1.88,
Department of Health,Salisbury NHS Foundation Trust,21-Dec-17,MEDSURGCONS - OTHER,Musculo-Skeletal,NHS LOGISTICS,1018185175,3.91,
Department of Health,Salisbury NHS Foundation Trust,21-Dec-17,OTHER MEDICAL SUPPLIES,Musculo-Skeletal,NHS LOGISTICS,1018185175,3.77,
Department of Health,Salisbury NHS Foundation Trust,21-Dec-17,MEDSURGCONS - OTHER,Musculo-Skeletal,NHS LOGISTICS,1018185175,6.82,
Department of Health,Salisbury NHS Foundation Trust,21-Dec-17,TISSUES HAND TOWELS & TOILET PAPER,Surgery,NHS LOGISTICS,1018185175,10.65,
Department of Health,Salisbury NHS Foundation Trust,21-Dec-17,DRESSINGS - PRE STERILE,Surgery,NHS LOGISTICS,1018185175,1.11,
Department of Health,Salisbury NHS Foundation Trust,21-Dec-17,BAGS SACKS - OTHER,Clinical Support,NHS LOGISTICS,1018185175,3,
Department of Health,Salisbury NHS Foundation Trust,21-Dec-17,TISSUES HAND TOWELS & TOILET PAPER,Clinical Support,NHS LOGISTICS,1018185175,4.97,
Department of Health,Salisbury NHS Foundation Trust,21-Dec-17,MEDSURGCONS - OTHER,Clinical Support,NHS LOGISTICS,1018185175,4.88,
Department of Health,Salisbury NHS Foundation Trust,21-Dec-17,TISSUES HAND TOWELS & TOILET PAPER,Clinical Support,NHS LOGISTICS,1018185175,0.78,
Department of Health,Salisbury NHS Foundation Trust,21-Dec-17,PATIENT APPLIANCES,Clinical Support,NHS LOGISTICS,1018185175,43.25,
Department of Health,Salisbury NHS Foundation Trust,21-Dec-17,DRESSINGS - PRE STERILE,Clinical Support,NHS LOGISTICS,1018185175,1.11,
Department of Health,Salisbury NHS Foundation Trust,21-Dec-17,DRESSINGS - PRE STERILE,Clinical Support,NHS LOGISTICS,1018185175,4.6,
Department of Health,Salisbury NHS Foundation Trust,21-Dec-17,MEDSURGCONS - OTHER,Clinical Support,NHS LOGISTICS,1018185175,9.77,
Department of Health,Salisbury NHS Foundation Trust,21-Dec-17,MED SURG EQUIP REP MAINT CLEANING,Clinical Support,NHS LOGISTICS,1018185175,29.88,
Department of Health,Salisbury NHS Foundation Trust,21-Dec-17,BABY TEXTURE MODIFIED FOODS,Clinical Support,NHS LOGISTICS,1018185175,31.65,
Department of Health,Salisbury NHS Foundation Trust,21-Dec-17,OTHER MEDICAL SUPPLIES,Clinical Support,NHS LOGISTICS,1018185175,1.88,
Department of Health,Salisbury NHS Foundation Trust,21-Dec-17,MEDSURGCONS - OTHER,Clinical Support,NHS LOGISTICS,1018185175,23.57,
Department of Health,Salisbury NHS Foundation Trust,21-Dec-17,TISSUES HAND TOWELS & TOILET PAPER,Clinical Support,NHS LOGISTICS,1018185175,21.3,
Department of Health,Salisbury NHS Foundation Trust,21-Dec-17,MEDSURGCONS - OTHER,Clinical Support,NHS LOGISTICS,1018185175,9.77,
Department of Health,Salisbury NHS Foundation Trust,21-Dec-17,TISSUES HAND TOWELS & TOILET PAPER,Clinical Support,NHS LOGISTICS,1018185175,1.17,
Department of Health,Salisbury NHS Foundation Trust,21-Dec-17,MEDSURGCONS - OTHER,Clinical Support,NHS LOGISTICS,1018185175,9.77,
Department of Health,Salisbury NHS Foundation Trust,21-Dec-17,OTHER MEDICAL SUPPLIES,Clinical Support,NHS LOGISTICS,1018185175,1.88,
Department of Health,Salisbury NHS Foundation Trust,21-Dec-17,OTHER MEDICAL SUPPLIES,Clinical Support,NHS LOGISTICS,1018185175,4.57,
Department of Health,Salisbury NHS Foundation Trust,21-Dec-17,MEDSURGCONS - OTHER,Musculo-Skeletal,NHS LOGISTICS,1018185175,85.83,
Department of Health,Salisbury NHS Foundation Trust,21-Dec-17,TOILETRIES PERSONAL HYGIENE PRODUCTS,Musculo-Skeletal,NHS LOGISTICS,1018185175,4.13,
Department of Health,Salisbury NHS Foundation Trust,21-Dec-17,DISPOSABLE THEATRE DRAPES WIPES,Musculo-Skeletal,NHS LOGISTICS,1018185175,15.4,
Department of Health,Salisbury NHS Foundation Trust,21-Dec-17,COOKING & KITCHEN UTENSILS,Clinical Support,NHS LOGISTICS,1018185175,13.61,
Department of Health,Salisbury NHS Foundation Trust,21-Dec-17,TOILETRIES PERSONAL HYGIENE PRODUCTS,Clinical Support,NHS LOGISTICS,1018185175,3.08,
Department of Health,Salisbury NHS Foundation Trust,21-Dec-17,DRESSINGS - PRE STERILE,Clinical Support,NHS LOGISTICS,1018185175,14,
Department of Health,Salisbury NHS Foundation Trust,21-Dec-17,MEDSURGCONS - OTHER,Clinical Support,NHS LOGISTICS,1018185175,9.77,
Department of Health,Salisbury NHS Foundation Trust,21-Dec-17,DRESSINGS - PRE STERILE,Clinical Support,NHS LOGISTICS,1018185175,2.22,
Department of Health,Salisbury NHS Foundation Trust,21-Dec-17,MED SURG EQUIP REP MAINT CLEANING,Clinical Support,NHS LOGISTICS,1018185175,12.8,
Department of Health,Salisbury NHS Foundation Trust,21-Dec-17,MEDSURGCONS - OTHER,Clinical Support,NHS LOGISTICS,1018185175,3.91,
Department of Health,Salisbury NHS Foundation Trust,21-Dec-17,BABY TEXTURE MODIFIED FOODS,Clinical Support,NHS LOGISTICS,1018185175,33.32,
Department of Health,Salisbury NHS Foundation Trust,21-Dec-17,BABY TEXTURE MODIFIED FOODS,Clinical Support,NHS LOGISTICS,1018185175,49.98,
Department of Health,Salisbury NHS Foundation Trust,21-Dec-17,DISPOSABLE THEATRE DRAPES WIPES,Clinical Support,NHS LOGISTICS,1018185175,3.55,
Department of Health,Salisbury NHS Foundation Trust,21-Dec-17,OTHER MEDICAL SUPPLIES,Corporate - Finance & Procurement,NHS LOGISTICS,1018185175,84.58,
Department of Health,Salisbury NHS Foundation Trust,21-Dec-17,OTHER MEDICAL SUPPLIES,Corporate - Finance & Procurement,NHS LOGISTICS,1018185175,59.43,
Department of Health,Salisbury NHS Foundation Trust,21-Dec-17,OTHER MEDICAL SUPPLIES,Corporate - Finance & Procurement,NHS LOGISTICS,1018185175,54.85,
Department of Health,Salisbury NHS Foundation Trust,21-Dec-17,OTHER MEDICAL SUPPLIES,Corporate - Finance & Procurement,NHS LOGISTICS,1018185175,59.43,
Department of Health,Salisbury NHS Foundation Trust,21-Dec-17,OTHER MEDICAL SUPPLIES,Corporate - Finance & Procurement,NHS LOGISTICS,1018185175,118.85,
Department of Health,Salisbury NHS Foundation Trust,21-Dec-17,OTHER MEDICAL SUPPLIES,Corporate - Finance & Procurement,NHS LOGISTICS,1018185175,61.72,
Department of Health,Salisbury NHS Foundation Trust,21-Dec-17,OTHER MEDICAL SUPPLIES,Corporate - Finance & Procurement,NHS LOGISTICS,1018185175,142.86,
Department of Health,Salisbury NHS Foundation Trust,21-Dec-17,PATIENTS BEDWEAR UNISEX,Clinical Support,NHS LOGISTICS,1018185175,16,
Department of Health,Salisbury NHS Foundation Trust,21-Dec-17,TOILETRIES PERSONAL HYGIENE PRODUCTS,Clinical Support,NHS LOGISTICS,1018185175,3.08,
Department of Health,Salisbury NHS Foundation Trust,21-Dec-17,DRESSINGS - PRE STERILE,Clinical Support,NHS LOGISTICS,1018185175,14,
Department of Health,Salisbury NHS Foundation Trust,21-Dec-17,DISPOSABLE THEATRE DRAPES WIPES,Clinical Support,NHS LOGISTICS,1018185175,12,
Department of Health,Salisbury NHS Foundation Trust,21-Dec-17,MEDSURGCONS - OTHER,Clinical Support,NHS LOGISTICS,1018185175,29.3,
Department of Health,Salisbury NHS Foundation Trust,21-Dec-17,M & S EQUIPELECTEQUIPINST - OTHER,Clinical Support,NHS LOGISTICS,1018185175,5.75,
Department of Health,Salisbury NHS Foundation Trust,21-Dec-17,SURGICAL INSTRUMENTS: DISPOSABLE,Clinical Support,NHS LOGISTICS,1018185175,41.02,
Department of Health,Salisbury NHS Foundation Trust,21-Dec-17,ANAESTHETIC EQUIPMENT ACCESSORIES,Clinical Support,NHS LOGISTICS,1018185175,1.88,
Department of Health,Salisbury NHS Foundation Trust,21-Dec-17,DRUGS,Clinical Support,NHS LOGISTICS,1018185175,4.68,
Department of Health,Salisbury NHS Foundation Trust,21-Dec-17,OTHER MEDICAL SUPPLIES,Clinical Support,NHS LOGISTICS,1018185175,1.88,
Department of Health,Salisbury NHS Foundation Trust,21-Dec-17,SERVICES FROM NHS BODIES,Clinical Support,NHS LOGISTICS,1018185175,4.44,
Department of Health,Salisbury NHS Foundation Trust,21-Dec-17,DRESSINGS - PRE STERILE,Clinical Support,NHS LOGISTICS,1018185175,49.52,
Department of Health,Salisbury NHS Foundation Trust,21-Dec-17,M & S EQUIPELECTEQUIPINST - OTHER,Clinical Support,NHS LOGISTICS,1018185175,1.6,
Department of Health,Salisbury NHS Foundation Trust,21-Dec-17,PATIENT APPLIANCES,Clinical Support,NHS LOGISTICS,1018185175,8.63,
Department of Health,Salisbury NHS Foundation Trust,21-Dec-17,PATIENT APPLIANCES,Clinical Support,NHS LOGISTICS,1018185175,15.6,
Department of Health,Salisbury NHS Foundation Trust,21-Dec-17,DISPOSABLE THEATRE DRAPES WIPES,Clinical Support,NHS LOGISTICS,1018185175,7.1,
Department of Health,Salisbury NHS Foundation Trust,21-Dec-17,DRESSINGS - PRE STERILE,Medicine,NHS LOGISTICS,1018185175,14,
Department of Health,Salisbury NHS Foundation Trust,21-Dec-17,DRESSINGS - PRE STERILE,Medicine,NHS LOGISTICS,1018185175,7.48,
Department of Health,Salisbury NHS Foundation Trust,21-Dec-17,MEDSURGCONS - OTHER,Medicine,NHS LOGISTICS,1018185175,14.65,
Department of Health,Salisbury NHS Foundation Trust,21-Dec-17,MEDSURGCONS - OTHER,Medicine,NHS LOGISTICS,1018185175,57.78,
Department of Health,Salisbury NHS Foundation Trust,21-Dec-17,TUBES,Medicine,NHS LOGISTICS,1018185175,20.55,
Department of Health,Salisbury NHS Foundation Trust,21-Dec-17,SURGICAL INSTRUMENTS: GENERAL,Medicine,NHS LOGISTICS,1018185175,9.83,
Department of Health,Salisbury NHS Foundation Trust,21-Dec-17,ANAESTHETIC EQUIPMENT ACCESSORIES,Medicine,NHS LOGISTICS,1018185175,3.13,
Department of Health,Salisbury NHS Foundation Trust,21-Dec-17,OTHER MEDICAL SUPPLIES,Medicine,NHS LOGISTICS,1018185175,1.88,
Department of Health,Salisbury NHS Foundation Trust,21-Dec-17,MEDSURGCONS - OTHER,Medicine,NHS LOGISTICS,1018185175,5.89,
Department of Health,Salisbury NHS Foundation Trust,21-Dec-17,MEDSURGCONS - OTHER,Medicine,NHS LOGISTICS,1018185175,6.82,
Department of Health,Salisbury NHS Foundation Trust,21-Dec-17,TISSUES HAND TOWELS & TOILET PAPER,Medicine,NHS LOGISTICS,1018185175,1.4,
Department of Health,Salisbury NHS Foundation Trust,21-Dec-17,DISPOSABLE THEATRE DRAPES WIPES,Medicine,NHS LOGISTICS,1018185175,3.55,
Department of Health,Salisbury NHS Foundation Trust,21-Dec-17,MEDSURGCONS - OTHER,Surgery,NHS LOGISTICS,1018185175,4.88,
Department of Health,Salisbury NHS Foundation Trust,21-Dec-17,TISSUES HAND TOWELS & TOILET PAPER,Surgery,NHS LOGISTICS,1018185175,0.78,
Department of Health,Salisbury NHS Foundation Trust,21-Dec-17,MEDSURGCONS - OTHER,Surgery,NHS LOGISTICS,1018185175,4.88,
Department of Health,Salisbury NHS Foundation Trust,21-Dec-17,MEDSURGCONS - OTHER,Surgery,NHS LOGISTICS,1018185175,19.53,
Department of Health,Salisbury NHS Foundation Trust,21-Dec-17,ANAESTHETIC EQUIPMENT ACCESSORIES,Surgery,NHS LOGISTICS,1018185175,2.5,
Department of Health,Salisbury NHS Foundation Trust,21-Dec-17,PATIENT APPLIANCES,Surgery,NHS LOGISTICS,1018185175,3.35,
Department of Health,Salisbury NHS Foundation Trust,21-Dec-17,TOILETRIES PERSONAL HYGIENE PRODUCTS,Surgery,NHS LOGISTICS,1018185175,4.15,
Department of Health,Salisbury NHS Foundation Trust,21-Dec-17,TISSUES HAND TOWELS & TOILET PAPER,Surgery,NHS LOGISTICS,1018185175,0.7,
Department of Health,Salisbury NHS Foundation Trust,21-Dec-17,DISPOSABLE THEATRE DRAPES WIPES,Surgery,NHS LOGISTICS,1018185175,3.55,
Department of Health,Salisbury NHS Foundation Trust,21-Dec-17,MEDSURGCONS - OTHER,Surgery,NHS LOGISTICS,1018185175,14.65,
Department of Health,Salisbury NHS Foundation Trust,21-Dec-17,ANAESTHETIC EQUIPMENT ACCESSORIES,Surgery,NHS LOGISTICS,1018185175,2.5,
Department of Health,Salisbury NHS Foundation Trust,21-Dec-17,OTHER MEDICAL SUPPLIES,Surgery,NHS LOGISTICS,1018185175,5.58,
Department of Health,Salisbury NHS Foundation Trust,21-Dec-17,OTHER MEDICAL SUPPLIES,Surgery,NHS LOGISTICS,1018185175,3.77,
Department of Health,Salisbury NHS Foundation Trust,21-Dec-17,DISPOSABLE THEATRE DRAPES WIPES,Surgery,NHS LOGISTICS,1018185175,3.55,
Department of Health,Salisbury NHS Foundation Trust,21-Dec-17,BAGS SACKS - OTHER,Surgery,NHS LOGISTICS,1018185175,5.23,
Department of Health,Salisbury NHS Foundation Trust,21-Dec-17,DRESSINGS - PRE STERILE,Surgery,NHS LOGISTICS,1018185175,2.85,
Department of Health,Salisbury NHS Foundation Trust,21-Dec-17,TOILETRIES PERSONAL HYGIENE PRODUCTS,Surgery,NHS LOGISTICS,1018185175,4.63,
Department of Health,Salisbury NHS Foundation Trust,21-Dec-17,HEALTHCARE - WEAR,Surgery,NHS LOGISTICS,1018185175,19.68,
Department of Health,Salisbury NHS Foundation Trust,21-Dec-17,SURGICAL INSTRUMENTS: GENERAL,Surgery,NHS LOGISTICS,1018185175,10.2,
Department of Health,Salisbury NHS Foundation Trust,21-Dec-17,SURGICAL INSTRUMENTS: GENERAL,Surgery,NHS LOGISTICS,1018185175,14.58,
Department of Health,Salisbury NHS Foundation Trust,21-Dec-17,TOILETRIES PERSONAL HYGIENE PRODUCTS,Surgery,NHS LOGISTICS,1018185175,12.1,
Department of Health,Salisbury NHS Foundation Trust,21-Dec-17,OTHER MEDICAL SUPPLIES,Surgery,NHS LOGISTICS,1018185175,505.72,
Department of Health,Salisbury NHS Foundation Trust,21-Dec-17,D IMAG & RADIO - X RAY FILM PROCESSING CHEMICALS,Surgery,NHS LOGISTICS,1018185175,112.58,
Department of Health,Salisbury NHS Foundation Trust,21-Dec-17,CLEANING MATERIALS PRODUCTS SUNDRIES,Surgery,NHS LOGISTICS,1018185175,1.15,
Department of Health,Salisbury NHS Foundation Trust,21-Dec-17,DISPOSABLE THEATRE DRAPES WIPES,Surgery,NHS LOGISTICS,1018185175,4.97,
Department of Health,Salisbury NHS Foundation Trust,21-Dec-17,DRESSINGS - PRE STERILE,Surgery,NHS LOGISTICS,1018185175,8.6,
Department of Health,Salisbury NHS Foundation Trust,21-Dec-17,OTHER MEDICAL SUPPLIES,Corporate - Finance & Procurement,NHS LOGISTICS,1018185175,150,
Department of Health,Salisbury NHS Foundation Trust,21-Dec-17,LAB EQUIP-ANALYSERS,Corporate - Finance & Procurement,NHS LOGISTICS,1018185175,120,
Department of Health,Salisbury NHS Foundation Trust,21-Dec-17,COOKING & KITCHEN UTENSILS,Corporate - Finance & Procurement,NHS LOGISTICS,1018185175,111,
Department of Health,Salisbury NHS Foundation Trust,21-Dec-17,PATIENTS FOOTWEAR,Corporate - Finance & Procurement,NHS LOGISTICS,1018185175,51.92,
Department of Health,Salisbury NHS Foundation Trust,21-Dec-17,PATIENTS FOOTWEAR,Corporate - Finance & Procurement,NHS LOGISTICS,1018185175,129.97,
Department of Health,Salisbury NHS Foundation Trust,21-Dec-17,PATIENT APPLIANCES,Clinical Support,NHS LOGISTICS,1018185175,38.05,
Department of Health,Salisbury NHS Foundation Trust,21-Dec-17,TISSUES HAND TOWELS & TOILET PAPER,Clinical Support,NHS LOGISTICS,1018185175,6.21,
Department of Health,Salisbury NHS Foundation Trust,21-Dec-17,MEDSURGCONS - OTHER,Clinical Support,NHS LOGISTICS,1018185175,39.07,
Department of Health,Salisbury NHS Foundation Trust,21-Dec-17,OTHER MEDICAL SUPPLIES,Clinical Support,NHS LOGISTICS,1018185175,9.38,
Department of Health,Salisbury NHS Foundation Trust,21-Dec-17,PATIENT APPLIANCES,Clinical Support,NHS LOGISTICS,1018185175,43.25,
Department of Health,Salisbury NHS Foundation Trust,21-Dec-17,DRESSINGS - PRE STERILE,Clinical Support,NHS LOGISTICS,1018185175,1.11,
Department of Health,Salisbury NHS Foundation Trust,21-Dec-17,DISPOSABLE THEATRE DRAPES WIPES,Clinical Support,NHS LOGISTICS,1018185175,3.55,
Department of Health,Salisbury NHS Foundation Trust,21-Dec-17,TISSUES HAND TOWELS & TOILET PAPER,Surgery,NHS LOGISTICS,1018185175,4.97,
Department of Health,Salisbury NHS Foundation Trust,21-Dec-17,TISSUES HAND TOWELS & TOILET PAPER,Surgery,NHS LOGISTICS,1018185175,0.78,
Department of Health,Salisbury NHS Foundation Trust,21-Dec-17,MEDSURGCONS - OTHER,Surgery,NHS LOGISTICS,1018185175,87.1,
Department of Health,Salisbury NHS Foundation Trust,21-Dec-17,DRESSINGS - PRE STERILE,Surgery,NHS LOGISTICS,1018185175,2.49,
Department of Health,Salisbury NHS Foundation Trust,21-Dec-17,ANAESTHETIC EQUIPMENT ACCESSORIES,Surgery,NHS LOGISTICS,1018185175,25.78,
Department of Health,Salisbury NHS Foundation Trust,21-Dec-17,MEDSURGCONS - OTHER,Surgery,NHS LOGISTICS,1018185175,24.42,
Department of Health,Salisbury NHS Foundation Trust,21-Dec-17,MEDSURGCONS - OTHER,Surgery,NHS LOGISTICS,1018185175,42.92,
Department of Health,Salisbury NHS Foundation Trust,21-Dec-17,MEDSURGCONS - OTHER,Surgery,NHS LOGISTICS,1018185175,57.78,
Department of Health,Salisbury NHS Foundation Trust,21-Dec-17,MED SURG EQUIP REP MAINT CLEANING,Surgery,NHS LOGISTICS,1018185175,454.21,
Department of Health,Salisbury NHS Foundation Trust,21-Dec-17,MED SURG EQUIP REP MAINT CLEANING,Surgery,NHS LOGISTICS,1018185175,28.35,
Department of Health,Salisbury NHS Foundation Trust,21-Dec-17,MEDSURGCONS - OTHER,Surgery,NHS LOGISTICS,1018185175,10.71,
Department of Health,Salisbury NHS Foundation Trust,21-Dec-17,MEDSURGCONS - OTHER,Surgery,NHS LOGISTICS,1018185175,101.8,
Department of Health,Salisbury NHS Foundation Trust,21-Dec-17,OTHER MEDICAL SUPPLIES,Surgery,NHS LOGISTICS,1018185175,11.3,
Department of Health,Salisbury NHS Foundation Trust,21-Dec-17,TOILETRIES PERSONAL HYGIENE PRODUCTS,Surgery,NHS LOGISTICS,1018185175,4.15,
Department of Health,Salisbury NHS Foundation Trust,21-Dec-17,MEDSURGCONS - OTHER,Surgery,NHS LOGISTICS,1018185175,143.48,
Department of Health,Salisbury NHS Foundation Trust,21-Dec-17,MEDSURGCONS - OTHER,Surgery,NHS LOGISTICS,1018185175,6.82,
Department of Health,Salisbury NHS Foundation Trust,21-Dec-17,TOILETRIES PERSONAL HYGIENE PRODUCTS,Surgery,NHS LOGISTICS,1018185175,0.93,
Department of Health,Salisbury NHS Foundation Trust,21-Dec-17,OTHER MEDICAL SUPPLIES,Surgery,NHS LOGISTICS,1018185175,47.23,
Department of Health,Salisbury NHS Foundation Trust,21-Dec-17,PATIENT APPLIANCES,Surgery,NHS LOGISTICS,1018185175,23.4,
Department of Health,Salisbury NHS Foundation Trust,21-Dec-17,DISPOSABLE THEATRE DRAPES WIPES,Surgery,NHS LOGISTICS,1018185175,7.1,
Department of Health,Salisbury NHS Foundation Trust,21-Dec-17,MEDSURGCONS - OTHER,Surgery,NHS LOGISTICS,1018185175,18.69,
Department of Health,Salisbury NHS Foundation Trust,21-Dec-17,MEDSURGCONS - OTHER,Medicine,NHS LOGISTICS,1018185175,10.73,
Department of Health,Salisbury NHS Foundation Trust,21-Dec-17,TISSUES HAND TOWELS & TOILET PAPER,Medicine,NHS LOGISTICS,1018185175,2.48,
Department of Health,Salisbury NHS Foundation Trust,21-Dec-17,DRESSINGS - PRE STERILE,Medicine,NHS LOGISTICS,1018185175,12.46,
Department of Health,Salisbury NHS Foundation Trust,21-Dec-17,DRESSINGS - PRE STERILE,Medicine,NHS LOGISTICS,1018185175,28.67,
Department of Health,Salisbury NHS Foundation Trust,21-Dec-17,MEDSURGCONS - OTHER,Medicine,NHS LOGISTICS,1018185175,9.77,
Department of Health,Salisbury NHS Foundation Trust,21-Dec-17,TISSUES HAND TOWELS & TOILET PAPER,Medicine,NHS LOGISTICS,1018185175,1.57,
Department of Health,Salisbury NHS Foundation Trust,21-Dec-17,M & S EQUIPELECTEQUIPINST - OTHER,Medicine,NHS LOGISTICS,1018185175,3.08,
Department of Health,Salisbury NHS Foundation Trust,21-Dec-17,PATIENT APPLIANCES,Medicine,NHS LOGISTICS,1018185175,8.78,
Department of Health,Salisbury NHS Foundation Trust,21-Dec-17,MEDSURGCONS - OTHER,Medicine,NHS LOGISTICS,1018185175,3.91,
Department of Health,Salisbury NHS Foundation Trust,21-Dec-17,TISSUES HAND TOWELS & TOILET PAPER,Medicine,NHS LOGISTICS,1018185175,0.35,
Department of Health,Salisbury NHS Foundation Trust,21-Dec-17,LAB EQUIP-LABORATORY APPARATUS,Surgery,NHS LOGISTICS,1018185175,4.61,
Department of Health,Salisbury NHS Foundation Trust,21-Dec-17,COOKING & KITCHEN UTENSILS,Clinical Support,NHS LOGISTICS,1018185175,361.94,
Department of Health,Salisbury NHS Foundation Trust,21-Dec-17,EGGS MILK OTHER DAIRY PRODUCTS,Facilities,NHS LOGISTICS,1018185175,129.16,
Department of Health,Salisbury NHS Foundation Trust,21-Dec-17,FRUIT & VEGETABLES,Facilities,NHS LOGISTICS,1018185175,41.68,
Department of Health,Salisbury NHS Foundation Trust,21-Dec-17,BEVERAGES & AMBIENT FOOD,Facilities,NHS LOGISTICS,1018185175,63.12,
Department of Health,Salisbury NHS Foundation Trust,21-Dec-17,BEVERAGES & AMBIENT FOOD,Facilities,NHS LOGISTICS,1018185175,57.48,
Department of Health,Salisbury NHS Foundation Trust,21-Dec-17,BEVERAGES & AMBIENT FOOD,Facilities,NHS LOGISTICS,1018185175,18.3,
Department of Health,Salisbury NHS Foundation Trust,21-Dec-17,BEVERAGES & AMBIENT FOOD,Facilities,NHS LOGISTICS,1018185175,27.12,
Department of Health,Salisbury NHS Foundation Trust,21-Dec-17,BEVERAGES & AMBIENT FOOD,Facilities,NHS LOGISTICS,1018185175,7.02,
Department of Health,Salisbury NHS Foundation Trust,21-Dec-17,BEVERAGES & AMBIENT FOOD,Facilities,NHS LOGISTICS,1018185175,17.36,
Department of Health,Salisbury NHS Foundation Trust,21-Dec-17,BEVERAGES & AMBIENT FOOD,Facilities,NHS LOGISTICS,1018185175,5.04,
Department of Health,Salisbury NHS Foundation Trust,21-Dec-17,BEVERAGES & AMBIENT FOOD,Facilities,NHS LOGISTICS,1018185175,7.72,
Department of Health,Salisbury NHS Foundation Trust,21-Dec-17,BEVERAGES & AMBIENT FOOD,Facilities,NHS LOGISTICS,1018185175,18.78,
Department of Health,Salisbury NHS Foundation Trust,21-Dec-17,BEVERAGES & AMBIENT FOOD,Facilities,NHS LOGISTICS,1018185175,6.26,
Department of Health,Salisbury NHS Foundation Trust,21-Dec-17,BEVERAGES & AMBIENT FOOD,Facilities,NHS LOGISTICS,1018185175,25.5,
Department of Health,Salisbury NHS Foundation Trust,21-Dec-17,FLAVOURINGS HERBS SPICES,Facilities,NHS LOGISTICS,1018185175,6.84,
Department of Health,Salisbury NHS Foundation Trust,21-Dec-17,COOKING & KITCHEN UTENSILS,Facilities,NHS LOGISTICS,1018185175,25,
Department of Health,Salisbury NHS Foundation Trust,21-Dec-17,BEVERAGES & AMBIENT FOOD,Facilities,NHS LOGISTICS,1018185175,18.72,
Department of Health,Salisbury NHS Foundation Trust,21-Dec-17,LIQUID REFRESHMENTS,Facilities,NHS LOGISTICS,1018185175,3.91,
Department of Health,Salisbury NHS Foundation Trust,21-Dec-17,BEVERAGES & AMBIENT FOOD,Facilities,NHS LOGISTICS,1018185175,10.72,
Department of Health,Salisbury NHS Foundation Trust,21-Dec-17,EGGS MILK OTHER DAIRY PRODUCTS,Facilities,NHS LOGISTICS,1018185175,23.24,
Department of Health,Salisbury NHS Foundation Trust,21-Dec-17,BEVERAGES & AMBIENT FOOD,Facilities,NHS LOGISTICS,1018185175,17.7,
Department of Health,Salisbury NHS Foundation Trust,21-Dec-17,MEAT GAME POULTRY FISH,Facilities,NHS LOGISTICS,1018185175,51.84,
Department of Health,Salisbury NHS Foundation Trust,21-Dec-17,FRUIT & VEGETABLES,Facilities,NHS LOGISTICS,1018185175,48,
Department of Health,Salisbury NHS Foundation Trust,21-Dec-17,BEVERAGES & AMBIENT FOOD,Facilities,NHS LOGISTICS,1018185175,47.44,
Department of Health,Salisbury NHS Foundation Trust,21-Dec-17,BEVERAGES & AMBIENT FOOD,Facilities,NHS LOGISTICS,1018185175,94.4,
Department of Health,Salisbury NHS Foundation Trust,21-Dec-17,BEVERAGES & AMBIENT FOOD,Facilities,NHS LOGISTICS,1018185175,32.22,
Department of Health,Salisbury NHS Foundation Trust,21-Dec-17,BAGS SACKS - OTHER,Facilities,NHS LOGISTICS,1018185175,7.21,
Department of Health,Salisbury NHS Foundation Trust,21-Dec-17,BAGS SACKS - OTHER,Facilities,NHS LOGISTICS,1018185175,10.13,
Department of Health,Salisbury NHS Foundation Trust,21-Dec-17,FRUIT & VEGETABLES,Facilities,NHS LOGISTICS,1018185175,145.86,
Department of Health,Salisbury NHS Foundation Trust,21-Dec-17,FRUIT & VEGETABLES,Facilities,NHS LOGISTICS,1018185175,23.4,
Department of Health,Salisbury NHS Foundation Trust,21-Dec-17,FRUIT & VEGETABLES,Facilities,NHS LOGISTICS,1018185175,25.56,
Department of Health,Salisbury NHS Foundation Trust,21-Dec-17,FRUIT & VEGETABLES,Facilities,NHS LOGISTICS,1018185175,10.92,
Department of Health,Salisbury NHS Foundation Trust,21-Dec-17,FRUIT & VEGETABLES,Facilities,NHS LOGISTICS,1018185175,60.84,
Department of Health,Salisbury NHS Foundation Trust,21-Dec-17,FRUIT & VEGETABLES,Facilities,NHS LOGISTICS,1018185175,35.64,
Department of Health,Salisbury NHS Foundation Trust,21-Dec-17,FRUIT & VEGETABLES,Facilities,NHS LOGISTICS,1018185175,17.94,
Department of Health,Salisbury NHS Foundation Trust,21-Dec-17,FRUIT & VEGETABLES,Facilities,NHS LOGISTICS,1018185175,9.6,
Department of Health,Salisbury NHS Foundation Trust,21-Dec-17,LIQUID REFRESHMENTS,Facilities,NHS LOGISTICS,1018185175,14.97,
Department of Health,Salisbury NHS Foundation Trust,21-Dec-17,LIQUID REFRESHMENTS,Facilities,NHS LOGISTICS,1018185175,9.32,
Department of Health,Salisbury NHS Foundation Trust,21-Dec-17,MEAT GAME POULTRY FISH,Facilities,NHS LOGISTICS,1018185175,23.28,
Department of Health,Salisbury NHS Foundation Trust,21-Dec-17,BEVERAGES & AMBIENT FOOD,Facilities,NHS LOGISTICS,1018185175,7.68,
Department of Health,Salisbury NHS Foundation Trust,21-Dec-17,LIQUID REFRESHMENTS,Facilities,NHS LOGISTICS,1018185175,8.68,
Department of Health,Salisbury NHS Foundation Trust,21-Dec-17,LIQUID REFRESHMENTS,Facilities,NHS LOGISTICS,1018185175,24.63,
Department of Health,Salisbury NHS Foundation Trust,21-Dec-17,LIQUID REFRESHMENTS,Facilities,NHS LOGISTICS,1018185175,26.33,
Department of Health,Salisbury NHS Foundation Trust,21-Dec-17,LIQUID REFRESHMENTS,Facilities,NHS LOGISTICS,1018185175,39.75,
Department of Health,Salisbury NHS Foundation Trust,21-Dec-17,LIQUID REFRESHMENTS,Facilities,NHS LOGISTICS,1018185175,53,
Department of Health,Salisbury NHS Foundation Trust,21-Dec-17,BEVERAGES & AMBIENT FOOD,Facilities,NHS LOGISTICS,1018185175,32.34,
Department of Health,Salisbury NHS Foundation Trust,21-Dec-17,BEVERAGES & AMBIENT FOOD,Facilities,NHS LOGISTICS,1018185175,103.5,
Department of Health,Salisbury NHS Foundation Trust,21-Dec-17,BEVERAGES & AMBIENT FOOD,Facilities,NHS LOGISTICS,1018185175,7.79,
Department of Health,Salisbury NHS Foundation Trust,21-Dec-17,COOKING & KITCHEN UTENSILS,Facilities,NHS LOGISTICS,1018185175,16.04,
Department of Health,Salisbury NHS Foundation Trust,21-Dec-17,BEVERAGES & AMBIENT FOOD,Facilities,NHS LOGISTICS,1018185175,40.23,
Department of Health,Salisbury NHS Foundation Trust,21-Dec-17,BEVERAGES & AMBIENT FOOD,Facilities,NHS LOGISTICS,1018185175,11.86,
Department of Health,Salisbury NHS Foundation Trust,21-Dec-17,BEVERAGES & AMBIENT FOOD,Facilities,NHS LOGISTICS,1018185175,51.96,
Department of Health,Salisbury NHS Foundation Trust,21-Dec-17,BEVERAGES & AMBIENT FOOD,Facilities,NHS LOGISTICS,1018185175,29.04,
Department of Health,Salisbury NHS Foundation Trust,21-Dec-17,FLAVOURINGS HERBS SPICES,Facilities,NHS LOGISTICS,1018185175,3.1,
Department of Health,Salisbury NHS Foundation Trust,21-Dec-17,BEVERAGES & AMBIENT FOOD,Facilities,NHS LOGISTICS,1018185175,17.68,
Department of Health,Salisbury NHS Foundation Trust,21-Dec-17,BEVERAGES & AMBIENT FOOD,Facilities,NHS LOGISTICS,1018185175,10.8,
Department of Health,Salisbury NHS Foundation Trust,21-Dec-17,BEVERAGES & AMBIENT FOOD,Facilities,NHS LOGISTICS,1018185175,17.12,
Department of Health,Salisbury NHS Foundation Trust,21-Dec-17,BEVERAGES & AMBIENT FOOD,Facilities,NHS LOGISTICS,1018185175,2.63,
Department of Health,Salisbury NHS Foundation Trust,21-Dec-17,BEVERAGES & AMBIENT FOOD,Facilities,NHS LOGISTICS,1018185175,6.12,
Department of Health,Salisbury NHS Foundation Trust,21-Dec-17,FLAVOURINGS HERBS SPICES,Facilities,NHS LOGISTICS,1018185175,2.84,
Department of Health,Salisbury NHS Foundation Trust,21-Dec-17,FLAVOURINGS HERBS SPICES,Facilities,NHS LOGISTICS,1018185175,5.14,
Department of Health,Salisbury NHS Foundation Trust,21-Dec-17,FLAVOURINGS HERBS SPICES,Facilities,NHS LOGISTICS,1018185175,3.64,
Department of Health,Salisbury NHS Foundation Trust,21-Dec-17,FLAVOURINGS HERBS SPICES,Facilities,NHS LOGISTICS,1018185175,10.07,
Department of Health,Salisbury NHS Foundation Trust,21-Dec-17,BEVERAGES & AMBIENT FOOD,Facilities,NHS LOGISTICS,1018185175,24.48,
Department of Health,Salisbury NHS Foundation Trust,21-Dec-17,BEVERAGES & AMBIENT FOOD,Facilities,NHS LOGISTICS,1018185175,9.18,
Department of Health,Salisbury NHS Foundation Trust,21-Dec-17,LIQUID REFRESHMENTS,Facilities,NHS LOGISTICS,1018185175,81.6,
Department of Health,Salisbury NHS Foundation Trust,21-Dec-17,LIQUID REFRESHMENTS,Facilities,NHS LOGISTICS,1018185175,3.29,
Department of Health,Salisbury NHS Foundation Trust,21-Dec-17,LIQUID REFRESHMENTS,Facilities,NHS LOGISTICS,1018185175,9.3,
Department of Health,Salisbury NHS Foundation Trust,21-Dec-17,LIQUID REFRESHMENTS,Facilities,NHS LOGISTICS,1018185175,2.53,
Department of Health,Salisbury NHS Foundation Trust,21-Dec-17,LIQUID REFRESHMENTS,Facilities,NHS LOGISTICS,1018185175,2.53,
Department of Health,Salisbury NHS Foundation Trust,21-Dec-17,LIQUID REFRESHMENTS,Facilities,NHS LOGISTICS,1018185175,5.82,
Department of Health,Salisbury NHS Foundation Trust,21-Dec-17,BEVERAGES & AMBIENT FOOD,Facilities,NHS LOGISTICS,1018185175,74.2,
Department of Health,Salisbury NHS Foundation Trust,21-Dec-17,BEVERAGES & AMBIENT FOOD,Facilities,NHS LOGISTICS,1018185175,74.2,
Department of Health,Salisbury NHS Foundation Trust,21-Dec-17,BEVERAGES & AMBIENT FOOD,Facilities,NHS LOGISTICS,1018185175,74.2,
Department of Health,Salisbury NHS Foundation Trust,21-Dec-17,BEVERAGES & AMBIENT FOOD,Facilities,NHS LOGISTICS,1018185175,105.48,
Department of Health,Salisbury NHS Foundation Trust,21-Dec-17,FRUIT & VEGETABLES,Facilities,NHS LOGISTICS,1018185175,30.6,
Department of Health,Salisbury NHS Foundation Trust,21-Dec-17,FRUIT & VEGETABLES,Facilities,NHS LOGISTICS,1018185175,12.96,
Department of Health,Salisbury NHS Foundation Trust,21-Dec-17,FRUIT & VEGETABLES,Facilities,NHS LOGISTICS,1018185175,30.48,
Department of Health,Salisbury NHS Foundation Trust,21-Dec-17,FRUIT & VEGETABLES,Facilities,NHS LOGISTICS,1018185175,78.12,
Department of Health,Salisbury NHS Foundation Trust,21-Dec-17,FRUIT & VEGETABLES,Facilities,NHS LOGISTICS,1018185175,21.54,
Department of Health,Salisbury NHS Foundation Trust,21-Dec-17,COOKING & KITCHEN UTENSILS,Facilities,NHS LOGISTICS,1018185175,25.28,
Department of Health,Salisbury NHS Foundation Trust,21-Dec-17,FRUIT & VEGETABLES,Facilities,NHS LOGISTICS,1018185175,19.86,
Department of Health,Salisbury NHS Foundation Trust,21-Dec-17,FRUIT & VEGETABLES,Facilities,NHS LOGISTICS,1018185175,26.4,
Department of Health,Salisbury NHS Foundation Trust,21-Dec-17,BEVERAGES & AMBIENT FOOD,Facilities,NHS LOGISTICS,1018185175,16.26,
Department of Health,Salisbury NHS Foundation Trust,21-Dec-17,BEVERAGES & AMBIENT FOOD,Facilities,NHS LOGISTICS,1018185175,36.24,
Department of Health,Salisbury NHS Foundation Trust,21-Dec-17,BEVERAGES & AMBIENT FOOD,Facilities,NHS LOGISTICS,1018185175,8.47,
Department of Health,Salisbury NHS Foundation Trust,21-Dec-17,BEVERAGES & AMBIENT FOOD,Facilities,NHS LOGISTICS,1018185175,16.49,
Department of Health,Salisbury NHS Foundation Trust,21-Dec-17,LIQUID REFRESHMENTS,Facilities,NHS LOGISTICS,1018185175,7.43,
Department of Health,Salisbury NHS Foundation Trust,21-Dec-17,LIQUID REFRESHMENTS,Facilities,NHS LOGISTICS,1018185175,21.05,
Department of Health,Salisbury NHS Foundation Trust,21-Dec-17,ADULTS HEARING AIDS,Surgery,NHS LOGISTICS,1018185175,26.04,
Department of Health,Salisbury NHS Foundation Trust,21-Dec-17,M & S EQUIPELECTEQUIPINST - OTHER,Clinical Support,NHS LOGISTICS,1018185175,11.66,
Department of Health,Salisbury NHS Foundation Trust,21-Dec-17,SURGICAL INSTRUMENTS: GENERAL,Medicine,NHS LOGISTICS,1018185175,20,
Department of Health,Salisbury NHS Foundation Trust,21-Dec-17,DRESSINGS - PRE STERILE,Musculo-Skeletal,NHS LOGISTICS,1018185175,15.83,
Department of Health,Salisbury NHS Foundation Trust,21-Dec-17,BAGS SACKS - OTHER,Clinical Support,NHS LOGISTICS,1018185175,4.52,
Department of Health,Salisbury NHS Foundation Trust,21-Dec-17,ELECTRICAL EQUIPMENT x,Clinical Support,NHS LOGISTICS,1018185175,3.87,
Department of Health,Salisbury NHS Foundation Trust,21-Dec-17,LAB EQUIP-LABORATORY APPARATUS,Clinical Support,NHS LOGISTICS,1018185175,8.66,
Department of Health,Salisbury NHS Foundation Trust,21-Dec-17,TISSUES HAND TOWELS & TOILET PAPER,Clinical Support,NHS LOGISTICS,1018185175,4.26,
Department of Health,Salisbury NHS Foundation Trust,21-Dec-17,DRESSINGS - PRE STERILE,Musculo-Skeletal,NHS LOGISTICS,1018185175,9.52,
Department of Health,Salisbury NHS Foundation Trust,21-Dec-17,DRESSINGS - PRE STERILE,Musculo-Skeletal,NHS LOGISTICS,1018185175,10.06,
Department of Health,Salisbury NHS Foundation Trust,21-Dec-17,DRESSINGS - PRE STERILE,Musculo-Skeletal,NHS LOGISTICS,1018185175,13.41,
Department of Health,Salisbury NHS Foundation Trust,21-Dec-17,DRESSINGS - PRE STERILE,Musculo-Skeletal,NHS LOGISTICS,1018185175,5.33,
Department of Health,Salisbury NHS Foundation Trust,21-Dec-17,DRESSINGS - PRE STERILE,Musculo-Skeletal,NHS LOGISTICS,1018185175,5.81,
Department of Health,Salisbury NHS Foundation Trust,21-Dec-17,SURGICAL INSTRUMENTS: GENERAL,Surgery,NHS LOGISTICS,1018185175,22.18,
Department of Health,Salisbury NHS Foundation Trust,21-Dec-17,SURGICAL INSTRUMENTS: GENERAL,Surgery,NHS LOGISTICS,1018185175,23.2,
Department of Health,Salisbury NHS Foundation Trust,21-Dec-17,M & S EQUIPELECTEQUIPINST - OTHER,Surgery,NHS LOGISTICS,1018185175,22.92,
Department of Health,Salisbury NHS Foundation Trust,21-Dec-17,ADULTS HEARING AIDS,Surgery,NHS LOGISTICS,1018185175,141.5,
Department of Health,Salisbury NHS Foundation Trust,21-Dec-17,BAGS SACKS - OTHER,Clinical Support,NHS LOGISTICS,1018185175,2.77,
Department of Health,Salisbury NHS Foundation Trust,21-Dec-17,M & S EQUIPELECTEQUIPINST - OTHER,Clinical Support,NHS LOGISTICS,1018185175,74.23,
Department of Health,Salisbury NHS Foundation Trust,21-Dec-17,M & S EQUIPELECTEQUIPINST - OTHER,Surgery,NHS LOGISTICS,1018185175,5.38,
Department of Health,Salisbury NHS Foundation Trust,21-Dec-17,DRESSINGS - PRE STERILE,Musculo-Skeletal,NHS LOGISTICS,1018185175,31.65,
Department of Health,Salisbury NHS Foundation Trust,21-Dec-17,DISPOSABLE THEATRE DRAPES WIPES,Clinical Support,NHS LOGISTICS,1018185175,17.76,
Department of Health,Salisbury NHS Foundation Trust,21-Dec-17,MEDSURGCONS - OTHER,Surgery,NHS LOGISTICS,1018185175,0.48,
Department of Health,Salisbury NHS Foundation Trust,21-Dec-17,CONTOUTSERVICES - WASTE DISPOSAL,Corporate - ETS,NHS LOGISTICS,1018185175,73.61,
Department of Health,Salisbury NHS Foundation Trust,21-Dec-17,COOKING & KITCHEN UTENSILS,Surgery,NHS LOGISTICS,1018185175,1.92,
Department of Health,Salisbury NHS Foundation Trust,21-Dec-17,M & S EQUIPELECTEQUIPINST - OTHER,Medicine,NHS LOGISTICS,1018185175,4.62,
Department of Health,Salisbury NHS Foundation Trust,21-Dec-17,PATIENT APPLIANCES,Clinical Support,NHS LOGISTICS,1018185175,56.67,
Department of Health,Salisbury NHS Foundation Trust,21-Dec-17,OTHER MEDICAL SUPPLIES,Corporate - Finance & Procurement,NHS LOGISTICS,1018185175,2.37,
Department of Health,Salisbury NHS Foundation Trust,21-Dec-17,DRESSINGS - PRE STERILE,Corporate - Finance & Procurement,NHS LOGISTICS,1018185175,11.64,
Department of Health,Salisbury NHS Foundation Trust,21-Dec-17,MEDSURGCONS - OTHER,Musculo-Skeletal,NHS LOGISTICS,1018185175,31.05,
Department of Health,Salisbury NHS Foundation Trust,21-Dec-17,MEDSURGCONS - OTHER,Musculo-Skeletal,NHS LOGISTICS,1018185175,31.05,
Department of Health,Salisbury NHS Foundation Trust,21-Dec-17,MEDSURGCONS - OTHER,Surgery,NHS LOGISTICS,1018185175,2.15,
Department of Health,Salisbury NHS Foundation Trust,21-Dec-17,MEDSURGCONS - OTHER,Surgery,NHS LOGISTICS,1018185175,0.98,
Department of Health,Salisbury NHS Foundation Trust,21-Dec-17,OTHER MEDICAL SUPPLIES,Surgery,NHS LOGISTICS,1018185175,2.14,
Department of Health,Salisbury NHS Foundation Trust,21-Dec-17,LAB REAGENTS - ANALYTICAL KITS,Clinical Support,NHS LOGISTICS,1018185175,63.66,
Department of Health,Salisbury NHS Foundation Trust,21-Dec-17,MEDSURGCONS - OTHER,Clinical Support,NHS LOGISTICS,1018185175,9.16,
Department of Health,Salisbury NHS Foundation Trust,21-Dec-17,DRESSINGS - PRE STERILE,Musculo-Skeletal,NHS LOGISTICS,1018185175,31.65,
Department of Health,Salisbury NHS Foundation Trust,21-Dec-17,MEDSURGCONS - OTHER,Surgery,NHS LOGISTICS,1018185175,7.72,
Department of Health,Salisbury NHS Foundation Trust,21-Dec-17,DRESSINGS - PRE STERILE,surgery,NHS LOGISTICS,1018185175,0.16,
Department of Health,Salisbury NHS Foundation Trust,21-Dec-17,MEDSURGCONS - OTHER,Surgery,NHS LOGISTICS,1018185175,14.4,
Department of Health,Salisbury NHS Foundation Trust,21-Dec-17,TOILETRIES PERSONAL HYGIENE PRODUCTS,Musculo-Skeletal,NHS LOGISTICS,1018185175,2.47,
Department of Health,Salisbury NHS Foundation Trust,21-Dec-17,DISPOSABLE THEATRE DRAPES WIPES,Musculo-Skeletal,NHS LOGISTICS,1018185175,0.71,
Department of Health,Salisbury NHS Foundation Trust,21-Dec-17,DISPOSABLE THEATRE DRAPES WIPES,Musculo-Skeletal,NHS LOGISTICS,1018185175,4.62,
Department of Health,Salisbury NHS Foundation Trust,21-Dec-17,MED SURG EQUIP REP MAINT CLEANING,Clinical Support,NHS LOGISTICS,1018185175,16.31,
Department of Health,Salisbury NHS Foundation Trust,21-Dec-17,MED SURG EQUIP REP MAINT CLEANING,Clinical Support,NHS LOGISTICS,1018185175,21.74,
Department of Health,Salisbury NHS Foundation Trust,21-Dec-17,MED SURG EQUIP REP MAINT CLEANING,Clinical Support,NHS LOGISTICS,1018185175,5.98,
Department of Health,Salisbury NHS Foundation Trust,21-Dec-17,TISSUES HAND TOWELS & TOILET PAPER,Clinical Support,NHS LOGISTICS,1018185175,0.78,
Department of Health,Salisbury NHS Foundation Trust,21-Dec-17,HEALTHCARE - WEAR,Clinical Support,NHS LOGISTICS,1018185175,4.75,
Department of Health,Salisbury NHS Foundation Trust,21-Dec-17,DRESSINGS - PRE STERILE,Musculo-Skeletal,NHS LOGISTICS,1018185175,8.3,
Department of Health,Salisbury NHS Foundation Trust,21-Dec-17,CLEANING MATERIALS PRODUCTS SUNDRIES,Facilities,NHS LOGISTICS,1018185175,3.18,
Department of Health,Salisbury NHS Foundation Trust,21-Dec-17,CLEANING MATERIALS PRODUCTS SUNDRIES,Facilities,NHS LOGISTICS,1018185175,2.06,
Department of Health,Salisbury NHS Foundation Trust,21-Dec-17,MEDSURGCONS - OTHER,Medical,NHS LOGISTICS,1018185175,35,
Department of Health,Salisbury NHS Foundation Trust,21-Dec-17,DRUGS,Medical,NHS LOGISTICS,1018185175,4.63,
Department of Health,Salisbury NHS Foundation Trust,21-Dec-17,PATIENT APPLIANCES,Medical,NHS LOGISTICS,1018185175,13.4,
Department of Health,Salisbury NHS Foundation Trust,21-Dec-17,DISPOSABLE THEATRE DRAPES WIPES,Medical,NHS LOGISTICS,1018185175,1.42,
Department of Health,Salisbury NHS Foundation Trust,21-Dec-17,TISSUES HAND TOWELS & TOILET PAPER,Medicine,NHS LOGISTICS,1018185175,0.5,
Department of Health,Salisbury NHS Foundation Trust,21-Dec-17,MEDSURGCONS - OTHER,Medicine,NHS LOGISTICS,1018185175,8.58,
Department of Health,Salisbury NHS Foundation Trust,21-Dec-17,OTHER MEDICAL SUPPLIES,Medicine,NHS LOGISTICS,1018185175,0.38,
Department of Health,Salisbury NHS Foundation Trust,21-Dec-17,PATIENT APPLIANCES,Medicine,NHS LOGISTICS,1018185175,0.67,
Department of Health,Salisbury NHS Foundation Trust,21-Dec-17,PATIENT APPLIANCES,Medicine,NHS LOGISTICS,1018185175,0.67,
Department of Health,Salisbury NHS Foundation Trust,21-Dec-17,TISSUES HAND TOWELS & TOILET PAPER,Medicine,NHS LOGISTICS,1018185175,0.14,
Department of Health,Salisbury NHS Foundation Trust,21-Dec-17,DISPOSABLE THEATRE DRAPES WIPES,Medicine,NHS LOGISTICS,1018185175,0.71,
Department of Health,Salisbury NHS Foundation Trust,21-Dec-17,BEVERAGES & AMBIENT FOOD,Medicine,NHS LOGISTICS,1018185175,1.89,
Department of Health,Salisbury NHS Foundation Trust,21-Dec-17,BAGS SACKS - OTHER,Facilities,NHS LOGISTICS,1018185175,21.59,
Department of Health,Salisbury NHS Foundation Trust,21-Dec-17,LIQUID REFRESHMENTS,Facilities,NHS LOGISTICS,1018185175,1.56,
Department of Health,Salisbury NHS Foundation Trust,21-Dec-17,CLEANING MATERIALS PRODUCTS SUNDRIES,Facilities,NHS LOGISTICS,1018185175,9.92,
Department of Health,Salisbury NHS Foundation Trust,21-Dec-17,CLEANING MATERIALS PRODUCTS SUNDRIES,Facilities,NHS LOGISTICS,1018185175,2.75,
Department of Health,Salisbury NHS Foundation Trust,21-Dec-17,DISPOSABLE THEATRE DRAPES WIPES,Facilities,NHS LOGISTICS,1018185175,56.64,
Department of Health,Salisbury NHS Foundation Trust,21-Dec-17,CLEANING MATERIALS PRODUCTS SUNDRIES,Facilities,NHS LOGISTICS,1018185175,5.1,
Department of Health,Salisbury NHS Foundation Trust,21-Dec-17,BAGS SACKS - OTHER,Facilities,NHS LOGISTICS,1018185175,11.81,
Department of Health,Salisbury NHS Foundation Trust,21-Dec-17,CLEANING MATERIALS PRODUCTS SUNDRIES,Facilities,NHS LOGISTICS,1018185175,11.36,
Department of Health,Salisbury NHS Foundation Trust,21-Dec-17,DISPOSABLE THEATRE DRAPES WIPES,Facilities,NHS LOGISTICS,1018185175,18.24,
Department of Health,Salisbury NHS Foundation Trust,21-Dec-17,TISSUES HAND TOWELS & TOILET PAPER,Medicine,NHS LOGISTICS,1018185175,0.25,
Department of Health,Salisbury NHS Foundation Trust,21-Dec-17,CLEANING MATERIALS PRODUCTS SUNDRIES,Medicine,NHS LOGISTICS,1018185175,1.09,
Department of Health,Salisbury NHS Foundation Trust,21-Dec-17,CLEANING MATERIALS PRODUCTS SUNDRIES,Medicine,NHS LOGISTICS,1018185175,1.11,
Department of Health,Salisbury NHS Foundation Trust,21-Dec-17,MEDSURGCONS - OTHER,Medicine,NHS LOGISTICS,1018185175,8.58,
Department of Health,Salisbury NHS Foundation Trust,21-Dec-17,OTHER MEDICAL SUPPLIES,Medicine,NHS LOGISTICS,1018185175,0.38,
Department of Health,Salisbury NHS Foundation Trust,21-Dec-17,PATIENT APPLIANCES,Medicine,NHS LOGISTICS,1018185175,0.67,
Department of Health,Salisbury NHS Foundation Trust,21-Dec-17,TISSUES HAND TOWELS & TOILET PAPER,Medicine,NHS LOGISTICS,1018185175,0.07,
Department of Health,Salisbury NHS Foundation Trust,21-Dec-17,TOILETRIES PERSONAL HYGIENE PRODUCTS,Medicine,NHS LOGISTICS,1018185175,0.83,
Department of Health,Salisbury NHS Foundation Trust,21-Dec-17,DRESSINGS - PRE STERILE,Musculo-Skeletal,NHS LOGISTICS,1018185175,4.5,
Department of Health,Salisbury NHS Foundation Trust,21-Dec-17,TISSUES HAND TOWELS & TOILET PAPER,Musculo-Skeletal,NHS LOGISTICS,1018185175,0.5,
Department of Health,Salisbury NHS Foundation Trust,21-Dec-17,MEDSURGCONS - OTHER,Musculo-Skeletal,NHS LOGISTICS,1018185175,1.95,
Department of Health,Salisbury NHS Foundation Trust,21-Dec-17,PATIENT APPLIANCES,Clinical Support,NHS LOGISTICS,1018185175,6,
Department of Health,Salisbury NHS Foundation Trust,21-Dec-17,LAB EQUIP-LABORATORY APPARATUS,Clinical Support,NHS LOGISTICS,1018185175,2.52,
Department of Health,Salisbury NHS Foundation Trust,21-Dec-17,LAB EQUIP-LABORATORY APPARATUS,Clinical Support,NHS LOGISTICS,1018185175,71.2,
Department of Health,Salisbury NHS Foundation Trust,21-Dec-17,LAB EQUIP-ANALYSERS,Clinical Support,NHS LOGISTICS,1018185175,7.62,
Department of Health,Salisbury NHS Foundation Trust,21-Dec-17,LAB EQUIP-LABORATORY APPARATUS,Clinical Support,NHS LOGISTICS,1018185175,5.17,
Department of Health,Salisbury NHS Foundation Trust,21-Dec-17,LAB EQUIP-LABORATORY APPARATUS,Clinical Support,NHS LOGISTICS,1018185175,149.73,
Department of Health,Salisbury NHS Foundation Trust,21-Dec-17,LAB EQUIP-LABORATORY APPARATUS,Clinical Support,NHS LOGISTICS,1018185175,14.99,
Department of Health,Salisbury NHS Foundation Trust,21-Dec-17,COOKING & KITCHEN UTENSILS,Clinical Support,NHS LOGISTICS,1018185175,0.51,
Department of Health,Salisbury NHS Foundation Trust,21-Dec-17,LAB EQUIP-LABORATORY APPARATUS,Clinical Support,NHS LOGISTICS,1018185175,15.27,
Department of Health,Salisbury NHS Foundation Trust,21-Dec-17,OTHER MEDICAL SUPPLIES,Clinical Support,NHS LOGISTICS,1018185175,91,
Department of Health,Salisbury NHS Foundation Trust,21-Dec-17,MEDSURGCONS - OTHER,Medicine,NHS LOGISTICS,1018185175,55.37,
Department of Health,Salisbury NHS Foundation Trust,21-Dec-17,BEVERAGES & AMBIENT FOOD,Surgery,NHS LOGISTICS,1018185175,11.47,
Department of Health,Salisbury NHS Foundation Trust,21-Dec-17,BEVERAGES & AMBIENT FOOD,Surgery,NHS LOGISTICS,1018185175,0.7,
Department of Health,Salisbury NHS Foundation Trust,21-Dec-17,PATIENT APPLIANCES,Medicine,NHS LOGISTICS,1018185175,6.31,
Department of Health,Salisbury NHS Foundation Trust,21-Dec-17,LAB REAGENTS-BUFFERS COMPUND SOLNS,Clinical Support,NHS LOGISTICS,1018185175,242.67,
Department of Health,Salisbury NHS Foundation Trust,21-Dec-17,TISSUES HAND TOWELS & TOILET PAPER,Medicine,NHS LOGISTICS,1018185175,0.25,
Department of Health,Salisbury NHS Foundation Trust,21-Dec-17,MEDSURGCONS - OTHER,Medicine,NHS LOGISTICS,1018185175,1.95,
Department of Health,Salisbury NHS Foundation Trust,21-Dec-17,SURGICAL INSTRUMENTS: GENERAL,Medicine,NHS LOGISTICS,1018185175,20,
Department of Health,Salisbury NHS Foundation Trust,21-Dec-17,DISPOSABLE THEATRE DRAPES WIPES,Medicine,NHS LOGISTICS,1018185175,0.71,
Department of Health,Salisbury NHS Foundation Trust,21-Dec-17,DRESSINGS - PRE STERILE,Medicine,NHS LOGISTICS,1018185175,0.46,
Department of Health,Salisbury NHS Foundation Trust,21-Dec-17,DRESSINGS - PRE STERILE,Medicine,NHS LOGISTICS,1018185175,1.15,
Department of Health,Salisbury NHS Foundation Trust,21-Dec-17,SURGICAL INSTRUMENTS: DISPOSABLE,Medicine,NHS LOGISTICS,1018185175,5.11,
Department of Health,Salisbury NHS Foundation Trust,21-Dec-17,DRESSINGS - PRE STERILE,Medicine,NHS LOGISTICS,1018185175,2.82,
Department of Health,Salisbury NHS Foundation Trust,21-Dec-17,SURGICAL INSTRUMENTS: DISPOSABLE,Medicine,NHS LOGISTICS,1018185175,2.4,
Department of Health,Salisbury NHS Foundation Trust,21-Dec-17,COOKING & KITCHEN UTENSILS,Surgery,NHS LOGISTICS,1018185175,4.08,
Department of Health,Salisbury NHS Foundation Trust,21-Dec-17,DRESSINGS - PRE STERILE,Surgery,NHS LOGISTICS,1018185175,1.88,
Department of Health,Salisbury NHS Foundation Trust,21-Dec-17,DRESSINGS - PRE STERILE,Surgery,NHS LOGISTICS,1018185175,1,
Department of Health,Salisbury NHS Foundation Trust,21-Dec-17,MEDSURGCONS - OTHER,Surgery,NHS LOGISTICS,1018185175,4.88,
Department of Health,Salisbury NHS Foundation Trust,21-Dec-17,MEDSURGCONS - OTHER,Surgery,NHS LOGISTICS,1018185175,4.88,
Department of Health,Salisbury NHS Foundation Trust,21-Dec-17,OTHER MEDICAL SUPPLIES,Surgery,NHS LOGISTICS,1018185175,8.74,
Department of Health,Salisbury NHS Foundation Trust,21-Dec-17,OTHER MEDICAL SUPPLIES,Surgery,NHS LOGISTICS,1018185175,9.96,
Department of Health,Salisbury NHS Foundation Trust,21-Dec-17,OTHER MEDICAL SUPPLIES,Surgery,NHS LOGISTICS,1018185175,8.74,
Department of Health,Salisbury NHS Foundation Trust,21-Dec-17,DRESSINGS - PRE STERILE,Surgery,NHS LOGISTICS,1018185175,117.77,
Department of Health,Salisbury NHS Foundation Trust,21-Dec-17,M & S EQUIPELECTEQUIPINST - OTHER,Surgery,NHS LOGISTICS,1018185175,2.82,
Department of Health,Salisbury NHS Foundation Trust,21-Dec-17,TISSUES HAND TOWELS & TOILET PAPER,Clinical Support,NHS LOGISTICS,1018185175,8.52,
Department of Health,Salisbury NHS Foundation Trust,21-Dec-17,MEDSURGCONS - OTHER,Clinical Support,NHS LOGISTICS,1018185175,16.97,
Department of Health,Salisbury NHS Foundation Trust,21-Dec-17,MEDSURGCONS-LAPAROSCOPIC EQUIPMENT,Surgery,NHS LOGISTICS,1018185175,33.4,
Department of Health,Salisbury NHS Foundation Trust,21-Dec-17,OTHER MEDICAL SUPPLIES,Medicine,NHS LOGISTICS,1018185175,120.5,
Department of Health,Salisbury NHS Foundation Trust,21-Dec-17,DRESSINGS - PRE STERILE,Medicine,NHS LOGISTICS,1018185175,1,
Department of Health,Salisbury NHS Foundation Trust,21-Dec-17,MEDSURGCONS - OTHER,Medicine,NHS LOGISTICS,1018185175,4.88,
Department of Health,Salisbury NHS Foundation Trust,21-Dec-17,TISSUES HAND TOWELS & TOILET PAPER,Medicine,NHS LOGISTICS,1018185175,0.23,
Department of Health,Salisbury NHS Foundation Trust,21-Dec-17,TISSUES HAND TOWELS & TOILET PAPER,Medicine,NHS LOGISTICS,1018185175,0.07,
Department of Health,Salisbury NHS Foundation Trust,21-Dec-17,DISPOSABLE THEATRE DRAPES WIPES,Medicine,NHS LOGISTICS,1018185175,2.13,
Department of Health,Salisbury NHS Foundation Trust,21-Dec-17,DISPOSABLE THEATRE DRAPES WIPES,Medicine,NHS LOGISTICS,1018185175,0.66,
Department of Health,Salisbury NHS Foundation Trust,21-Dec-17,M & S EQUIPELECTEQUIPINST - OTHER,Clinical Support,NHS LOGISTICS,1018185175,8.25,
Department of Health,Salisbury NHS Foundation Trust,21-Dec-17,PATIENTS BABY WEAR,Medicine,NHS LOGISTICS,1018185175,6.43,
Department of Health,Salisbury NHS Foundation Trust,21-Dec-17,PATIENTS BABY WEAR,Medicine,NHS LOGISTICS,1018185175,2.87,
Department of Health,Salisbury NHS Foundation Trust,21-Dec-17,TISSUES HAND TOWELS & TOILET PAPER,Medicine,NHS LOGISTICS,1018185175,0.25,
Department of Health,Salisbury NHS Foundation Trust,21-Dec-17,DRESSINGS - PRE STERILE,Medicine,NHS LOGISTICS,1018185175,1,
Department of Health,Salisbury NHS Foundation Trust,21-Dec-17,MEDSURGCONS - OTHER,Medicine,NHS LOGISTICS,1018185175,18.15,
Department of Health,Salisbury NHS Foundation Trust,21-Dec-17,TUBES,Medicine,NHS LOGISTICS,1018185175,1.37,
Department of Health,Salisbury NHS Foundation Trust,21-Dec-17,ANAESTHETIC EQUIPMENT ACCESSORIES,Medicine,NHS LOGISTICS,1018185175,0.75,
Department of Health,Salisbury NHS Foundation Trust,21-Dec-17,DRESSINGS - PRE STERILE,Medicine,NHS LOGISTICS,1018185175,48.45,
Department of Health,Salisbury NHS Foundation Trust,21-Dec-17,OTHER MEDICAL SUPPLIES,Medicine,NHS LOGISTICS,1018185175,0.75,
Department of Health,Salisbury NHS Foundation Trust,21-Dec-17,PATIENT APPLIANCES,Medicine,NHS LOGISTICS,1018185175,0.67,
Department of Health,Salisbury NHS Foundation Trust,21-Dec-17,PATIENT APPLIANCES,Medicine,NHS LOGISTICS,1018185175,1.34,
Department of Health,Salisbury NHS Foundation Trust,21-Dec-17,MEDSURGCONS - OTHER,Medicine,NHS LOGISTICS,1018185175,1.36,
Department of Health,Salisbury NHS Foundation Trust,21-Dec-17,DISPOSABLE THEATRE DRAPES WIPES,Medicine,NHS LOGISTICS,1018185175,0.71,
Department of Health,Salisbury NHS Foundation Trust,21-Dec-17,LAB EQUIP-ANALYSERS,Corporate - Finance & Procurement,NHS LOGISTICS,1018185175,24,
Department of Health,Salisbury NHS Foundation Trust,21-Dec-17,COOKING & KITCHEN UTENSILS,Corporate - Finance & Procurement,NHS LOGISTICS,1018185175,37,
Department of Health,Salisbury NHS Foundation Trust,21-Dec-17,COOKING & KITCHEN UTENSILS,Corporate - Finance & Procurement,NHS LOGISTICS,1018185175,8.86,
Department of Health,Salisbury NHS Foundation Trust,21-Dec-17,TUBES,Corporate - Finance & Procurement,NHS LOGISTICS,1018185175,14.33,
Department of Health,Salisbury NHS Foundation Trust,21-Dec-17,PATIENTS FOOTWEAR,Corporate - Finance & Procurement,NHS LOGISTICS,1018185175,10.38,
Department of Health,Salisbury NHS Foundation Trust,21-Dec-17,PATIENTS FOOTWEAR,Corporate - Finance & Procurement,NHS LOGISTICS,1018185175,13,
Department of Health,Salisbury NHS Foundation Trust,21-Dec-17,MEDSURGCONS - OTHER,Surgery,NHS LOGISTICS,1018185175,4.88,
Department of Health,Salisbury NHS Foundation Trust,21-Dec-17,DRESSINGS - PRE STERILE,Surgery,NHS LOGISTICS,1018185175,9.85,
Department of Health,Salisbury NHS Foundation Trust,21-Dec-17,TISSUES HAND TOWELS & TOILET PAPER,Clinical Support,NHS LOGISTICS,1018185175,0.25,
Department of Health,Salisbury NHS Foundation Trust,21-Dec-17,DRESSINGS - PRE STERILE,Clinical Support,NHS LOGISTICS,1018185175,2.8,
Department of Health,Salisbury NHS Foundation Trust,21-Dec-17,MED SURG EQUIP REP MAINT CLEANING,Clinical Support,NHS LOGISTICS,1018185175,43.71,
Department of Health,Salisbury NHS Foundation Trust,21-Dec-17,M & S EQUIPELECTEQUIPINST - OTHER,Clinical Support,NHS LOGISTICS,1018185175,33.96,
Department of Health,Salisbury NHS Foundation Trust,21-Dec-17,M & S EQUIPELECTEQUIPINST - OTHER,Clinical Support,NHS LOGISTICS,1018185175,25.77,
Department of Health,Salisbury NHS Foundation Trust,21-Dec-17,M & S EQUIPELECTEQUIPINST - OTHER,Clinical Support,NHS LOGISTICS,1018185175,86.8,
Department of Health,Salisbury NHS Foundation Trust,21-Dec-17,MEDSURGCONS - OTHER,Clinical Support,NHS LOGISTICS,1018185175,2.93,
Department of Health,Salisbury NHS Foundation Trust,21-Dec-17,TISSUES HAND TOWELS & TOILET PAPER,Clinical Support,NHS LOGISTICS,1018185175,0.16,
Department of Health,Salisbury NHS Foundation Trust,21-Dec-17,OTHER MEDICAL SUPPLIES,Clinical Support,NHS LOGISTICS,1018185175,1.37,
Department of Health,Salisbury NHS Foundation Trust,21-Dec-17,OTHER MEDICAL SUPPLIES,Clinical Support,NHS LOGISTICS,1018185175,0.38,
Department of Health,Salisbury NHS Foundation Trust,21-Dec-17,DRESSINGS - PRE STERILE,Clinical Support,NHS LOGISTICS,1018185175,2.22,
Department of Health,Salisbury NHS Foundation Trust,21-Dec-17,OTHER MEDICAL SUPPLIES,Clinical Support,NHS LOGISTICS,1018185175,29.99,
Department of Health,Salisbury NHS Foundation Trust,21-Dec-17,MEDSURGCONS - OTHER,Clinical Support,NHS LOGISTICS,1018185175,6.96,
Department of Health,Salisbury NHS Foundation Trust,21-Dec-17,TISSUES HAND TOWELS & TOILET PAPER,Clinical Support,NHS LOGISTICS,1018185175,6.39,
Department of Health,Salisbury NHS Foundation Trust,21-Dec-17,TUBES,Clinical Support,NHS LOGISTICS,1018185175,1.37,
Department of Health,Salisbury NHS Foundation Trust,21-Dec-17,DRESSINGS - PRE STERILE,Clinical Support,NHS LOGISTICS,1018185175,1.33,
Department of Health,Salisbury NHS Foundation Trust,21-Dec-17,NON DISPOSABLE BED LINEN,Clinical Support,NHS LOGISTICS,1018185175,1.18,
Department of Health,Salisbury NHS Foundation Trust,21-Dec-17,CLEANING MATERIALS PRODUCTS SUNDRIES,Medicine,NHS LOGISTICS,1018185175,1.11,
Department of Health,Salisbury NHS Foundation Trust,21-Dec-17,MEDSURGCONS - OTHER,Clinical Support,NHS LOGISTICS,1018185175,69.95,
Department of Health,Salisbury NHS Foundation Trust,21-Dec-17,DRESSINGS - PRE STERILE,Medicine,NHS LOGISTICS,1018185175,13.86,
Department of Health,Salisbury NHS Foundation Trust,21-Dec-17,DRESSINGS - PRE STERILE,Medicine,NHS LOGISTICS,1018185175,0.66,
Department of Health,Salisbury NHS Foundation Trust,21-Dec-17,DRESSINGS - PRE STERILE,Medicine,NHS LOGISTICS,1018185175,1.19,
Department of Health,Salisbury NHS Foundation Trust,21-Dec-17,PATIENT APPLIANCES,Medicine,NHS LOGISTICS,1018185175,12.63,
Department of Health,Salisbury NHS Foundation Trust,21-Dec-17,PATIENT APPLIANCES,Medicine,NHS LOGISTICS,1018185175,2.14,
Department of Health,Salisbury NHS Foundation Trust,21-Dec-17,PATIENT APPLIANCES,Medicine,NHS LOGISTICS,1018185175,1.07,
Department of Health,Salisbury NHS Foundation Trust,21-Dec-17,CLEANING MATERIALS PRODUCTS SUNDRIES,Medicine,NHS LOGISTICS,1018185175,1.09,
Department of Health,Salisbury NHS Foundation Trust,21-Dec-17,DRESSINGS - PRE STERILE,Medicine,NHS LOGISTICS,1018185175,8.4,
Department of Health,Salisbury NHS Foundation Trust,21-Dec-17,MEDSURGCONS - OTHER,Medicine,NHS LOGISTICS,1018185175,3.91,
Department of Health,Salisbury NHS Foundation Trust,21-Dec-17,MEDSURGCONS - OTHER,Medicine,NHS LOGISTICS,1018185175,8.58,
Department of Health,Salisbury NHS Foundation Trust,21-Dec-17,ANAESTHETIC EQUIPMENT ACCESSORIES,Medicine,NHS LOGISTICS,1018185175,0.69,
Department of Health,Salisbury NHS Foundation Trust,21-Dec-17,TUBES,Medicine,NHS LOGISTICS,1018185175,2.74,
Department of Health,Salisbury NHS Foundation Trust,21-Dec-17,OTHER MEDICAL SUPPLIES,Medicine,NHS LOGISTICS,1018185175,1.53,
Department of Health,Salisbury NHS Foundation Trust,21-Dec-17,MEDSURGCONS - OTHER,Medicine,NHS LOGISTICS,1018185175,0.43,
Department of Health,Salisbury NHS Foundation Trust,21-Dec-17,PATIENT APPLIANCES,Medicine,NHS LOGISTICS,1018185175,4.03,
Department of Health,Salisbury NHS Foundation Trust,21-Dec-17,PATIENT APPLIANCES,Medicine,NHS LOGISTICS,1018185175,3.22,
Department of Health,Salisbury NHS Foundation Trust,21-Dec-17,PATIENT APPLIANCES,Medicine,NHS LOGISTICS,1018185175,2.42,
Department of Health,Salisbury NHS Foundation Trust,21-Dec-17,PATIENT APPLIANCES,Medicine,NHS LOGISTICS,1018185175,0.81,
Department of Health,Salisbury NHS Foundation Trust,21-Dec-17,PATIENT APPLIANCES,Medicine,NHS LOGISTICS,1018185175,1.61,
Department of Health,Salisbury NHS Foundation Trust,21-Dec-17,PATIENT APPLIANCES,Medicine,NHS LOGISTICS,1018185175,1.61,
Department of Health,Salisbury NHS Foundation Trust,21-Dec-17,ANAESTHETIC EQUIPMENT ACCESSORIES,Medicine,NHS LOGISTICS,1018185175,1.25,
Department of Health,Salisbury NHS Foundation Trust,21-Dec-17,OTHER MEDICAL SUPPLIES,Medicine,NHS LOGISTICS,1018185175,1.13,
Department of Health,Salisbury NHS Foundation Trust,21-Dec-17,OTHER MEDICAL SUPPLIES,Medicine,NHS LOGISTICS,1018185175,31.58,
Department of Health,Salisbury NHS Foundation Trust,21-Dec-17,SERVICES FROM NHS BODIES,Medicine,NHS LOGISTICS,1018185175,0.89,
Department of Health,Salisbury NHS Foundation Trust,21-Dec-17,MEDSURGCONS - OTHER,Medicine,NHS LOGISTICS,1018185175,2.66,
Department of Health,Salisbury NHS Foundation Trust,21-Dec-17,DISPOSABLE THEATRE DRAPES WIPES,Medicine,NHS LOGISTICS,1018185175,2.13,
Department of Health,Salisbury NHS Foundation Trust,21-Dec-17,MEDSURGCONS - OTHER,Medicine,NHS LOGISTICS,1018185175,0.31,
Department of Health,Salisbury NHS Foundation Trust,21-Dec-17,MEDSURGCONS - OTHER,Clinical Support,NHS LOGISTICS,1018185175,0.98,
Department of Health,Salisbury NHS Foundation Trust,21-Dec-17,DRESSINGS - PRE STERILE,Clinical Support,NHS LOGISTICS,1018185175,5.1,
Department of Health,Salisbury NHS Foundation Trust,21-Dec-17,PATIENT APPLIANCES,Clinical Support,NHS LOGISTICS,1018185175,0.86,
Department of Health,Salisbury NHS Foundation Trust,21-Dec-17,DRESSINGS - PRE STERILE,Surgery,NHS LOGISTICS,1018185175,3.48,
Department of Health,Salisbury NHS Foundation Trust,21-Dec-17,DISPOSABLE THEATRE DRAPES WIPES,Surgery,NHS LOGISTICS,1018185175,7.08,
Department of Health,Salisbury NHS Foundation Trust,21-Dec-17,DISPOSABLE THEATRE DRAPES WIPES,Surgery,NHS LOGISTICS,1018185175,1.42,
Department of Health,Salisbury NHS Foundation Trust,21-Dec-17,DISPOSABLE THEATRE DRAPES WIPES,Surgery,NHS LOGISTICS,1018185175,0.37,
Department of Health,Salisbury NHS Foundation Trust,21-Dec-17,DRESSINGS - PRE STERILE,Surgery,NHS LOGISTICS,1018185175,2.8,
Department of Health,Salisbury NHS Foundation Trust,21-Dec-17,MEDSURGCONS - OTHER,Surgery,NHS LOGISTICS,1018185175,0.96,
Department of Health,Salisbury NHS Foundation Trust,21-Dec-17,DISPOSABLE THEATRE DRAPES WIPES,Surgery,NHS LOGISTICS,1018185175,1.2,
Department of Health,Salisbury NHS Foundation Trust,21-Dec-17,MEDSURGCONS - OTHER,Surgery,NHS LOGISTICS,1018185175,8.79,
Department of Health,Salisbury NHS Foundation Trust,21-Dec-17,MEDSURGCONS - OTHER,Surgery,NHS LOGISTICS,1018185175,1.36,
Department of Health,Salisbury NHS Foundation Trust,21-Dec-17,SURGICAL INSTRUMENTS: GENERAL,Surgery,NHS LOGISTICS,1018185175,1.5,
Department of Health,Salisbury NHS Foundation Trust,21-Dec-17,DRUGS,Surgery,NHS LOGISTICS,1018185175,1.87,
Department of Health,Salisbury NHS Foundation Trust,21-Dec-17,OTHER MEDICAL SUPPLIES,Surgery,NHS LOGISTICS,1018185175,0.75,
Department of Health,Salisbury NHS Foundation Trust,21-Dec-17,DRUGS,Surgery,NHS LOGISTICS,1018185175,1.41,
Department of Health,Salisbury NHS Foundation Trust,21-Dec-17,BEVERAGES & AMBIENT FOOD,Surgery,NHS LOGISTICS,1018185175,2.87,
Department of Health,Salisbury NHS Foundation Trust,21-Dec-17,OTHER MEDICAL SUPPLIES,Surgery,NHS LOGISTICS,1018185175,1.14,
Department of Health,Salisbury NHS Foundation Trust,21-Dec-17,OTHER MEDICAL SUPPLIES,Surgery,NHS LOGISTICS,1018185175,1.14,
Department of Health,Salisbury NHS Foundation Trust,21-Dec-17,SERVICES FROM NHS BODIES,Surgery,NHS LOGISTICS,1018185175,0.89,
Department of Health,Salisbury NHS Foundation Trust,21-Dec-17,PATIENT APPLIANCES,Surgery,NHS LOGISTICS,1018185175,0.65,
Department of Health,Salisbury NHS Foundation Trust,21-Dec-17,TOILETRIES PERSONAL HYGIENE PRODUCTS,Medicine,NHS LOGISTICS,1018185175,3.6,
Department of Health,Salisbury NHS Foundation Trust,21-Dec-17,ANAESTHETIC EQUIPMENT ACCESSORIES,Musculo-Skeletal,NHS LOGISTICS,1018185175,6.82,
Department of Health,Salisbury NHS Foundation Trust,21-Dec-17,ANAESTHETIC EQUIPMENT ACCESSORIES,Musculo-Skeletal,NHS LOGISTICS,1018185175,6.88,
Department of Health,Salisbury NHS Foundation Trust,21-Dec-17,OTHER MEDICAL SUPPLIES,Musculo-Skeletal,NHS LOGISTICS,1018185175,18.89,
Department of Health,Salisbury NHS Foundation Trust,21-Dec-17,OTHER MEDICAL SUPPLIES,Musculo-Skeletal,NHS LOGISTICS,1018185175,11.67,
Department of Health,Salisbury NHS Foundation Trust,21-Dec-17,OTHER MEDICAL SUPPLIES,Musculo-Skeletal,NHS LOGISTICS,1018185175,11.67,
Department of Health,Salisbury NHS Foundation Trust,21-Dec-17,OTHER MEDICAL SUPPLIES,Musculo-Skeletal,NHS LOGISTICS,1018185175,10.67,
Department of Health,Salisbury NHS Foundation Trust,21-Dec-17,OTHER MEDICAL SUPPLIES,Musculo-Skeletal,NHS LOGISTICS,1018185175,10.67,
Department of Health,Salisbury NHS Foundation Trust,21-Dec-17,OTHER MEDICAL SUPPLIES,Musculo-Skeletal,NHS LOGISTICS,1018185175,15.73,
Department of Health,Salisbury NHS Foundation Trust,21-Dec-17,M & S EQUIPELECTEQUIPINST - OTHER,Surgery,NHS LOGISTICS,1018185175,10.26,
Department of Health,Salisbury NHS Foundation Trust,21-Dec-17,ANAESTHETIC EQUIPMENT ACCESSORIES,Medicine,NHS LOGISTICS,1018185175,11.37,
Department of Health,Salisbury NHS Foundation Trust,21-Dec-17,ADULTS HEARING AIDS,Surgery,NHS LOGISTICS,1018185175,213.57,
Department of Health,Salisbury NHS Foundation Trust,21-Dec-17,ADULTS HEARING AIDS,Surgery,NHS LOGISTICS,1018185175,427.13,
Department of Health,Salisbury NHS Foundation Trust,21-Dec-17,ADULTS HEARING AIDS,Surgery,NHS LOGISTICS,1018185175,640.7,
Department of Health,Salisbury NHS Foundation Trust,21-Dec-17,ADULTS HEARING AIDS,Surgery,NHS LOGISTICS,1018185175,174.53,
Department of Health,Salisbury NHS Foundation Trust,21-Dec-17,ADULTS HEARING AIDS,Surgery,NHS LOGISTICS,1018185175,17.7,
Department of Health,Salisbury NHS Foundation Trust,21-Dec-17,CLEANING MATERIALS PRODUCTS SUNDRIES,Facilities,NHS LOGISTICS,1018185175,4.59,
Department of Health,Salisbury NHS Foundation Trust,21-Dec-17,CLEANING MATERIALS PRODUCTS SUNDRIES,Facilities,NHS LOGISTICS,1018185175,9.99,
Department of Health,Salisbury NHS Foundation Trust,21-Dec-17,BAGS SACKS - OTHER,Facilities,NHS LOGISTICS,1018185175,3.58,
Department of Health,Salisbury NHS Foundation Trust,21-Dec-17,DRESSINGS - PRE STERILE,Medicine,NHS LOGISTICS,1018185175,2.8,
Department of Health,Salisbury NHS Foundation Trust,21-Dec-17,MEDSURGCONS - OTHER,Medicine,NHS LOGISTICS,1018185175,8.58,
Department of Health,Salisbury NHS Foundation Trust,21-Dec-17,SURGICAL INSTRUMENTS: GENERAL,Medicine,NHS LOGISTICS,1018185175,1.97,
Department of Health,Salisbury NHS Foundation Trust,21-Dec-17,OTHER MEDICAL SUPPLIES,Medicine,NHS LOGISTICS,1018185175,0.75,
Department of Health,Salisbury NHS Foundation Trust,21-Dec-17,TISSUES HAND TOWELS & TOILET PAPER,Medicine,NHS LOGISTICS,1018185175,0.35,
Department of Health,Salisbury NHS Foundation Trust,21-Dec-17,DISPOSABLE THEATRE DRAPES WIPES,Medicine,NHS LOGISTICS,1018185175,1.42,
Department of Health,Salisbury NHS Foundation Trust,21-Dec-17,TOILETRIES PERSONAL HYGIENE PRODUCTS,Medicine,NHS LOGISTICS,1018185175,0.62,
Department of Health,Salisbury NHS Foundation Trust,21-Dec-17,TISSUES HAND TOWELS & TOILET PAPER,Medicine,NHS LOGISTICS,1018185175,0.25,
Department of Health,Salisbury NHS Foundation Trust,21-Dec-17,DRESSINGS - PRE STERILE,Medicine,NHS LOGISTICS,1018185175,1,
Department of Health,Salisbury NHS Foundation Trust,21-Dec-17,MEDSURGCONS - OTHER,Medicine,NHS LOGISTICS,1018185175,7.81,
Department of Health,Salisbury NHS Foundation Trust,21-Dec-17,SURGICAL INSTRUMENTS: GENERAL,Medicine,NHS LOGISTICS,1018185175,1.97,
Department of Health,Salisbury NHS Foundation Trust,21-Dec-17,OTHER MEDICAL SUPPLIES,Medicine,NHS LOGISTICS,1018185175,0.75,
Department of Health,Salisbury NHS Foundation Trust,21-Dec-17,MEDSURGCONS - OTHER,Medicine,NHS LOGISTICS,1018185175,1.18,
Department of Health,Salisbury NHS Foundation Trust,21-Dec-17,TISSUES HAND TOWELS & TOILET PAPER,Medicine,NHS LOGISTICS,1018185175,0.14,
Department of Health,Salisbury NHS Foundation Trust,21-Dec-17,MED SURG EQUIP REP MAINT CLEANING,Medicine,NHS LOGISTICS,1018185175,2.19,
Department of Health,Salisbury NHS Foundation Trust,21-Dec-17,DISPOSABLE THEATRE DRAPES WIPES,Medicine,NHS LOGISTICS,1018185175,0.71,
Department of Health,Salisbury NHS Foundation Trust,21-Dec-17,TOILETRIES PERSONAL HYGIENE PRODUCTS,Medicine,NHS LOGISTICS,1018185175,0.62,
Department of Health,Salisbury NHS Foundation Trust,21-Dec-17,CLEANING MATERIALS PRODUCTS SUNDRIES,Medicine,NHS LOGISTICS,1018185175,1.11,
Department of Health,Salisbury NHS Foundation Trust,21-Dec-17,DRESSINGS - PRE STERILE,Medicine,NHS LOGISTICS,1018185175,1,
Department of Health,Salisbury NHS Foundation Trust,21-Dec-17,MEDSURGCONS - OTHER,Medicine,NHS LOGISTICS,1018185175,8.58,
Department of Health,Salisbury NHS Foundation Trust,21-Dec-17,TUBES,Medicine,NHS LOGISTICS,1018185175,1.37,
Department of Health,Salisbury NHS Foundation Trust,21-Dec-17,ANAESTHETIC EQUIPMENT ACCESSORIES,Medicine,NHS LOGISTICS,1018185175,0.25,
Department of Health,Salisbury NHS Foundation Trust,21-Dec-17,OTHER MEDICAL SUPPLIES,Medicine,NHS LOGISTICS,1018185175,0.75,
Department of Health,Salisbury NHS Foundation Trust,21-Dec-17,TISSUES HAND TOWELS & TOILET PAPER,Medicine,NHS LOGISTICS,1018185175,0.21,
Department of Health,Salisbury NHS Foundation Trust,21-Dec-17,M & S EQUIPELECTEQUIPINST - OTHER,Medicine,NHS LOGISTICS,1018185175,0.32,
Department of Health,Salisbury NHS Foundation Trust,21-Dec-17,DISPOSABLE THEATRE DRAPES WIPES,Medicine,NHS LOGISTICS,1018185175,1.42,
Department of Health,Salisbury NHS Foundation Trust,21-Dec-17,DISPOSABLE THEATRE DRAPES WIPES,Medicine,NHS LOGISTICS,1018185175,3.08,
Department of Health,Salisbury NHS Foundation Trust,21-Dec-17,TOILETRIES PERSONAL HYGIENE PRODUCTS,Medicine,NHS LOGISTICS,1018185175,0.93,
Department of Health,Salisbury NHS Foundation Trust,21-Dec-17,CLEANING MATERIALS PRODUCTS SUNDRIES,Medicine,NHS LOGISTICS,1018185175,1.11,
Department of Health,Salisbury NHS Foundation Trust,21-Dec-17,DRESSINGS - PRE STERILE,Medicine,NHS LOGISTICS,1018185175,5.6,
Department of Health,Salisbury NHS Foundation Trust,21-Dec-17,MEDSURGCONS - OTHER,Medicine,NHS LOGISTICS,1018185175,8.58,
Department of Health,Salisbury NHS Foundation Trust,21-Dec-17,TUBES,Medicine,NHS LOGISTICS,1018185175,1.37,
Department of Health,Salisbury NHS Foundation Trust,21-Dec-17,ANAESTHETIC EQUIPMENT ACCESSORIES,Medicine,NHS LOGISTICS,1018185175,1,
Department of Health,Salisbury NHS Foundation Trust,21-Dec-17,OTHER MEDICAL SUPPLIES,Medicine,NHS LOGISTICS,1018185175,1.37,
Department of Health,Salisbury NHS Foundation Trust,21-Dec-17,OTHER MEDICAL SUPPLIES,Medicine,NHS LOGISTICS,1018185175,1.13,
Department of Health,Salisbury NHS Foundation Trust,21-Dec-17,PATIENT APPLIANCES,Medicine,NHS LOGISTICS,1018185175,0.67,
Department of Health,Salisbury NHS Foundation Trust,21-Dec-17,PATIENT APPLIANCES,Medicine,NHS LOGISTICS,1018185175,0.88,
Department of Health,Salisbury NHS Foundation Trust,21-Dec-17,MEDSURGCONS - OTHER,Medicine,NHS LOGISTICS,1018185175,11.96,
Department of Health,Salisbury NHS Foundation Trust,21-Dec-17,TISSUES HAND TOWELS & TOILET PAPER,Medicine,NHS LOGISTICS,1018185175,0.28,
Department of Health,Salisbury NHS Foundation Trust,21-Dec-17,DISPOSABLE THEATRE DRAPES WIPES,Medicine,NHS LOGISTICS,1018185175,2.84,
Department of Health,Salisbury NHS Foundation Trust,21-Dec-17,TOILETRIES PERSONAL HYGIENE PRODUCTS,Musculo-Skeletal,NHS LOGISTICS,1018185175,0.62,
Department of Health,Salisbury NHS Foundation Trust,21-Dec-17,MEDSURGCONS - OTHER,Musculo-Skeletal,NHS LOGISTICS,1018185175,8.58,
Department of Health,Salisbury NHS Foundation Trust,21-Dec-17,TUBES,Musculo-Skeletal,NHS LOGISTICS,1018185175,1.37,
Department of Health,Salisbury NHS Foundation Trust,21-Dec-17,OTHER MEDICAL SUPPLIES,Musculo-Skeletal,NHS LOGISTICS,1018185175,0.75,
Department of Health,Salisbury NHS Foundation Trust,21-Dec-17,DRESSINGS - PRE STERILE,Musculo-Skeletal,NHS LOGISTICS,1018185175,10.91,
Department of Health,Salisbury NHS Foundation Trust,21-Dec-17,DRESSINGS - PRE STERILE,Musculo-Skeletal,NHS LOGISTICS,1018185175,27,
Department of Health,Salisbury NHS Foundation Trust,21-Dec-17,DRESSINGS - PRE STERILE,Musculo-Skeletal,NHS LOGISTICS,1018185175,30.36,
Department of Health,Salisbury NHS Foundation Trust,21-Dec-17,DRESSINGS - PRE STERILE,Musculo-Skeletal,NHS LOGISTICS,1018185175,23.96,
Department of Health,Salisbury NHS Foundation Trust,21-Dec-17,PATIENT APPLIANCES,Musculo-Skeletal,NHS LOGISTICS,1018185175,1.56,
Department of Health,Salisbury NHS Foundation Trust,21-Dec-17,DISPOSABLE THEATRE DRAPES WIPES,Musculo-Skeletal,NHS LOGISTICS,1018185175,0.71,
Department of Health,Salisbury NHS Foundation Trust,21-Dec-17,MEDSURGCONS - OTHER,Clinical Support,NHS LOGISTICS,1018185175,70.72,
Department of Health,Salisbury NHS Foundation Trust,21-Dec-17,MEDSURGCONS - OTHER,Clinical Support,NHS LOGISTICS,1018185175,9.07,
Department of Health,Salisbury NHS Foundation Trust,21-Dec-17,TISSUES HAND TOWELS & TOILET PAPER,Clinical Support,NHS LOGISTICS,1018185175,0.74,
Department of Health,Salisbury NHS Foundation Trust,21-Dec-17,MEDSURGCONS - OTHER,Clinical Support,NHS LOGISTICS,1018185175,4.88,
Department of Health,Salisbury NHS Foundation Trust,21-Dec-17,MED SURG EQUIP REP MAINT CLEANING,Clinical Support,NHS LOGISTICS,1018185175,3.22,
Department of Health,Salisbury NHS Foundation Trust,21-Dec-17,MED SURG EQUIP REP MAINT CLEANING,Clinical Support,NHS LOGISTICS,1018185175,5.98,
Department of Health,Salisbury NHS Foundation Trust,21-Dec-17,MED SURG EQUIP REP MAINT CLEANING,Clinical Support,NHS LOGISTICS,1018185175,5.98,
Department of Health,Salisbury NHS Foundation Trust,21-Dec-17,MEDSURGCONS - OTHER,Clinical Support,NHS LOGISTICS,1018185175,1.71,
Department of Health,Salisbury NHS Foundation Trust,21-Dec-17,OTHER MEDICAL SUPPLIES,Clinical Support,NHS LOGISTICS,1018185175,1.37,
Department of Health,Salisbury NHS Foundation Trust,21-Dec-17,OTHER MEDICAL SUPPLIES,Clinical Support,NHS LOGISTICS,1018185175,2.26,
Department of Health,Salisbury NHS Foundation Trust,21-Dec-17,MEDSURGCONS - OTHER,Clinical Support,NHS LOGISTICS,1018185175,3.32,
Department of Health,Salisbury NHS Foundation Trust,21-Dec-17,MEDSURGCONS - OTHER,Clinical Support,NHS LOGISTICS,1018185175,5.32,
Department of Health,Salisbury NHS Foundation Trust,21-Dec-17,MEDSURGCONS - OTHER,Clinical Support,NHS LOGISTICS,1018185175,0.97,
Department of Health,Salisbury NHS Foundation Trust,21-Dec-17,MEDSURGCONS - OTHER,Clinical Support,NHS LOGISTICS,1018185175,1.18,
Department of Health,Salisbury NHS Foundation Trust,21-Dec-17,MEDSURGCONS - OTHER,Clinical Support,NHS LOGISTICS,1018185175,3.13,
Department of Health,Salisbury NHS Foundation Trust,21-Dec-17,MEDSURGCONS - OTHER,Clinical Support,NHS LOGISTICS,1018185175,1.36,
Department of Health,Salisbury NHS Foundation Trust,21-Dec-17,BABY TEXTURE MODIFIED FOODS,Clinical Support,NHS LOGISTICS,1018185175,3.31,
Department of Health,Salisbury NHS Foundation Trust,21-Dec-17,DISPOSABLE THEATRE DRAPES WIPES,Clinical Support,NHS LOGISTICS,1018185175,0.71,
Department of Health,Salisbury NHS Foundation Trust,21-Dec-17,MEDSURGCONS - OTHER,Surgery,NHS LOGISTICS,1018185175,5.86,
Department of Health,Salisbury NHS Foundation Trust,21-Dec-17,ANAESTHETIC EQUIPMENT ACCESSORIES,Surgery,NHS LOGISTICS,1018185175,0.25,
Department of Health,Salisbury NHS Foundation Trust,21-Dec-17,OTHER MEDICAL SUPPLIES,Surgery,NHS LOGISTICS,1018185175,0.75,
Department of Health,Salisbury NHS Foundation Trust,21-Dec-17,PATIENT APPLIANCES,Surgery,NHS LOGISTICS,1018185175,4.68,
Department of Health,Salisbury NHS Foundation Trust,21-Dec-17,TOILETRIES PERSONAL HYGIENE PRODUCTS,Musculo-Skeletal,NHS LOGISTICS,1018185175,1.85,
Department of Health,Salisbury NHS Foundation Trust,21-Dec-17,TISSUES HAND TOWELS & TOILET PAPER,Musculo-Skeletal,NHS LOGISTICS,1018185175,0.74,
Department of Health,Salisbury NHS Foundation Trust,21-Dec-17,DRESSINGS - PRE STERILE,Musculo-Skeletal,NHS LOGISTICS,1018185175,2.8,
Department of Health,Salisbury NHS Foundation Trust,21-Dec-17,DRESSINGS - PRE STERILE,Musculo-Skeletal,NHS LOGISTICS,1018185175,1.17,
Department of Health,Salisbury NHS Foundation Trust,21-Dec-17,DRESSINGS - PRE STERILE,Musculo-Skeletal,NHS LOGISTICS,1018185175,1.5,
Department of Health,Salisbury NHS Foundation Trust,21-Dec-17,DRESSINGS - PRE STERILE,Musculo-Skeletal,NHS LOGISTICS,1018185175,2.33,
Department of Health,Salisbury NHS Foundation Trust,21-Dec-17,MEDSURGCONS - OTHER,Musculo-Skeletal,NHS LOGISTICS,1018185175,25.75,
Department of Health,Salisbury NHS Foundation Trust,21-Dec-17,TUBES,Musculo-Skeletal,NHS LOGISTICS,1018185175,1.37,
Department of Health,Salisbury NHS Foundation Trust,21-Dec-17,OTHER MEDICAL SUPPLIES,Musculo-Skeletal,NHS LOGISTICS,1018185175,1.13,
Department of Health,Salisbury NHS Foundation Trust,21-Dec-17,MEDSURGCONS - OTHER,Musculo-Skeletal,NHS LOGISTICS,1018185175,11.96,
Department of Health,Salisbury NHS Foundation Trust,21-Dec-17,DISPOSABLE THEATRE DRAPES WIPES,Musculo-Skeletal,NHS LOGISTICS,1018185175,1.42,
Department of Health,Salisbury NHS Foundation Trust,21-Dec-17,MED SURG EQUIP REP MAINT CLEANING,Medicine,NHS LOGISTICS,1018185175,12.37,
Department of Health,Salisbury NHS Foundation Trust,21-Dec-17,HEARING AIDS SPARES,Surgery,NHS LOGISTICS,1018185175,156.7,
Department of Health,Salisbury NHS Foundation Trust,21-Dec-17,DRESSINGS - PRE STERILE,Surgery,NHS LOGISTICS,1018185175,2.8,
Department of Health,Salisbury NHS Foundation Trust,21-Dec-17,DRESSINGS - PRE STERILE,Surgery,NHS LOGISTICS,1018185175,1.13,
Department of Health,Salisbury NHS Foundation Trust,21-Dec-17,DRESSINGS - PRE STERILE,Surgery,NHS LOGISTICS,1018185175,0.5,
Department of Health,Salisbury NHS Foundation Trust,21-Dec-17,MEDSURGCONS - OTHER,Surgery,NHS LOGISTICS,1018185175,8.58,
Department of Health,Salisbury NHS Foundation Trust,21-Dec-17,TISSUES HAND TOWELS & TOILET PAPER,Surgery,NHS LOGISTICS,1018185175,0.14,
Department of Health,Salisbury NHS Foundation Trust,21-Dec-17,DISPOSABLE THEATRE DRAPES WIPES,Medicine,NHS LOGISTICS,1018185175,22.7,
Department of Health,Salisbury NHS Foundation Trust,21-Dec-17,DRESSINGS - PRE STERILE,Medicine,NHS LOGISTICS,1018185175,2.8,
Department of Health,Salisbury NHS Foundation Trust,21-Dec-17,DRESSINGS - PRE STERILE,Medicine,NHS LOGISTICS,1018185175,0.92,
Department of Health,Salisbury NHS Foundation Trust,21-Dec-17,OTHER MEDICAL SUPPLIES,Medicine,NHS LOGISTICS,1018185175,0.38,
Department of Health,Salisbury NHS Foundation Trust,21-Dec-17,DRESSINGS - PRE STERILE,Medicine,NHS LOGISTICS,1018185175,4.95,
Department of Health,Salisbury NHS Foundation Trust,21-Dec-17,DISPOSABLE THEATRE DRAPES WIPES,Medicine,NHS LOGISTICS,1018185175,0.13,
Department of Health,Salisbury NHS Foundation Trust,21-Dec-17,DRUGS,Surgery,NHS LOGISTICS,1018185175,1.3,
Department of Health,Salisbury NHS Foundation Trust,21-Dec-17,MEDSURGCONS - OTHER,Surgery,NHS LOGISTICS,1018185175,0.98,
Department of Health,Salisbury NHS Foundation Trust,21-Dec-17,MEDSURGCONS - OTHER,Surgery,NHS LOGISTICS,1018185175,13.46,
Department of Health,Salisbury NHS Foundation Trust,21-Dec-17,MEDSURGCONS - OTHER,Surgery,NHS LOGISTICS,1018185175,11.56,
Department of Health,Salisbury NHS Foundation Trust,21-Dec-17,OTHER MEDICAL SUPPLIES,Surgery,NHS LOGISTICS,1018185175,14,
Department of Health,Salisbury NHS Foundation Trust,21-Dec-17,MEDSURGCONS - OTHER,Surgery,NHS LOGISTICS,1018185175,4.28,
Department of Health,Salisbury NHS Foundation Trust,21-Dec-17,MEDSURGCONS - OTHER,Surgery,NHS LOGISTICS,1018185175,2.71,
Department of Health,Salisbury NHS Foundation Trust,21-Dec-17,MEDSURGCONS - OTHER,Surgery,NHS LOGISTICS,1018185175,38.26,
Department of Health,Salisbury NHS Foundation Trust,21-Dec-17,MEDSURGCONS - OTHER,Surgery,NHS LOGISTICS,1018185175,1.36,
Department of Health,Salisbury NHS Foundation Trust,21-Dec-17,TOILETRIES PERSONAL HYGIENE PRODUCTS,Surgery,NHS LOGISTICS,1018185175,0.19,
Department of Health,Salisbury NHS Foundation Trust,21-Dec-17,TOILETRIES PERSONAL HYGIENE PRODUCTS,Surgery,NHS LOGISTICS,1018185175,0.83,
Department of Health,Salisbury NHS Foundation Trust,21-Dec-17,M & S EQUIPELECTEQUIPINST - OTHER,Surgery,NHS LOGISTICS,1018185175,0.32,
Department of Health,Salisbury NHS Foundation Trust,21-Dec-17,PATIENT APPLIANCES,Surgery,NHS LOGISTICS,1018185175,4.68,
Department of Health,Salisbury NHS Foundation Trust,21-Dec-17,DISPOSABLE THEATRE DRAPES WIPES,Surgery,NHS LOGISTICS,1018185175,1.42,
Department of Health,Salisbury NHS Foundation Trust,21-Dec-17,DISPOSABLE THEATRE DRAPES WIPES,Surgery,NHS LOGISTICS,1018185175,1.32,
Department of Health,Salisbury NHS Foundation Trust,21-Dec-17,MEDSURGCONS - OTHER,Surgery,NHS LOGISTICS,1018185175,1.6,
Department of Health,Salisbury NHS Foundation Trust,21-Dec-17,DISPOSABLE THEATRE DRAPES WIPES,Surgery,NHS LOGISTICS,1018185175,0.9,
Department of Health,Salisbury NHS Foundation Trust,21-Dec-17,M & S EQUIPELECTEQUIPINST - OTHER,Surgery,NHS LOGISTICS,1018185175,2.43,
Department of Health,Salisbury NHS Foundation Trust,21-Dec-17,BAGS SACKS - OTHER,Surgery,NHS LOGISTICS,1018185175,1.74,
Department of Health,Salisbury NHS Foundation Trust,21-Dec-17,COOKING & KITCHEN UTENSILS,Surgery,NHS LOGISTICS,1018185175,4.08,
Department of Health,Salisbury NHS Foundation Trust,21-Dec-17,MEDSURGCONS - OTHER,Surgery,NHS LOGISTICS,1018185175,4.88,
Department of Health,Salisbury NHS Foundation Trust,21-Dec-17,DRESSINGS - PRE STERILE,Surgery,NHS LOGISTICS,1018185175,38.97,
Department of Health,Salisbury NHS Foundation Trust,21-Dec-17,DRESSINGS - PRE STERILE,Surgery,NHS LOGISTICS,1018185175,117.77,
Department of Health,Salisbury NHS Foundation Trust,21-Dec-17,DRUGS,Surgery,NHS LOGISTICS,1018185175,14.05,
Department of Health,Salisbury NHS Foundation Trust,21-Dec-17,CLEANING MATERIALS PRODUCTS SUNDRIES,Surgery,NHS LOGISTICS,1018185175,0.92,
Department of Health,Salisbury NHS Foundation Trust,21-Dec-17,ANAESTHETIC EQUIPMENT ACCESSORIES,Surgery,NHS LOGISTICS,1018185175,9.46,
Department of Health,Salisbury NHS Foundation Trust,21-Dec-17,ELECTRICAL EQUIPMENT x,Surgery,NHS LOGISTICS,1018185175,1,
Department of Health,Salisbury NHS Foundation Trust,21-Dec-17,ANAESTHETIC EQUIPMENT ACCESSORIES,Surgery,NHS LOGISTICS,1018185175,59.89,
Department of Health,Salisbury NHS Foundation Trust,21-Dec-17,ELECTRICAL EQUIPMENT x,Surgery,NHS LOGISTICS,1018185175,1.55,
Department of Health,Salisbury NHS Foundation Trust,21-Dec-17,MEDSURGCONS - OTHER,Surgery,NHS LOGISTICS,1018185175,4,
Department of Health,Salisbury NHS Foundation Trust,21-Dec-17,DRESSINGS - PRE STERILE,Surgery,NHS LOGISTICS,1018185175,5.6,
Department of Health,Salisbury NHS Foundation Trust,21-Dec-17,MEDSURGCONS - OTHER,Surgery,NHS LOGISTICS,1018185175,20.36,
Department of Health,Salisbury NHS Foundation Trust,21-Dec-17,DRESSINGS - PRE STERILE,Surgery,NHS LOGISTICS,1018185175,18,
Department of Health,Salisbury NHS Foundation Trust,21-Dec-17,OTHER MEDICAL SUPPLIES,Surgery,NHS LOGISTICS,1018185175,2.28,
Department of Health,Salisbury NHS Foundation Trust,21-Dec-17,OTHER MEDICAL SUPPLIES,Surgery,NHS LOGISTICS,1018185175,4.47,
Department of Health,Salisbury NHS Foundation Trust,21-Dec-17,M & S EQUIPELECTEQUIPINST - OTHER,Surgery,NHS LOGISTICS,1018185175,40.65,
Department of Health,Salisbury NHS Foundation Trust,21-Dec-17,TUBES,Surgery,NHS LOGISTICS,1018185175,1.37,
Department of Health,Salisbury NHS Foundation Trust,21-Dec-17,ANAESTHETIC EQUIPMENT ACCESSORIES,Surgery,NHS LOGISTICS,1018185175,1,
Department of Health,Salisbury NHS Foundation Trust,21-Dec-17,TISSUES HAND TOWELS & TOILET PAPER,Surgery,NHS LOGISTICS,1018185175,0.12,
Department of Health,Salisbury NHS Foundation Trust,21-Dec-17,TISSUES HAND TOWELS & TOILET PAPER,Surgery,NHS LOGISTICS,1018185175,0.99,
Department of Health,Salisbury NHS Foundation Trust,21-Dec-17,TISSUES HAND TOWELS & TOILET PAPER,Surgery,NHS LOGISTICS,1018185175,0.23,
Department of Health,Salisbury NHS Foundation Trust,21-Dec-17,DISPOSABLE THEATRE DRAPES WIPES,Surgery,NHS LOGISTICS,1018185175,0.45,
Department of Health,Salisbury NHS Foundation Trust,21-Dec-17,M & S EQUIPELECTEQUIPINST - OTHER,Clinical Support,NHS LOGISTICS,1018185175,33.96,
Department of Health,Salisbury NHS Foundation Trust,21-Dec-17,M & S EQUIPELECTEQUIPINST - OTHER,Clinical Support,NHS LOGISTICS,1018185175,25.77,
Department of Health,Salisbury NHS Foundation Trust,21-Dec-17,MEDSURGCONS - OTHER,Clinical Support,NHS LOGISTICS,1018185175,0.98,
Department of Health,Salisbury NHS Foundation Trust,21-Dec-17,TISSUES HAND TOWELS & TOILET PAPER,Clinical Support,NHS LOGISTICS,1018185175,0.16,
Department of Health,Salisbury NHS Foundation Trust,21-Dec-17,OTHER MEDICAL SUPPLIES,Clinical Support,NHS LOGISTICS,1018185175,29.99,
Department of Health,Salisbury NHS Foundation Trust,21-Dec-17,TISSUES HAND TOWELS & TOILET PAPER,Clinical Support,NHS LOGISTICS,1018185175,0.62,
Department of Health,Salisbury NHS Foundation Trust,21-Dec-17,TISSUES HAND TOWELS & TOILET PAPER,Clinical Support,NHS LOGISTICS,1018185175,1.74,
Department of Health,Salisbury NHS Foundation Trust,21-Dec-17,MEDSURGCONS - OTHER,Clinical Support,NHS LOGISTICS,1018185175,0.98,
Department of Health,Salisbury NHS Foundation Trust,21-Dec-17,MEDSURGCONS - OTHER,Clinical Support,NHS LOGISTICS,1018185175,2.93,
Department of Health,Salisbury NHS Foundation Trust,21-Dec-17,TISSUES HAND TOWELS & TOILET PAPER,Clinical Support,NHS LOGISTICS,1018185175,0.16,
Department of Health,Salisbury NHS Foundation Trust,21-Dec-17,TISSUES HAND TOWELS & TOILET PAPER,Musculo-Skeletal,NHS LOGISTICS,1018185175,0.99,
Department of Health,Salisbury NHS Foundation Trust,21-Dec-17,PATIENT APPLIANCES,Musculo-Skeletal,NHS LOGISTICS,1018185175,2.14,
Department of Health,Salisbury NHS Foundation Trust,21-Dec-17,PATIENT APPLIANCES,Musculo-Skeletal,NHS LOGISTICS,1018185175,2.14,
Department of Health,Salisbury NHS Foundation Trust,21-Dec-17,PATIENT APPLIANCES,Musculo-Skeletal,NHS LOGISTICS,1018185175,4.27,
Department of Health,Salisbury NHS Foundation Trust,21-Dec-17,PATIENT APPLIANCES,Musculo-Skeletal,NHS LOGISTICS,1018185175,2.14,
Department of Health,Salisbury NHS Foundation Trust,21-Dec-17,TISSUES HAND TOWELS & TOILET PAPER,Musculo-Skeletal,NHS LOGISTICS,1018185175,0.16,
Department of Health,Salisbury NHS Foundation Trust,21-Dec-17,OTHER MEDICAL SUPPLIES,Musculo-Skeletal,NHS LOGISTICS,1018185175,0.75,
Department of Health,Salisbury NHS Foundation Trust,21-Dec-17,TOILETRIES PERSONAL HYGIENE PRODUCTS,Clinical Support,NHS LOGISTICS,1018185175,0.62,
Department of Health,Salisbury NHS Foundation Trust,21-Dec-17,MEDSURGCONS - OTHER,Clinical Support,NHS LOGISTICS,1018185175,6.84,
Department of Health,Salisbury NHS Foundation Trust,21-Dec-17,OPTICAL  -  OTHER,Surgery,NHS LOGISTICS,1018185175,17.81,
Department of Health,Salisbury NHS Foundation Trust,21-Dec-17,DRESSINGS - PRE STERILE,Musculo-Skeletal,NHS LOGISTICS,1018185175,0.46,
Department of Health,Salisbury NHS Foundation Trust,21-Dec-17,M & S EQUIPELECTEQUIPINST - OTHER,Musculo-Skeletal,NHS LOGISTICS,1018185175,4.05,
Department of Health,Salisbury NHS Foundation Trust,21-Dec-17,TISSUES HAND TOWELS & TOILET PAPER,Musculo-Skeletal,NHS LOGISTICS,1018185175,2.13,
Department of Health,Salisbury NHS Foundation Trust,21-Dec-17,DRESSINGS - PRE STERILE,Musculo-Skeletal,NHS LOGISTICS,1018185175,1.88,
Department of Health,Salisbury NHS Foundation Trust,21-Dec-17,MEDSURGCONS - OTHER,Musculo-Skeletal,NHS LOGISTICS,1018185175,1.95,
Department of Health,Salisbury NHS Foundation Trust,21-Dec-17,DISPOSABLE THEATRE DRAPES WIPES,Musculo-Skeletal,NHS LOGISTICS,1018185175,0.71,
Department of Health,Salisbury NHS Foundation Trust,21-Dec-17,MEDSURGCONS - OTHER,Musculo-Skeletal,NHS LOGISTICS,1018185175,3.91,
Department of Health,Salisbury NHS Foundation Trust,21-Dec-17,TUBES,Musculo-Skeletal,NHS LOGISTICS,1018185175,4.11,
Department of Health,Salisbury NHS Foundation Trust,21-Dec-17,MEDSURGCONS - OTHER,Surgery,NHS LOGISTICS,1018185175,3.91,
Department of Health,Salisbury NHS Foundation Trust,21-Dec-17,OTHER MEDICAL SUPPLIES,Surgery,NHS LOGISTICS,1018185175,1.53,
Department of Health,Salisbury NHS Foundation Trust,21-Dec-17,DRESSINGS - PRE STERILE,Medicine,NHS LOGISTICS,1018185175,0.66,
Department of Health,Salisbury NHS Foundation Trust,21-Dec-17,DRESSINGS - PRE STERILE,Medicine,NHS LOGISTICS,1018185175,1.19,
Department of Health,Salisbury NHS Foundation Trust,21-Dec-17,PATIENT APPLIANCES,Medicine,NHS LOGISTICS,1018185175,2.14,
Department of Health,Salisbury NHS Foundation Trust,21-Dec-17,PATIENT APPLIANCES,Medicine,NHS LOGISTICS,1018185175,1.07,
Department of Health,Salisbury NHS Foundation Trust,21-Dec-17,PATIENT APPLIANCES,Medicine,NHS LOGISTICS,1018185175,1.07,
Department of Health,Salisbury NHS Foundation Trust,21-Dec-17,DRESSINGS - PRE STERILE,Medicine,NHS LOGISTICS,1018185175,8.4,
Department of Health,Salisbury NHS Foundation Trust,21-Dec-17,DRESSINGS - PRE STERILE,Medicine,NHS LOGISTICS,1018185175,0.5,
Department of Health,Salisbury NHS Foundation Trust,21-Dec-17,MEDSURGCONS - OTHER,Medicine,NHS LOGISTICS,1018185175,8.58,
Department of Health,Salisbury NHS Foundation Trust,21-Dec-17,MEDSURGCONS - OTHER,Medicine,NHS LOGISTICS,1018185175,0.31,
Department of Health,Salisbury NHS Foundation Trust,21-Dec-17,PATIENT APPLIANCES,Medicine,NHS LOGISTICS,1018185175,0.81,
Department of Health,Salisbury NHS Foundation Trust,21-Dec-17,PATIENT APPLIANCES,Medicine,NHS LOGISTICS,1018185175,0.81,
Department of Health,Salisbury NHS Foundation Trust,21-Dec-17,PATIENT APPLIANCES,Medicine,NHS LOGISTICS,1018185175,0.81,
Department of Health,Salisbury NHS Foundation Trust,21-Dec-17,ANAESTHETIC EQUIPMENT ACCESSORIES,Medicine,NHS LOGISTICS,1018185175,2.5,
Department of Health,Salisbury NHS Foundation Trust,21-Dec-17,OTHER MEDICAL SUPPLIES,Medicine,NHS LOGISTICS,1018185175,0.75,
Department of Health,Salisbury NHS Foundation Trust,21-Dec-17,MEDSURGCONS - OTHER,Medicine,NHS LOGISTICS,1018185175,11.96,
Department of Health,Salisbury NHS Foundation Trust,21-Dec-17,DISPOSABLE THEATRE DRAPES WIPES,Medicine,NHS LOGISTICS,1018185175,2.84,
Department of Health,Salisbury NHS Foundation Trust,21-Dec-17,DRESSINGS - PRE STERILE,Medicine,NHS LOGISTICS,1018185175,1.72,
Department of Health,Salisbury NHS Foundation Trust,21-Dec-17,TISSUES HAND TOWELS & TOILET PAPER,Clinical Support,NHS LOGISTICS,1018185175,2.87,
Department of Health,Salisbury NHS Foundation Trust,21-Dec-17,DRESSINGS - PRE STERILE,Clinical Support,NHS LOGISTICS,1018185175,0.5,
Department of Health,Salisbury NHS Foundation Trust,21-Dec-17,DRESSINGS - PRE STERILE,Clinical Support,NHS LOGISTICS,1018185175,1.15,
Department of Health,Salisbury NHS Foundation Trust,21-Dec-17,MEDSURGCONS - OTHER,Clinical Support,NHS LOGISTICS,1018185175,0.98,
Department of Health,Salisbury NHS Foundation Trust,21-Dec-17,MEDSURGCONS - OTHER,Clinical Support,NHS LOGISTICS,1018185175,1.95,
Department of Health,Salisbury NHS Foundation Trust,21-Dec-17,NON DISPOSABLE BED LINEN,Clinical Support,NHS LOGISTICS,1018185175,3.55,
Department of Health,Salisbury NHS Foundation Trust,21-Dec-17,PATIENTS BABY WEAR,Medicine,NHS LOGISTICS,1018185175,6.43,
Department of Health,Salisbury NHS Foundation Trust,21-Dec-17,PATIENTS BABY WEAR,Medicine,NHS LOGISTICS,1018185175,5.96,
Department of Health,Salisbury NHS Foundation Trust,21-Dec-17,MEDSURGCONS - OTHER,Medicine,NHS LOGISTICS,1018185175,0.98,
Department of Health,Salisbury NHS Foundation Trust,21-Dec-17,MEDSURGCONS - OTHER,Medicine,NHS LOGISTICS,1018185175,5.86,
Department of Health,Salisbury NHS Foundation Trust,21-Dec-17,OTHER MEDICAL SUPPLIES,Medicine,NHS LOGISTICS,1018185175,0.38,
Department of Health,Salisbury NHS Foundation Trust,21-Dec-17,PATIENT APPLIANCES,Medicine,NHS LOGISTICS,1018185175,1.34,
Department of Health,Salisbury NHS Foundation Trust,21-Dec-17,PATIENT APPLIANCES,Medicine,NHS LOGISTICS,1018185175,0.88,
Department of Health,Salisbury NHS Foundation Trust,21-Dec-17,TISSUES HAND TOWELS & TOILET PAPER,Surgery,NHS LOGISTICS,1018185175,2.13,
Department of Health,Salisbury NHS Foundation Trust,21-Dec-17,SURGICAL INSTRUMENTS: DISPOSABLE,Surgery,NHS LOGISTICS,1018185175,11.29,
Department of Health,Salisbury NHS Foundation Trust,21-Dec-17,TISSUES HAND TOWELS & TOILET PAPER,Medicine,NHS LOGISTICS,1018185175,2.13,
Department of Health,Salisbury NHS Foundation Trust,21-Dec-17,DRESSINGS - PRE STERILE,Medicine,NHS LOGISTICS,1018185175,1.5,
Department of Health,Salisbury NHS Foundation Trust,21-Dec-17,DRESSINGS - PRE STERILE,Medicine,NHS LOGISTICS,1018185175,2.29,
Department of Health,Salisbury NHS Foundation Trust,21-Dec-17,M & S EQUIPELECTEQUIPINST - OTHER,Medicine,NHS LOGISTICS,1018185175,4.05,
Department of Health,Salisbury NHS Foundation Trust,01-Dec-17,DRESSINGS - PRE STERILE,Corporate - Finance & Procurement,HAMPSHIRE COSMETICS,94320,25898.4,
Department of Health,Salisbury NHS Foundation Trust,01-Dec-17,M & S EQUIPELECTROEQUIPINSTS - OTHER,Clinical Support,KARL STORZ ENDOSCOPY (UK) LTD,321224,1110,
Department of Health,Salisbury NHS Foundation Trust,21-Dec-17,SURGICAL INSTRUMENTS: GENERAL,Clinical Support,NHS LOGISTICS,1018185175,99.99,
Department of Health,Salisbury NHS Foundation Trust,21-Dec-17,SURGICAL INSTRUMENTS: DISPOSABLE,Clinical Support,NHS LOGISTICS,1018185175,3,
Department of Health,Salisbury NHS Foundation Trust,21-Dec-17,SURGICAL INSTRUMENTS: GENERAL,Clinical Support,NHS LOGISTICS,1018185175,20,
Department of Health,Salisbury NHS Foundation Trust,21-Dec-17,SURGICAL INSTRUMENTS: DISPOSABLE,Clinical Support,NHS LOGISTICS,1018185175,0.6,
Department of Health,Salisbury NHS Foundation Trust,21-Dec-17,SOFT FURNISHINGS,Medicine,NHS LOGISTICS,1018185175,116.05,
Department of Health,Salisbury NHS Foundation Trust,21-Dec-17,SOFT FURNISHINGS,Medicine,NHS LOGISTICS,1018185175,23.21,
Department of Health,Salisbury NHS Foundation Trust,21-Dec-17,ELECTRICAL EQUIPMENT x,Musculo-Skeletal,NHS LOGISTICS,1018185175,9.67,
Department of Health,Salisbury NHS Foundation Trust,21-Dec-17,ELECTRICAL EQUIPMENT x,Musculo-Skeletal,NHS LOGISTICS,1018185175,1.93,
Department of Health,Salisbury NHS Foundation Trust,21-Dec-17,ANAESTHETIC EQUIPMENT ACCESSORIES,Medicine,NHS LOGISTICS,1018185175,3.75,
Department of Health,Salisbury NHS Foundation Trust,21-Dec-17,ANAESTHETIC EQUIPMENT ACCESSORIES,Medicine,NHS LOGISTICS,1018185175,0.75,
Department of Health,Salisbury NHS Foundation Trust,21-Dec-17,DRUGS,Medicine,NHS LOGISTICS,1018185175,12.21,
Department of Health,Salisbury NHS Foundation Trust,21-Dec-17,DRUGS,Medicine,NHS LOGISTICS,1018185175,2.44,
Department of Health,Salisbury NHS Foundation Trust,21-Dec-17,DRESSINGS - PRE STERILE,Surgery,NHS LOGISTICS,1018185175,330.47,
Department of Health,Salisbury NHS Foundation Trust,21-Dec-17,DRESSINGS - PRE STERILE,Surgery,NHS LOGISTICS,1018185175,66.09,
Department of Health,Salisbury NHS Foundation Trust,21-Dec-17,ELECTRICAL EQUIPMENT x,Musculo-Skeletal,NHS LOGISTICS,1018185175,3.87,
Department of Health,Salisbury NHS Foundation Trust,21-Dec-17,ELECTRICAL EQUIPMENT x,Musculo-Skeletal,NHS LOGISTICS,1018185175,5.75,
Department of Health,Salisbury NHS Foundation Trust,21-Dec-17,ELECTRICAL EQUIPMENT x,Musculo-Skeletal,NHS LOGISTICS,1018185175,0.77,
Department of Health,Salisbury NHS Foundation Trust,21-Dec-17,ELECTRICAL EQUIPMENT x,Musculo-Skeletal,NHS LOGISTICS,1018185175,1.15,
Department of Health,Salisbury NHS Foundation Trust,21-Dec-17,SERVICES FROM NHS BODIES,Medicine,NHS LOGISTICS,1018185175,4.44,
Department of Health,Salisbury NHS Foundation Trust,21-Dec-17,SERVICES FROM NHS BODIES,Medicine,NHS LOGISTICS,1018185175,0.89,
Department of Health,Salisbury NHS Foundation Trust,21-Dec-17,DRESSINGS - PRE STERILE,Clinical Support,NHS LOGISTICS,1018185175,24.98,
Department of Health,Salisbury NHS Foundation Trust,21-Dec-17,DRESSINGS - PRE STERILE,Clinical Support,NHS LOGISTICS,1018185175,1.95,
Department of Health,Salisbury NHS Foundation Trust,21-Dec-17,DRESSINGS - PRE STERILE,Clinical Support,NHS LOGISTICS,1018185175,5,
Department of Health,Salisbury NHS Foundation Trust,21-Dec-17,DRESSINGS - PRE STERILE,Clinical Support,NHS LOGISTICS,1018185175,0.39,
Department of Health,Salisbury NHS Foundation Trust,21-Dec-17,MEDSURGCONS - OTHER,Surgery,NHS LOGISTICS,1018185175,14.65,
Department of Health,Salisbury NHS Foundation Trust,21-Dec-17,M & S EQUIPELECTEQUIPINST - OTHER,Medicine,NHS LOGISTICS,1018185175,20.24,
Department of Health,Salisbury NHS Foundation Trust,21-Dec-17,MEDSURGCONS - OTHER,Surgery,NHS LOGISTICS,1018185175,2.93,
Department of Health,Salisbury NHS Foundation Trust,21-Dec-17,BAGS SACKS - OTHER,Clinical Support,NHS LOGISTICS,1018185175,10.13,
Department of Health,Salisbury NHS Foundation Trust,21-Dec-17,SOFT FURNISHINGS,Medicine,NHS LOGISTICS,1018185175,154.73,
Department of Health,Salisbury NHS Foundation Trust,21-Dec-17,SOFT FURNISHINGS,Medicine,NHS LOGISTICS,1018185175,30.95,
Department of Health,Salisbury NHS Foundation Trust,21-Dec-17,TUBES,Medicine,NHS LOGISTICS,1018185175,6.85,
Department of Health,Salisbury NHS Foundation Trust,21-Dec-17,TUBES,Medicine,NHS LOGISTICS,1018185175,1.37,
Department of Health,Salisbury NHS Foundation Trust,21-Dec-17,LAB EQUIP-ANALYSERS,Clinical Support,NHS LOGISTICS,1018185175,30.98,
Department of Health,Salisbury NHS Foundation Trust,21-Dec-17,LAB EQUIP-ANALYSERS,Clinical Support,NHS LOGISTICS,1018185175,6.2,
Department of Health,Salisbury NHS Foundation Trust,21-Dec-17,OTHER MEDICAL SUPPLIES,Medicine,NHS LOGISTICS,1018185175,22.06,
Department of Health,Salisbury NHS Foundation Trust,21-Dec-17,TISSUES HAND TOWELS & TOILET PAPER,Medicine,NHS LOGISTICS,1018185175,0.25,
Department of Health,Salisbury NHS Foundation Trust,21-Dec-17,MEDSURGCONS - OTHER,Medicine,NHS LOGISTICS,1018185175,0.98,
Department of Health,Salisbury NHS Foundation Trust,21-Dec-17,TISSUES HAND TOWELS & TOILET PAPER,Medicine,NHS LOGISTICS,1018185175,0.16,
Department of Health,Salisbury NHS Foundation Trust,21-Dec-17,OTHER MEDICAL SUPPLIES,Medicine,NHS LOGISTICS,1018185175,1.51,
Department of Health,Salisbury NHS Foundation Trust,21-Dec-17,OTHER MEDICAL SUPPLIES,Medicine,NHS LOGISTICS,1018185175,0.3,
Department of Health,Salisbury NHS Foundation Trust,21-Dec-17,TISSUES HAND TOWELS & TOILET PAPER,Medicine,NHS LOGISTICS,1018185175,0.07,
Department of Health,Salisbury NHS Foundation Trust,21-Dec-17,DISPOSABLE THEATRE DRAPES WIPES,Medicine,NHS LOGISTICS,1018185175,0.26,
Department of Health,Salisbury NHS Foundation Trust,21-Dec-17,DRESSINGS - PRE STERILE,Musculo-Skeletal,NHS LOGISTICS,1018185175,1.4,
Department of Health,Salisbury NHS Foundation Trust,21-Dec-17,DRESSINGS - PRE STERILE,Musculo-Skeletal,NHS LOGISTICS,1018185175,0.66,
Department of Health,Salisbury NHS Foundation Trust,21-Dec-17,DRESSINGS - PRE STERILE,Musculo-Skeletal,NHS LOGISTICS,1018185175,2.38,
Department of Health,Salisbury NHS Foundation Trust,21-Dec-17,DRESSINGS - PRE STERILE,Musculo-Skeletal,NHS LOGISTICS,1018185175,1.88,
Department of Health,Salisbury NHS Foundation Trust,21-Dec-17,DRESSINGS - PRE STERILE,Musculo-Skeletal,NHS LOGISTICS,1018185175,10.75,
Department of Health,Salisbury NHS Foundation Trust,21-Dec-17,DRESSINGS - PRE STERILE,Musculo-Skeletal,NHS LOGISTICS,1018185175,5.57,
Department of Health,Salisbury NHS Foundation Trust,21-Dec-17,DRESSINGS - PRE STERILE,Musculo-Skeletal,NHS LOGISTICS,1018185175,4.05,
Department of Health,Salisbury NHS Foundation Trust,21-Dec-17,DRESSINGS - PRE STERILE,Musculo-Skeletal,NHS LOGISTICS,1018185175,8.75,
Department of Health,Salisbury NHS Foundation Trust,21-Dec-17,DRESSINGS - PRE STERILE,Musculo-Skeletal,NHS LOGISTICS,1018185175,4.05,
Department of Health,Salisbury NHS Foundation Trust,21-Dec-17,DRESSINGS - PRE STERILE,Musculo-Skeletal,NHS LOGISTICS,1018185175,4.66,
Department of Health,Salisbury NHS Foundation Trust,21-Dec-17,DRESSINGS - PRE STERILE,Musculo-Skeletal,NHS LOGISTICS,1018185175,9.31,
Department of Health,Salisbury NHS Foundation Trust,21-Dec-17,DRESSINGS - PRE STERILE,Musculo-Skeletal,NHS LOGISTICS,1018185175,9.31,
Department of Health,Salisbury NHS Foundation Trust,21-Dec-17,DRESSINGS - PRE STERILE,Musculo-Skeletal,NHS LOGISTICS,1018185175,10.01,
Department of Health,Salisbury NHS Foundation Trust,21-Dec-17,DRESSINGS - PRE STERILE,Musculo-Skeletal,NHS LOGISTICS,1018185175,10.01,
Department of Health,Salisbury NHS Foundation Trust,21-Dec-17,DRESSINGS - PRE STERILE,Musculo-Skeletal,NHS LOGISTICS,1018185175,5.01,
Department of Health,Salisbury NHS Foundation Trust,21-Dec-17,DRESSINGS - PRE STERILE,Musculo-Skeletal,NHS LOGISTICS,1018185175,2.52,
Department of Health,Salisbury NHS Foundation Trust,21-Dec-17,DRESSINGS - PRE STERILE,Musculo-Skeletal,NHS LOGISTICS,1018185175,1.37,
Department of Health,Salisbury NHS Foundation Trust,21-Dec-17,DRESSINGS - PRE STERILE,Musculo-Skeletal,NHS LOGISTICS,1018185175,1.53,
Department of Health,Salisbury NHS Foundation Trust,21-Dec-17,DRESSINGS - PRE STERILE,Musculo-Skeletal,NHS LOGISTICS,1018185175,3.05,
Department of Health,Salisbury NHS Foundation Trust,21-Dec-17,DRESSINGS - PRE STERILE,Surgery,NHS LOGISTICS,1018185175,2.8,
Department of Health,Salisbury NHS Foundation Trust,21-Dec-17,OTHER MEDICAL SUPPLIES,Surgery,NHS LOGISTICS,1018185175,1.37,
Department of Health,Salisbury NHS Foundation Trust,21-Dec-17,M & S EQUIPELECTEQUIPINST - OTHER,Surgery,NHS LOGISTICS,1018185175,11.25,
Department of Health,Salisbury NHS Foundation Trust,21-Dec-17,DRESSINGS - PRE STERILE,Surgery,NHS LOGISTICS,1018185175,0.95,
Department of Health,Salisbury NHS Foundation Trust,21-Dec-17,TOILETRIES PERSONAL HYGIENE PRODUCTS,Surgery,NHS LOGISTICS,1018185175,0.93,
Department of Health,Salisbury NHS Foundation Trust,21-Dec-17,SURGICAL INSTRUMENTS: GENERAL,Surgery,NHS LOGISTICS,1018185175,14.13,
Department of Health,Salisbury NHS Foundation Trust,21-Dec-17,DRESSINGS - PRE STERILE,Surgery,NHS LOGISTICS,1018185175,1.13,
Department of Health,Salisbury NHS Foundation Trust,21-Dec-17,DRESSINGS - PRE STERILE,Surgery,NHS LOGISTICS,1018185175,2.41,
Department of Health,Salisbury NHS Foundation Trust,21-Dec-17,DRESSINGS - PRE STERILE,Surgery,NHS LOGISTICS,1018185175,1.57,
Department of Health,Salisbury NHS Foundation Trust,21-Dec-17,MEDSURGCONS - OTHER,Surgery,NHS LOGISTICS,1018185175,4.88,
Department of Health,Salisbury NHS Foundation Trust,21-Dec-17,DRUGS,Surgery,NHS LOGISTICS,1018185175,10.98,
Department of Health,Salisbury NHS Foundation Trust,21-Dec-17,D IMAG & RADIO - X RAY FILM PROCESSING CHEMICALS,Surgery,NHS LOGISTICS,1018185175,22.52,
Department of Health,Salisbury NHS Foundation Trust,21-Dec-17,DRESSINGS - PRE STERILE,Surgery,NHS LOGISTICS,1018185175,1.72,
Department of Health,Salisbury NHS Foundation Trust,21-Dec-17,MEDSURGCONS-LAPAROSCOPIC EQUIPMENT,Surgery,NHS LOGISTICS,1018185175,556.7,
Department of Health,Salisbury NHS Foundation Trust,21-Dec-17,DISPOSABLE THEATRE DRAPES WIPES,Surgery,NHS LOGISTICS,1018185175,0.37,
Department of Health,Salisbury NHS Foundation Trust,21-Dec-17,MEDSURGCONS-LAPAROSCOPIC EQUIPMENT,Surgery,NHS LOGISTICS,1018185175,26.81,
Department of Health,Salisbury NHS Foundation Trust,21-Dec-17,TISSUES HAND TOWELS & TOILET PAPER,Surgery,NHS LOGISTICS,1018185175,0.25,
Department of Health,Salisbury NHS Foundation Trust,21-Dec-17,BEVERAGES & AMBIENT FOOD,Surgery,NHS LOGISTICS,1018185175,2.16,
Department of Health,Salisbury NHS Foundation Trust,21-Dec-17,DRESSINGS - PRE STERILE,Surgery,NHS LOGISTICS,1018185175,2.8,
Department of Health,Salisbury NHS Foundation Trust,21-Dec-17,DISPOSABLE THEATRE DRAPES WIPES,Surgery,NHS LOGISTICS,1018185175,1.2,
Department of Health,Salisbury NHS Foundation Trust,21-Dec-17,MEDSURGCONS - OTHER,Surgery,NHS LOGISTICS,1018185175,1.95,
Department of Health,Salisbury NHS Foundation Trust,21-Dec-17,MEDSURGCONS - OTHER,Surgery,NHS LOGISTICS,1018185175,1.95,
Department of Health,Salisbury NHS Foundation Trust,21-Dec-17,DRESSINGS - PRE STERILE,Surgery,NHS LOGISTICS,1018185175,14.72,
Department of Health,Salisbury NHS Foundation Trust,21-Dec-17,OTHER MEDICAL SUPPLIES,Surgery,NHS LOGISTICS,1018185175,1.37,
Department of Health,Salisbury NHS Foundation Trust,21-Dec-17,OTHER MEDICAL SUPPLIES,Surgery,NHS LOGISTICS,1018185175,0.75,
Department of Health,Salisbury NHS Foundation Trust,21-Dec-17,BEVERAGES & AMBIENT FOOD,Surgery,NHS LOGISTICS,1018185175,2.87,
Department of Health,Salisbury NHS Foundation Trust,21-Dec-17,OTHER MEDICAL SUPPLIES,Surgery,NHS LOGISTICS,1018185175,1.14,
Department of Health,Salisbury NHS Foundation Trust,21-Dec-17,OTHER MEDICAL SUPPLIES,Surgery,NHS LOGISTICS,1018185175,0.69,
Department of Health,Salisbury NHS Foundation Trust,21-Dec-17,BEVERAGES & AMBIENT FOOD,Surgery,NHS LOGISTICS,1018185175,0.17,
Department of Health,Salisbury NHS Foundation Trust,21-Dec-17,PATIENT APPLIANCES,Surgery,NHS LOGISTICS,1018185175,0.86,
Department of Health,Salisbury NHS Foundation Trust,21-Dec-17,DRESSINGS - PRE STERILE,Clinical Support,NHS LOGISTICS,1018185175,41.08,
Department of Health,Salisbury NHS Foundation Trust,21-Dec-17,DRESSINGS - PRE STERILE,Clinical Support,NHS LOGISTICS,1018185175,53.29,
Department of Health,Salisbury NHS Foundation Trust,21-Dec-17,DRESSINGS - PRE STERILE,Clinical Support,NHS LOGISTICS,1018185175,16.8,
Department of Health,Salisbury NHS Foundation Trust,21-Dec-17,DRESSINGS - PRE STERILE,Clinical Support,NHS LOGISTICS,1018185175,8.8,
Department of Health,Salisbury NHS Foundation Trust,21-Dec-17,DRESSINGS - PRE STERILE,Clinical Support,NHS LOGISTICS,1018185175,2.35,
Department of Health,Salisbury NHS Foundation Trust,21-Dec-17,DRESSINGS - PRE STERILE,Clinical Support,NHS LOGISTICS,1018185175,20.25,
Department of Health,Salisbury NHS Foundation Trust,21-Dec-17,MED SURG EQUIP REP MAINT CLEANING,Clinical Support,NHS LOGISTICS,1018185175,117.1,
Department of Health,Salisbury NHS Foundation Trust,21-Dec-17,OTHER MEDICAL SUPPLIES,Surgery,NHS LOGISTICS,1018185175,11.76,
Department of Health,Salisbury NHS Foundation Trust,21-Dec-17,MEDSURGCONS - OTHER,Medicine,NHS LOGISTICS,1018185175,8.45,
Department of Health,Salisbury NHS Foundation Trust,21-Dec-17,TISSUES HAND TOWELS & TOILET PAPER,Surgery,NHS LOGISTICS,1018185175,0.25,
Department of Health,Salisbury NHS Foundation Trust,21-Dec-17,TUBES,Surgery,NHS LOGISTICS,1018185175,1.37,
Department of Health,Salisbury NHS Foundation Trust,21-Dec-17,OTHER MEDICAL SUPPLIES,Surgery,NHS LOGISTICS,1018185175,1.37,
Department of Health,Salisbury NHS Foundation Trust,21-Dec-17,OTHER MEDICAL SUPPLIES,Surgery,NHS LOGISTICS,1018185175,0.75,
Department of Health,Salisbury NHS Foundation Trust,21-Dec-17,MEDSURGCONS - OTHER,Surgery,NHS LOGISTICS,1018185175,0.78,
Department of Health,Salisbury NHS Foundation Trust,21-Dec-17,TISSUES HAND TOWELS & TOILET PAPER,Surgery,NHS LOGISTICS,1018185175,0.14,
Department of Health,Salisbury NHS Foundation Trust,21-Dec-17,DISPOSABLE THEATRE DRAPES WIPES,Surgery,NHS LOGISTICS,1018185175,0.71,
Department of Health,Salisbury NHS Foundation Trust,21-Dec-17,TISSUES HAND TOWELS & TOILET PAPER,Clinical Support,NHS LOGISTICS,1018185175,2.38,
Department of Health,Salisbury NHS Foundation Trust,21-Dec-17,MEDSURGCONS - OTHER,Clinical Support,NHS LOGISTICS,1018185175,16.97,
Department of Health,Salisbury NHS Foundation Trust,21-Dec-17,MEDSURGCONS - OTHER,Clinical Support,NHS LOGISTICS,1018185175,16.97,
Department of Health,Salisbury NHS Foundation Trust,21-Dec-17,OTHER MEDICAL SUPPLIES,Surgery,NHS LOGISTICS,1018185175,4.27,
Department of Health,Salisbury NHS Foundation Trust,21-Dec-17,ELECTRICAL EQUIPMENT x,Surgery,NHS LOGISTICS,1018185175,0.5,
Department of Health,Salisbury NHS Foundation Trust,21-Dec-17,ELECTRICAL EQUIPMENT x,Surgery,NHS LOGISTICS,1018185175,1.16,
Department of Health,Salisbury NHS Foundation Trust,21-Dec-17,ANAESTHETIC EQUIPMENT ACCESSORIES,Surgery,NHS LOGISTICS,1018185175,3.75,
Department of Health,Salisbury NHS Foundation Trust,21-Dec-17,OTHER MEDICAL SUPPLIES,Surgery,NHS LOGISTICS,1018185175,3.77,
Department of Health,Salisbury NHS Foundation Trust,21-Dec-17,OTHER MEDICAL SUPPLIES,Surgery,NHS LOGISTICS,1018185175,2.28,
Department of Health,Salisbury NHS Foundation Trust,21-Dec-17,OTHER MEDICAL SUPPLIES,Surgery,NHS LOGISTICS,1018185175,2.28,
Department of Health,Salisbury NHS Foundation Trust,21-Dec-17,SURGICAL INSTRUMENTS: GENERAL,Surgery,NHS LOGISTICS,1018185175,15.29,
Department of Health,Salisbury NHS Foundation Trust,21-Dec-17,MEDSURGCONS - OTHER,Musculo-Skeletal,NHS LOGISTICS,1018185175,8.59,
Department of Health,Salisbury NHS Foundation Trust,21-Dec-17,TOILETRIES PERSONAL HYGIENE PRODUCTS,Musculo-Skeletal,NHS LOGISTICS,1018185175,0.93,
Department of Health,Salisbury NHS Foundation Trust,21-Dec-17,TISSUES HAND TOWELS & TOILET PAPER,Musculo-Skeletal,NHS LOGISTICS,1018185175,4.2,
Department of Health,Salisbury NHS Foundation Trust,21-Dec-17,MEDSURGCONS - OTHER,Musculo-Skeletal,NHS LOGISTICS,1018185175,17.17,
Department of Health,Salisbury NHS Foundation Trust,21-Dec-17,HEALTHCARE - WEAR,Musculo-Skeletal,NHS LOGISTICS,1018185175,12.78,
Department of Health,Salisbury NHS Foundation Trust,21-Dec-17,NON DISPOSABLE BED LINEN,Musculo-Skeletal,NHS LOGISTICS,1018185175,6.64,
Department of Health,Salisbury NHS Foundation Trust,21-Dec-17,MEDSURGCONS - OTHER,Musculo-Skeletal,NHS LOGISTICS,1018185175,2.39,
Department of Health,Salisbury NHS Foundation Trust,21-Dec-17,PATIENT APPLIANCES,Musculo-Skeletal,NHS LOGISTICS,1018185175,1.76,
Department of Health,Salisbury NHS Foundation Trust,21-Dec-17,PATIENT APPLIANCES,Musculo-Skeletal,NHS LOGISTICS,1018185175,3.51,
Department of Health,Salisbury NHS Foundation Trust,21-Dec-17,PATIENT APPLIANCES,Musculo-Skeletal,NHS LOGISTICS,1018185175,2.64,
Department of Health,Salisbury NHS Foundation Trust,21-Dec-17,PATIENT APPLIANCES,Musculo-Skeletal,NHS LOGISTICS,1018185175,1.34,
Department of Health,Salisbury NHS Foundation Trust,21-Dec-17,PATIENT APPLIANCES,Musculo-Skeletal,NHS LOGISTICS,1018185175,25.9,
Department of Health,Salisbury NHS Foundation Trust,21-Dec-17,PATIENT APPLIANCES,Musculo-Skeletal,NHS LOGISTICS,1018185175,3.12,
Department of Health,Salisbury NHS Foundation Trust,21-Dec-17,DISPOSABLE THEATRE DRAPES WIPES,Musculo-Skeletal,NHS LOGISTICS,1018185175,5.68,
Department of Health,Salisbury NHS Foundation Trust,21-Dec-17,DISPOSABLE THEATRE DRAPES WIPES,Musculo-Skeletal,NHS LOGISTICS,1018185175,0.66,
Department of Health,Salisbury NHS Foundation Trust,21-Dec-17,OTHER MEDICAL SUPPLIES,Musculo-Skeletal,NHS LOGISTICS,1018185175,0.38,
Department of Health,Salisbury NHS Foundation Trust,21-Dec-17,MEDSURGCONS - OTHER,Musculo-Skeletal,NHS LOGISTICS,1018185175,0.78,
Department of Health,Salisbury NHS Foundation Trust,21-Dec-17,OTHER MEDICAL SUPPLIES,Musculo-Skeletal,NHS LOGISTICS,1018185175,0.75,
Department of Health,Salisbury NHS Foundation Trust,21-Dec-17,MEDSURGCONS - OTHER,Musculo-Skeletal,NHS LOGISTICS,1018185175,1.36,
Department of Health,Salisbury NHS Foundation Trust,21-Dec-17,TISSUES HAND TOWELS & TOILET PAPER,Surgery,NHS LOGISTICS,1018185175,2.13,
Department of Health,Salisbury NHS Foundation Trust,21-Dec-17,DRESSINGS - PRE STERILE,Surgery,NHS LOGISTICS,1018185175,0.22,
Department of Health,Salisbury NHS Foundation Trust,21-Dec-17,BAGS SACKS - OTHER,Clinical Support,NHS LOGISTICS,1018185175,0.6,
Department of Health,Salisbury NHS Foundation Trust,21-Dec-17,TISSUES HAND TOWELS & TOILET PAPER,Clinical Support,NHS LOGISTICS,1018185175,0.99,
Department of Health,Salisbury NHS Foundation Trust,21-Dec-17,MEDSURGCONS - OTHER,Clinical Support,NHS LOGISTICS,1018185175,0.98,
Department of Health,Salisbury NHS Foundation Trust,21-Dec-17,TISSUES HAND TOWELS & TOILET PAPER,Clinical Support,NHS LOGISTICS,1018185175,0.16,
Department of Health,Salisbury NHS Foundation Trust,21-Dec-17,PATIENT APPLIANCES,Clinical Support,NHS LOGISTICS,1018185175,8.65,
Department of Health,Salisbury NHS Foundation Trust,21-Dec-17,DRESSINGS - PRE STERILE,Clinical Support,NHS LOGISTICS,1018185175,0.22,
Department of Health,Salisbury NHS Foundation Trust,21-Dec-17,DRESSINGS - PRE STERILE,Clinical Support,NHS LOGISTICS,1018185175,0.92,
Department of Health,Salisbury NHS Foundation Trust,21-Dec-17,MEDSURGCONS - OTHER,Clinical Support,NHS LOGISTICS,1018185175,1.95,
Department of Health,Salisbury NHS Foundation Trust,21-Dec-17,MED SURG EQUIP REP MAINT CLEANING,Clinical Support,NHS LOGISTICS,1018185175,5.98,
Department of Health,Salisbury NHS Foundation Trust,21-Dec-17,BABY TEXTURE MODIFIED FOODS,Clinical Support,NHS LOGISTICS,1018185175,6.33,
Department of Health,Salisbury NHS Foundation Trust,21-Dec-17,OTHER MEDICAL SUPPLIES,Clinical Support,NHS LOGISTICS,1018185175,0.38,
Department of Health,Salisbury NHS Foundation Trust,21-Dec-17,MEDSURGCONS - OTHER,Clinical Support,NHS LOGISTICS,1018185175,4.71,
Department of Health,Salisbury NHS Foundation Trust,21-Dec-17,TISSUES HAND TOWELS & TOILET PAPER,Clinical Support,NHS LOGISTICS,1018185175,4.26,
Department of Health,Salisbury NHS Foundation Trust,21-Dec-17,MEDSURGCONS - OTHER,Clinical Support,NHS LOGISTICS,1018185175,1.95,
Department of Health,Salisbury NHS Foundation Trust,21-Dec-17,TISSUES HAND TOWELS & TOILET PAPER,Clinical Support,NHS LOGISTICS,1018185175,0.23,
Department of Health,Salisbury NHS Foundation Trust,21-Dec-17,MEDSURGCONS - OTHER,Clinical Support,NHS LOGISTICS,1018185175,1.95,
Department of Health,Salisbury NHS Foundation Trust,21-Dec-17,OTHER MEDICAL SUPPLIES,Clinical Support,NHS LOGISTICS,1018185175,0.38,
Department of Health,Salisbury NHS Foundation Trust,21-Dec-17,OTHER MEDICAL SUPPLIES,Clinical Support,NHS LOGISTICS,1018185175,0.91,
Department of Health,Salisbury NHS Foundation Trust,21-Dec-17,MEDSURGCONS - OTHER,Musculo-Skeletal,NHS LOGISTICS,1018185175,17.17,
Department of Health,Salisbury NHS Foundation Trust,21-Dec-17,TOILETRIES PERSONAL HYGIENE PRODUCTS,Musculo-Skeletal,NHS LOGISTICS,1018185175,0.83,
Department of Health,Salisbury NHS Foundation Trust,21-Dec-17,DISPOSABLE THEATRE DRAPES WIPES,Musculo-Skeletal,NHS LOGISTICS,1018185175,3.08,
Department of Health,Salisbury NHS Foundation Trust,21-Dec-17,BAGS SACKS - OTHER,Clinical Support,NHS LOGISTICS,1018185175,2.03,
Department of Health,Salisbury NHS Foundation Trust,21-Dec-17,COOKING & KITCHEN UTENSILS,Clinical Support,NHS LOGISTICS,1018185175,2.72,
Department of Health,Salisbury NHS Foundation Trust,21-Dec-17,TOILETRIES PERSONAL HYGIENE PRODUCTS,Clinical Support,NHS LOGISTICS,1018185175,0.62,
Department of Health,Salisbury NHS Foundation Trust,21-Dec-17,DRESSINGS - PRE STERILE,Clinical Support,NHS LOGISTICS,1018185175,2.8,
Department of Health,Salisbury NHS Foundation Trust,21-Dec-17,MEDSURGCONS - OTHER,Clinical Support,NHS LOGISTICS,1018185175,1.95,
Department of Health,Salisbury NHS Foundation Trust,21-Dec-17,DRESSINGS - PRE STERILE,Clinical Support,NHS LOGISTICS,1018185175,0.44,
Department of Health,Salisbury NHS Foundation Trust,21-Dec-17,MED SURG EQUIP REP MAINT CLEANING,Clinical Support,NHS LOGISTICS,1018185175,2.56,
Department of Health,Salisbury NHS Foundation Trust,21-Dec-17,MEDSURGCONS - OTHER,Clinical Support,NHS LOGISTICS,1018185175,0.78,
Department of Health,Salisbury NHS Foundation Trust,21-Dec-17,BABY TEXTURE MODIFIED FOODS,Clinical Support,NHS LOGISTICS,1018185175,6.66,
Department of Health,Salisbury NHS Foundation Trust,21-Dec-17,BABY TEXTURE MODIFIED FOODS,Clinical Support,NHS LOGISTICS,1018185175,10,
Department of Health,Salisbury NHS Foundation Trust,21-Dec-17,DISPOSABLE THEATRE DRAPES WIPES,Clinical Support,NHS LOGISTICS,1018185175,0.71,
Department of Health,Salisbury NHS Foundation Trust,21-Dec-17,OTHER MEDICAL SUPPLIES,Corporate - Finance & Procurement,NHS LOGISTICS,1018185175,16.92,
Department of Health,Salisbury NHS Foundation Trust,21-Dec-17,OTHER MEDICAL SUPPLIES,Corporate - Finance & Procurement,NHS LOGISTICS,1018185175,11.89,
Department of Health,Salisbury NHS Foundation Trust,21-Dec-17,OTHER MEDICAL SUPPLIES,Corporate - Finance & Procurement,NHS LOGISTICS,1018185175,10.97,
Department of Health,Salisbury NHS Foundation Trust,21-Dec-17,OTHER MEDICAL SUPPLIES,Corporate - Finance & Procurement,NHS LOGISTICS,1018185175,11.89,
Department of Health,Salisbury NHS Foundation Trust,21-Dec-17,OTHER MEDICAL SUPPLIES,Corporate - Finance & Procurement,NHS LOGISTICS,1018185175,23.77,
Department of Health,Salisbury NHS Foundation Trust,21-Dec-17,OTHER MEDICAL SUPPLIES,Corporate - Finance & Procurement,NHS LOGISTICS,1018185175,12.34,
Department of Health,Salisbury NHS Foundation Trust,21-Dec-17,OTHER MEDICAL SUPPLIES,Corporate - Finance & Procurement,NHS LOGISTICS,1018185175,28.57,
Department of Health,Salisbury NHS Foundation Trust,21-Dec-17,PATIENTS BEDWEAR UNISEX,Clinical Support,NHS LOGISTICS,1018185175,3.2,
Department of Health,Salisbury NHS Foundation Trust,21-Dec-17,TOILETRIES PERSONAL HYGIENE PRODUCTS,Clinical Support,NHS LOGISTICS,1018185175,0.62,
Department of Health,Salisbury NHS Foundation Trust,21-Dec-17,DRESSINGS - PRE STERILE,Clinical Support,NHS LOGISTICS,1018185175,2.8,
Department of Health,Salisbury NHS Foundation Trust,21-Dec-17,DISPOSABLE THEATRE DRAPES WIPES,Clinical Support,NHS LOGISTICS,1018185175,2.4,
Department of Health,Salisbury NHS Foundation Trust,21-Dec-17,MEDSURGCONS - OTHER,Clinical Support,NHS LOGISTICS,1018185175,5.86,
Department of Health,Salisbury NHS Foundation Trust,21-Dec-17,M & S EQUIPELECTEQUIPINST - OTHER,Clinical Support,NHS LOGISTICS,1018185175,1.15,
Department of Health,Salisbury NHS Foundation Trust,21-Dec-17,SURGICAL INSTRUMENTS: DISPOSABLE,Clinical Support,NHS LOGISTICS,1018185175,8.2,
Department of Health,Salisbury NHS Foundation Trust,21-Dec-17,ANAESTHETIC EQUIPMENT ACCESSORIES,Clinical Support,NHS LOGISTICS,1018185175,0.38,
Department of Health,Salisbury NHS Foundation Trust,21-Dec-17,DRUGS,Clinical Support,NHS LOGISTICS,1018185175,0.94,
Department of Health,Salisbury NHS Foundation Trust,21-Dec-17,OTHER MEDICAL SUPPLIES,Clinical Support,NHS LOGISTICS,1018185175,0.38,
Department of Health,Salisbury NHS Foundation Trust,21-Dec-17,SERVICES FROM NHS BODIES,Clinical Support,NHS LOGISTICS,1018185175,0.89,
Department of Health,Salisbury NHS Foundation Trust,21-Dec-17,DRESSINGS - PRE STERILE,Clinical Support,NHS LOGISTICS,1018185175,9.9,
Department of Health,Salisbury NHS Foundation Trust,21-Dec-17,M & S EQUIPELECTEQUIPINST - OTHER,Clinical Support,NHS LOGISTICS,1018185175,0.32,
Department of Health,Salisbury NHS Foundation Trust,21-Dec-17,PATIENT APPLIANCES,Clinical Support,NHS LOGISTICS,1018185175,1.73,
Department of Health,Salisbury NHS Foundation Trust,21-Dec-17,PATIENT APPLIANCES,Clinical Support,NHS LOGISTICS,1018185175,3.12,
Department of Health,Salisbury NHS Foundation Trust,21-Dec-17,DISPOSABLE THEATRE DRAPES WIPES,Clinical Support,NHS LOGISTICS,1018185175,1.42,
Department of Health,Salisbury NHS Foundation Trust,21-Dec-17,DRESSINGS - PRE STERILE,Medicine,NHS LOGISTICS,1018185175,2.8,
Department of Health,Salisbury NHS Foundation Trust,21-Dec-17,DRESSINGS - PRE STERILE,Medicine,NHS LOGISTICS,1018185175,1.5,
Department of Health,Salisbury NHS Foundation Trust,21-Dec-17,MEDSURGCONS - OTHER,Medicine,NHS LOGISTICS,1018185175,2.93,
Department of Health,Salisbury NHS Foundation Trust,21-Dec-17,MEDSURGCONS - OTHER,Medicine,NHS LOGISTICS,1018185175,11.56,
Department of Health,Salisbury NHS Foundation Trust,21-Dec-17,TUBES,Medicine,NHS LOGISTICS,1018185175,4.11,
Department of Health,Salisbury NHS Foundation Trust,21-Dec-17,SURGICAL INSTRUMENTS: GENERAL,Medicine,NHS LOGISTICS,1018185175,1.97,
Department of Health,Salisbury NHS Foundation Trust,21-Dec-17,ANAESTHETIC EQUIPMENT ACCESSORIES,Medicine,NHS LOGISTICS,1018185175,0.63,
Department of Health,Salisbury NHS Foundation Trust,21-Dec-17,OTHER MEDICAL SUPPLIES,Medicine,NHS LOGISTICS,1018185175,0.38,
Department of Health,Salisbury NHS Foundation Trust,21-Dec-17,MEDSURGCONS - OTHER,Medicine,NHS LOGISTICS,1018185175,1.18,
Department of Health,Salisbury NHS Foundation Trust,21-Dec-17,MEDSURGCONS - OTHER,Medicine,NHS LOGISTICS,1018185175,1.36,
Department of Health,Salisbury NHS Foundation Trust,21-Dec-17,TISSUES HAND TOWELS & TOILET PAPER,Medicine,NHS LOGISTICS,1018185175,0.28,
Department of Health,Salisbury NHS Foundation Trust,21-Dec-17,DISPOSABLE THEATRE DRAPES WIPES,Medicine,NHS LOGISTICS,1018185175,0.71,
Department of Health,Salisbury NHS Foundation Trust,21-Dec-17,MEDSURGCONS - OTHER,Surgery,NHS LOGISTICS,1018185175,0.98,
Department of Health,Salisbury NHS Foundation Trust,21-Dec-17,TISSUES HAND TOWELS & TOILET PAPER,Surgery,NHS LOGISTICS,1018185175,0.16,
Department of Health,Salisbury NHS Foundation Trust,21-Dec-17,MEDSURGCONS - OTHER,Surgery,NHS LOGISTICS,1018185175,0.98,
Department of Health,Salisbury NHS Foundation Trust,21-Dec-17,MEDSURGCONS - OTHER,Surgery,NHS LOGISTICS,1018185175,3.91,
Department of Health,Salisbury NHS Foundation Trust,21-Dec-17,ANAESTHETIC EQUIPMENT ACCESSORIES,Surgery,NHS LOGISTICS,1018185175,0.5,
Department of Health,Salisbury NHS Foundation Trust,21-Dec-17,PATIENT APPLIANCES,Surgery,NHS LOGISTICS,1018185175,0.67,
Department of Health,Salisbury NHS Foundation Trust,21-Dec-17,TOILETRIES PERSONAL HYGIENE PRODUCTS,Surgery,NHS LOGISTICS,1018185175,0.83,
Department of Health,Salisbury NHS Foundation Trust,21-Dec-17,TISSUES HAND TOWELS & TOILET PAPER,Surgery,NHS LOGISTICS,1018185175,0.14,
Department of Health,Salisbury NHS Foundation Trust,21-Dec-17,DISPOSABLE THEATRE DRAPES WIPES,Surgery,NHS LOGISTICS,1018185175,0.71,
Department of Health,Salisbury NHS Foundation Trust,21-Dec-17,MEDSURGCONS - OTHER,Surgery,NHS LOGISTICS,1018185175,2.93,
Department of Health,Salisbury NHS Foundation Trust,21-Dec-17,ANAESTHETIC EQUIPMENT ACCESSORIES,Surgery,NHS LOGISTICS,1018185175,0.5,
Department of Health,Salisbury NHS Foundation Trust,21-Dec-17,OTHER MEDICAL SUPPLIES,Surgery,NHS LOGISTICS,1018185175,1.12,
Department of Health,Salisbury NHS Foundation Trust,21-Dec-17,OTHER MEDICAL SUPPLIES,Surgery,NHS LOGISTICS,1018185175,0.75,
Department of Health,Salisbury NHS Foundation Trust,21-Dec-17,DISPOSABLE THEATRE DRAPES WIPES,Surgery,NHS LOGISTICS,1018185175,0.71,
Department of Health,Salisbury NHS Foundation Trust,21-Dec-17,BAGS SACKS - OTHER,Surgery,NHS LOGISTICS,1018185175,1.05,
Department of Health,Salisbury NHS Foundation Trust,21-Dec-17,DRESSINGS - PRE STERILE,Surgery,NHS LOGISTICS,1018185175,0.57,
Department of Health,Salisbury NHS Foundation Trust,21-Dec-17,TOILETRIES PERSONAL HYGIENE PRODUCTS,Surgery,NHS LOGISTICS,1018185175,0.93,
